Workbook

Sheet SERIES
A2: LSL ACADATA E&W HPI NATIONAL AND REGIONAL FORMATTED DATA FROM 2005 | K2: 20th September 2017
A3: A TRUE MEASURE OF HOUSE PRICE INFLATION | K3: AUGUST 2017
A4: For data prior to 2005 please see | D4: APAT LGA
A6: The following table provides national smoothed, seasonally and mix adjusted current and back data for our LSL Acadata E&W HPI. The data are based upon the prices for all residential transactions in England and Wales, including cash purchases, reported by the Land Registry.
A7: At national level, only some 60,000 monthly transactions are occurring. For any given month, only c.35% of the transactions which took place in the month are available from LR. Rather than rely upon a small sample of c.21,000 potentially unrepresentative transactions, we base our initial results for each, most recent, month upon our Academic “index of indices” forecasting model, developed at the University of Cambridge and the Sir John Cass Business School. One month later, however, LR provides c.80% of the transactions, which we use to replace our initial forecast with an updated LSL Acadata E&W HPI result. Two months after any given month, LR provides c.90% of the transactions. We then regard our results as sufficiently updated to describe them as the final LSL Acadata E&W HPI index.
A8: The final LSL Acadata E&W HPI index comprises some 90% of the ultimate LR transactions, smoothed, seasonally and mix adjusted. Every further update from LR is used monthly until the ultimate LSL Acadata E&W HPI result based upon 100% of the LR data is reached.These results are the complete transaction data for England and Wales smoothed, seasonally and mix adjusted. Normally, these show no significant change from the final LSL Acadata E&W HPI result. Our Acadata House Prices series is calibrated to provide portfolio revaluations with standard errors.
A9: In this LSL Acadata Data Series, new weights have been adopted from April 2004 and prices on and after this date have been recalculated based on these new weights. The Index however remains based on the original weights and has not been re-cast. There is therefore discontinuity between the recalculated prices and the original Index.
A10: Please use this link to our “Index Monitor” report.
A11: LSL Acadata E&W HPI is prepared from Land Registry data that we believe to be correct using a methodology designed to provide the best possible guide to house price movements in England and Wales, and applied with care. We do not guarantee the accuracy of the results and Acadata shall not be liable for any loss or damage, whatsoever, consequential upon any error, misdescription or other inadequacy in the data. Persons using the data do so entirely at their own risk. No part of the house price index may be reproduced in any form or for any purpose without the prior permission of Acadata. Please email information@Acadata.co.uk
L13: © Acadata Limited
M14: LSL Acadata E&W HPI clb/cms
M15: www.acadata.co.uk
B17: 2005-01-01 | C17: 2005-02-01 | D17: 2005-03-01 | E17: 2005-04-01 | F17: 2005-05-01 | G17: 2005-06-01 | H17: 2005-07-01 | I17: 2005-08-01 | J17: 2005-09-01 | K17: 2005-10-01 | L17: 2005-11-01 | M17: 2005-12-01
A18: HP | B18: 193812.6714 | C18: 194920.2681 | D18: 194824.2126 | E18: 194886.5297 | F18: 194252.2826 | G18: 194754.7329 | H18: 194758.9958 | I18: 195023.586 | J18: 195595.5483 | K18: 196735.3151 | L18: 197690.6237 | M18: 199374.641
A19: Index | B19: 194.6273523 | C19: 195.7195186 | D19: 195.6551615 | E19: 195.7536815 | F19: 195.1941451 | G19: 195.7926608 | H19: 195.8667879 | I19: 196.1748084 | J19: 196.7364411 | K19: 197.9376874 | L19: 198.8839387 | M19: 200.6449221
A20: Monthly% | B20: 0.3975809958 | C20: =+C18/B18*100-100 -> 0.5714779751 | D20: =+D18/C18*100-100 -> -0.04927937686 | E20: 0.03198631636 | F20: -0.3254443307 | G20: 0.2586586464 | H20: 0.002188879882 | I20: 0.1358551513 | J20: 0.2932785536 | K20: 0.5827160955 | L20: 0.4855806523 | M20: 0.8518448092
A21: Annual% | B21: 12.16460311 | C21: 11.29166554 | D21: 9.791118484 | E21: 8.562842682 | F21: 6.904158152 | G21: 5.984653638 | H21: 4.867786593 | I21: 3.86748099 | J21: 3.286631319 | K21: 2.956577974 | L21: 2.935999475 | M21: 3.278756356
B23: 2006-01-01 | C23: 2006-02-01 | D23: 2006-03-01 | E23: 2006-04-01 | F23: 2006-05-01 | G23: 2006-06-01 | H23: 2006-07-01 | I23: 2006-08-01 | J23: 2006-09-01 | K23: 2006-10-01 | L23: 2006-11-01 | M23: 2006-12-01
A24: HP | B24: 200380.2748 | C24: 202077.1288 | D24: 203236.201 | E24: 204573.0777 | F24: 205426.8739 | G24: 206081.003 | H24: 206962.3709 | I24: 208136.8675 | J24: 209880.7323 | K24: 211961.3633 | L24: 213687.0289 | M24: 215979.4554
A25: Index | B25: 201.6606224 | C25: 203.3743721 | D25: 204.5109404 | E25: 205.8608886 | F25: 206.8261824 | G25: 207.510648 | H25: 208.3876235 | I25: 209.5672334 | J25: 211.3531339 | K25: 213.4431741 | L25: 215.1395739 | M25: 217.4753687
A26: Monthly% | B26: =+B24/M18*100-100 -> 0.5043940405 | C26: =+C24/B24*100-100 -> 0.8468168762 | D26: =+D24/C24*100-100 -> 0.5735790998 | E26: =+E24/D24*100-100 -> 0.6577945894 | F26: 0.4173551217 | G26: 0.3184243067 | H26: 0.4276803159 | I26: 0.5674928399 | J26: 0.8378452048 | K26: 0.9913396908 | L26: 0.8141415622 | M26: 1.072796317
A27: Annual% | B27: =+B24/B18*100-100 -> 3.388634685 | C27: =+C24/C18*100-100 -> 3.671686238 | D27: =+D24/D18*100-100 -> 4.317732492 | E27: 4.970352743 | F27: 5.752617785 | G27: 5.815658475 | H27: 6.265885185 | I27: 6.723946496 | J27: 7.303430017 | K27: 7.739356934 | L27: 8.091635748 | M27: 8.328448569
B29: 2007-01-01 | C29: 2007-02-01 | D29: 2007-03-01 | E29: 2007-04-01 | F29: 2007-05-01 | G29: 2007-06-01 | H29: 2007-07-01 | I29: 2007-08-01 | J29: 2007-09-01 | K29: 2007-10-01 | L29: 2007-11-01 | M29: 2007-12-01
A30: HP | B30: 217902.4075 | C30: 220599.4872 | D30: 222081.4783 | E30: 223953.099 | F30: 225087.8532 | G30: 226902.6106 | H30: 227677.181 | I30: 229556.5296 | J30: 231336.8887 | K30: 232654.5923 | L30: 232386.4572 | M30: 232602.6854
A31: Index | B31: 219.4963176 | C31: 222.2308868 | D31: 223.6998581 | E31: 225.5798747 | F31: 226.8685956 | G31: 228.8121942 | H31: 229.7011053 | I31: 231.6302491 | J31: 233.3844212 | K31: 234.663941 | L31: 234.3124214 | M31: 234.5554226
A32: Monthly% | B32: =+B30/M24*100-100 -> 0.8903402534 | C32: =+C30/B30*100-100 -> 1.237746628 | D32: =+D30/C30*100-100 -> 0.6718017232 | E32: =+E30/D30*100-100 -> 0.8427630531 | F32: 0.5066927964 | G32: 0.8062440494 | H32: 0.3413668741 | I32: 0.8254444473 | J32: 0.7755645419 | K32: 0.5696037529 | L32: -0.1152502922 | M32: 0.09304683387
A33: Annual% | B33: =+B30/B24*100-100 -> 8.744439879 | C33: =+C30/C24*100-100 -> 9.165984536 | D33: =+D30/D24*100-100 -> 9.272598713 | E33: 9.473397715 | F33: 9.570792222 | G33: 10.10360358 | H33: 10.00897408 | I33: 10.29114271 | J33: 10.22302339 | K33: 9.762736297 | L33: 8.750848565 | M33: 7.696671857
B35: 2008-01-01 | C35: 2008-02-01 | D35: 2008-03-01 | E35: 2008-04-01 | F35: 2008-05-01 | G35: 2008-06-01 | H35: 2008-07-01 | I35: 2008-08-01 | J35: 2008-09-01 | K35: 2008-10-01 | L35: 2008-11-01 | M35: 2008-12-01
A36: HP | B36: 233124.6319 | C36: 234080.4511 | D36: 233443.0188 | E36: 232956.2013 | F36: 231559.5176 | G36: 229767.1048 | H36: 226463.2666 | I36: 223301.1513 | J36: 219530.1654 | K36: 215494.5645 | L36: 210782.1231 | M36: 207481.7168
A37: Index | B37: 235.0860769 | C37: 236.0262065 | D37: 235.3635725 | E37: 234.9646059 | F37: 233.5998212 | G37: 231.7023164 | H37: 228.2902382 | I37: 225.1524361 | J37: 221.4854194 | K37: 217.4847387 | L37: 212.7583728 | M37: 209.3227504
A38: Monthly% | B38: =+B36/M30*100-100 -> 0.2243940107 | C38: =+C36/B36*100-100 -> 0.4100035161 | D38: =+D36/C36*100-100 -> -0.272313329 | E38: =+E36/D36*100-100 -> -0.2085380249 | F38: -0.5995477847 | G38: -0.7740614027 | H38: -1.437907398 | I38: -1.396303847 | J38: -1.688744465 | K38: -1.83828995 | L38: -2.186802906 | M38: -1.565790422
A39: Annual% | B39: =+B36/B30*100-100 -> 6.985799104 | C39: =+C36/C30*100-100 -> 6.111058592 | D39: =+D36/D30*100-100 -> 5.115933384 | E39: 4.020083858 | F39: 2.875172661 | G39: 1.262433313 | H39: -0.5331735031 | I39: -2.724983847 | J39: -5.103692411 | K39: -7.375752884 | L39: -9.296726824 | M39: -10.79994781
B41: 2009-01-01 | C41: 2009-02-01 | D41: 2009-03-01 | E41: 2009-04-01 | F41: 2009-05-01 | G41: 2009-06-01 | H41: 2009-07-01 | I41: 2009-08-01 | J41: 2009-09-01 | K41: 2009-10-01 | L41: 2009-11-01 | M41: 2009-12-01
A42: HP | B42: 205923.0328 | C42: 204646.3083 | D42: 202898.3698 | E42: 202052.3913 | F42: 202610.1135 | G42: 204238.4717 | H42: 205926.2809 | I42: 208273.332 | J42: 211097.8434 | K42: 213573.7975 | L42: 214000.5281 | M42: 218298.3316
A43: Index | B43: 207.6515445 | C43: 206.212217 | D43: 204.5761324 | E43: 203.859941 | F43: 204.5718708 | G43: 206.246616 | H43: 207.9057217 | I43: 210.2088433 | J43: 213.0717725 | K43: 215.5477441 | L43: 216.1690895 | M43: 220.4351526
A44: Monthly% | B44: =+B42/M36*100-100 -> -0.7512391845 | C44: =+C42/B42*100-100 -> -0.6200008173 | D44: =+D42/C42*100-100 -> -0.8541266056 | E44: =+E42/D42*100-100 -> -0.4169468849 | F44: 0.2760284735 | G44: 0.8036905197 | H44: 0.8263913999 | I44: 1.139753077 | J44: 1.356156033 | K44: 1.172894099 | L44: 0.1998047268 | M44: 2.00831447
A45: Annual% | B45: =+B42/B36*100-100 -> -11.66826468 | C45: =+C42/C36*100-100 -> -12.57437032 | D45: =+D42/D36*100-100 -> -13.08441315 | E45: -13.26593147 | F45: -12.50192799 | G45: -11.11065618 | H45: -9.068572567 | I45: -6.729844049 | J45: -3.841076707 | K45: -0.8913296438 | L45: 1.526887081 | M45: 5.213285797
B47: 2010-01-01 | C47: 2010-02-01 | D47: 2010-03-01 | E47: 2010-04-01 | F47: 2010-05-01 | G47: 2010-06-01 | H47: 2010-07-01 | I47: 2010-08-01 | J47: 2010-09-01 | K47: 2010-10-01 | L47: 2010-11-01 | M47: 2010-12-01
A48: HP | B48: 221651.8894 | C48: 225410.4675 | D48: 223982.0589 | E48: 223233.7487 | F48: 223475.8539 | G48: 224374.3444 | H48: 225087.982 | I48: 225826.3742 | J48: 225726.9349 | K48: 224880.5397 | L48: 223344.5213 | M48: 223431.5115
A49: Index | B49: 223.8820655 | C49: 227.5437122 | D49: 226.2066132 | E49: 225.3705733 | F49: 225.6158466 | G49: 226.4959378 | H49: 227.2420623 | I49: 228.0314574 | J49: 227.9339884 | K49: 227.0859979 | L49: 225.5648775 | M49: 225.5958923
A50: Monthly% | B50: =+B48/M42*100-100 -> 1.536226927 | C50: =+C48/B48*100-100 -> 1.695712177 | D50: =+D48/C48*100-100 -> -0.6336922176 | E50: =+E48/D48*100-100 -> -0.3340938071 | F50: 0.1084537022 | G50: 0.4020525985 | H50: 0.3180566717 | I50: 0.3280460264 | J50: -0.04403349992 | K50: -0.3749642293 | L50: -0.6830374566 | M50: 0.03894887463
A51: Annual% | B51: =+B48/B42*100-100 -> 7.638221118 | C51: =+C48/C42*100-100 -> 10.1463639 | D51: =+D48/D42*100-100 -> 10.39125605 | E51: 10.48310155 | F51: 10.29846938 | G51: 9.859000869 | H51: 9.305126585 | I51: 8.427887525 | J51: 6.930005214 | K51: 5.294068033 | L51: 4.366341226 | M51: 2.351451727
B53: 2011-01-01 | C53: 2011-02-01 | D53: 2011-03-01 | E53: 2011-04-01 | F53: 2011-05-01 | G53: 2011-06-01 | H53: 2011-07-01 | I53: 2011-08-01 | J53: 2011-09-01 | K53: 2011-10-01 | L53: 2011-11-01 | M53: 2011-12-01
A54: HP | B54: 224027.4599 | C54: 225878.854 | D54: 226236.1931 | E54: 223971.6041 | F54: 220916.1151 | G54: 219251.3711 | H54: 220479.1792 | I54: 222149.5813 | J54: 222157.4896 | K54: 222484.0999 | L54: 221201.2228 | M54: 221301.3646
A55: Index | B55: 226.2144869 | C55: 228.0390153 | D55: 228.5029086 | E55: 226.1624434 | F55: 223.1024502 | G55: 221.4193565 | H55: 222.7809651 | I55: 224.5134764 | J55: 224.4719429 | K55: 224.8405596 | L55: 223.5791883 | M55: 223.8222335
A56: Monthly% | B56: =+B54/M48*100-100 -> 0.2667252865 | C56: =+C54/B54*100-100 -> 0.826413923 | D56: =+D54/C54*100-100 -> 0.1581994719 | E56: =+E54/D54*100-100 -> -1.000984412 | F56: -1.364230533 | G56: -0.7535638446 | H56: 0.5600001901 | I56: 0.757623509 | J56: 0.00355987257 | K56: 0.1470174887 | L56: -0.5766152066 | M56: 0.04527182396
A57: Annual% | B57: =+B54/B48*100-100 -> 1.071757377 | C57: =+C54/C48*100-100 -> 0.2077927096 | D57: =+D54/D48*100-100 -> 1.006390545 | E57: 0.3305304088 | F57: -1.145420772 | G57: -2.283225969 | H57: -2.047556131 | I57: -1.628150333 | J57: -1.581311227 | K57: -1.06565012 | L57: -0.9596378554 | M57: -0.9533780216
B59: 2012-01-01 | C59: 2012-02-01 | D59: 2012-03-01 | E59: 2012-04-01 | F59: 2012-05-01 | G59: 2012-06-01 | H59: 2012-07-01 | I59: 2012-08-01 | J59: 2012-09-01 | K59: 2012-10-01 | L59: 2012-11-01 | M59: 2012-12-01
A60: HP | B60: 222024.7854 | C60: 222809.4169 | D60: 224847.5393 | E60: 225896.647 | F60: 228282.3298 | G60: 228302.0513 | H60: 228130.6412 | I60: 227557.7694 | J60: 227901.4697 | K60: 228272.1033 | L60: 228471.7053 | M60: 229216.7912
A61: Index | B61: 224.583729 | C61: 225.4728947 | D61: 227.4658434 | E61: 228.5751607 | F61: 231.1096648 | G61: 231.2511358 | H61: 231.2817902 | I61: 230.6121911 | J61: 231.1264234 | K61: 231.5027243 | L61: 231.7470449 | M61: 232.3455764
A62: Monthly% | B62: =+B60/M54*100-100 -> 0.3268939783 | C62: =+C60/B60*100-100 -> 0.353398137 | D62: =+D60/C60*100-100 -> 0.9147380186 | E62: =+E60/D60*100-100 -> 0.4665862156 | F62: 1.05609483 | G62: 0.008639090609 | H62: -0.07508039621 | I62: -0.2511156805 | J62: 0.1510387084 | K62: 0.1626288939 | L62: 0.08744036147 | M62: =+M60/L60*100-100 -> 0.3261173568
A63: Annual% | B63: =+B60/B54*100-100 -> -0.8939414972 | C63: =+C60/C54*100-100 -> -1.358886429 | D63: =+D60/D54*100-100 -> -0.6138070935 | E63: 0.8595030867 | F63: 3.334394444 | G63: 4.1279925 | H63: 3.470378474 | I63: 2.434480424 | J63: 2.585544226 | K63: 2.601535761 | L63: 3.286818416 | M63: =+M60/M54*100-100 -> 3.576763568
B65: 2013-01-01 | C65: 2013-02-01 | D65: 2013-03-01 | E65: 2013-04-01 | F65: 2013-05-01 | G65: 2013-06-01 | H65: 2013-07-01 | I65: 2013-08-01 | J65: 2013-09-01 | K65: 2013-10-01 | L65: 2013-11-01 | M65: 2013-12-01
A66: HP | B66: 230124.6028 | C66: 232110.5173 | D66: 233084.8038 | E66: 233726.1047 | F66: 233512.2739 | G66: 233765.3483 | H66: 234649.6837 | I66: 236237.0548 | J66: 237775.8807 | K66: 239310.3711 | L66: 240515.3182 | M66: 242810.653
A67: Index | B67: 233.2596034 | C67: 235.1989609 | D67: 236.286859 | E67: 236.8967075 | F67: 236.8215354 | G67: 237.0157063 | H67: 237.8880934 | I67: 239.4931005 | J67: 240.7860848 | K67: 242.1151601 | L67: 242.8982552 | M67: 244.0571436
A68: Monthly% | B68: =+B66/M60*100-100 -> 0.3960493719 | C68: =+C66/B66*100-100 -> 0.8629735624 | D68: =+D66/C66*100-100 -> 0.4197511008 | E68: =+E66/D66*100-100 -> 0.2751363259 | F68: -0.09148780381 | G68: 0.1083773771 | H68: 0.3783004586 | I68: 0.6764855059 | J68: 0.6513905671 | K68: 0.6453515741 | L68: 0.5035080856 | M68: 0.9543404073
A69: Annual% | B69: =+B66/B60*100-100 -> 3.648159099 | C69: =+C66/C60*100-100 -> 4.174464692 | D69: =+D66/D60*100-100 -> 3.663488811 | E69: 3.465946879 | F69: 2.290998213 | G69: 2.393012689 | H69: 2.857591813 | I69: 3.814102002 | J69: 4.332754425 | K69: 4.835574563 | L69: 5.271380482 | M69: 5.930569829
B71: 2014-01-01 | C71: 2014-02-01 | D71: 2014-03-01 | E71: 2014-04-01 | F71: 2014-05-01 | G71: 2014-06-01 | H71: 2014-07-01 | I71: 2014-08-01 | J71: 2014-09-01 | K71: 2014-10-01 | L71: 2014-11-01 | M71: 2014-12-01
A72: HP | B72: 246332.9364 | C72: 248753.0461 | D72: 251406.9511 | E72: 252880.0156 | F72: 255587.8196 | G72: 257885.4539 | H72: 259516.3382 | I72: 261463.5091 | J72: 263004.3335 | K72: 264015.4831 | L72: 263997.0974 | M72: 264169.6851
A73: Index | B73: 247.8155064 | C73: 250.1686227 | D73: 252.7688035 | E73: 254.3262087 | F73: 257.2464787 | G73: 260.069332 | H73: 261.52957 | I73: 263.4723034 | J73: 264.9046899 | K73: 266.0700496 | L73: 266.3469179 | M73: 265.6588618
A74: Monthly% | B74: =B72/M66*100-100 -> 1.450629675 | C74: =+C72/B72*100-100 -> 0.9824547527 | D74: 1.066883439 | E74: 0.5859283044 | F74: 1.070786083 | G74: 0.8989607951 | H74: 0.6324064673 | I74: 0.7503076525 | J74: 0.589307605 | K74: 0.3844611939 | L74: -0.006963865843 | M74: 0.06537483268
A75: Annual% | B75: =B72/B66*100-100 -> 7.043285848 | C75: 7.170088169 | D75: 7.860721526 | E75: 8.195024208 | F75: 9.453698254 | G75: 10.31808424 | H75: =H72/H66*100-100 -> 10.59735265 | I75: 10.67844938 | J75: 10.61018161 | K75: 10.32346065 | L75: 9.763111728 | M75: 8.796579459
B77: 2015-01-01 | C77: 2015-02-01 | D77: 2015-03-01 | E77: 2015-04-01 | F77: 2015-05-01 | G77: 2015-06-01 | H77: 2015-07-01 | I77: 2015-08-01 | J77: 2015-09-01 | K77: 2015-10-01 | L77: 2015-11-01 | M77: 2015-12-01
A78: HP | B78: 265578.7657 | C78: 266724.054 | D78: 267320.6428 | E78: 268109.7276 | F78: 269302.1088 | G78: 270929.9059 | H78: 272042.6814 | I78: 274765.7707 | J78: 276827.7742 | K78: 279786.032 | L78: 280434.6116 | M78: 282603.6731
A79: Index | B79: 266.9283519 | C79: 267.8797863 | D79: 268.3067829 | E79: 269.154968 | F79: 270.3396122 | G79: 272.1630768 | H79: 273.2768059 | I79: 276.2881506 | J79: 278.1160951 | K79: 280.4862979 | L79: 280.2939328 | M79: 281.1992468
A80: Monthly% | B80: =B78/M72*100-100 -> 0.5333998317 | C80: =+C78/B78*100-100 -> 0.4312424015 | D80: 0.2236726689 | E80: 0.2951828842 | F80: 0.4447362902 | G80: 0.6044501801 | H80: 0.4107244959 | I80: 1.000978721 | J80: 0.7504586402 | K80: 1.068627515 | L80: 0.2318127395 | M80: 0.7734642426
A81: Annual% | B81: =B78/B72*100-100 -> 7.812933819 | C81: 7.224437324 | D81: 6.329853487 | E81: 6.022505149 | F81: 5.365783558 | G81: 5.058234883 | H81: =H78/H72*100-100 -> 4.826803305 | I81: 5.087616869 | J81: 5.255974507 | K81: 5.973342434 | L81: 6.226399606 | M81: 6.978086079
B83: 2016-01-01 | C83: 2016-02-01 | D83: 2016-03-01 | E83: 2016-04-01 | F83: 2016-05-01 | G83: 2016-06-01 | H83: 2016-07-01 | I83: 2016-08-01 | J83: 2016-09-01 | K83: 2016-10-01 | L83: 2016-11-01 | M83: 2016-12-01
A84: HP | B84: 284973.0847 | C84: 290941.087 | D84: 291502.7618 | E84: 291395.508 | F84: 289272.2538 | G84: 290079.8682 | H84: 290490.8991 | I84: 291416.1739 | J84: 293367.862 | K84: 296141.9061 | L84: 297874.6128 | M84: 300115.5783
A85: Index | B85: 283.6070224 | C85: 289.6191685 | D85: 290.0568499 | E85: 289.886402 | F85: 287.6805537 | G85: 288.4834382 | H85: 288.660636 | I85: 289.259014 | J85: 289.7113087 | K85: 290.7009058 | L85: 290.463393 | M85: 291.3745783
A86: Monthly% | B86: =B84/M78*100-100 -> 0.838422084 | C86: =+C84/B84*100-100 -> 2.094233683 | D86: 0.1930544672 | E86: -0.03679339401 | F86: -0.7286503 | G86: 0.2791883598 | H86: 0.1416957623 | I86: 0.3185210871 | J86: 0.66972539 | K86: 0.9455855473 | L86: 0.5850933964 | M86: 0.7523183792
A87: Annual% | B87: =B84/B78*100-100 -> 7.30266176 | C87: 9.079433477 | D87: 9.046109852 | E87: 8.685168074 | F87: 7.415517483 | G87: 7.068234965 | H87: =H84/H78*100-100 -> 6.781368878 | I87: 6.05985349 | J87: 5.974865721 | K87: 5.84585085 | L87: 6.218918947 | M87: 6.196630434
B89: 2017-01-01 | C89: 2017-02-01 | D89: 2017-03-01 | E89: 2017-04-01 | F89: 2017-05-01 | G89: 2017-06-01 | H89: 2017-07-01 | I89: 2017-08-01 | J89: 2017-09-01 | K89: 2017-10-01 | L89: 2017-11-01 | M89: 2017-12-01
A90: HP | B90: 302504.8159 | C90: 304385.3892 | D90: 305358.4094 | E90: 303929.328 | F90: 301789.564 | G90: 299274.0874 | H90: 298062.6996 | I90: 297397.5867
A91: Index | B91: =M85*B90/M84 -> 293.6942283 | C91: =+B91/B90*C90 -> 295.520029 | D91: 296.4647096 | E91: 295.0772509 | F91: 292.9998084 | G91: 290.5575962 | H91: 289.3814906 | I91: 288.7357494
A92: Monthly% | B92: =B90/M84*100-100 -> 0.7961058213 | C92: =+C90/B90*100-100 -> 0.6216672247 | D92: 0.319667176 | E92: -0.4680013059 | F92: -0.7040334023 | G92: -0.8335200917 | H92: -0.4047753797 | I92: -0.2231452854
A93: Annual% | B93: =B90/B84*100-100 -> 6.15206563 | C93: 4.620970624 | D93: =D90/D84*100-100 -> 4.753178835 | E93: 4.301308581 | F93: =F90/F84*100-100 -> 4.327172787 | G93: 3.169547473 | H93: =H90/H84*100-100 -> 2.606553408 | I93: 2.052532884

Sheet SERIES CHARTS
B2: LSL ACADATA E&W HPI NATIONAL AND REGIONAL FORMATTED DATA FROM 2005 | M2: =SERIES!$K$2 -> 20th September 2017
B3: A TRUE MEASURE OF HOUSE PRICE INFLATION | M3: =SERIES!$K$3 -> AUGUST 2017
B4: For data prior to 2005 please see | E4: APAT LGA
O5: © Acadata Limited
O6: LSL Acadata E&W HPI clb/cms
O7: www.acadata.co.uk

Sheet DATA
B2: LSL ACADATA E&W HPI NATIONAL AND REGIONAL FORMATTED DATA FROM 2005
B3: A TRUE MEASURE OF HOUSE PRICE INFLATION | J3: =SERIES!$K$2 -> 20th September 2017
B4: For data prior to 2005 please see | E4: APAT LGA | H4: =SERIES!$K$3 -> AUGUST 2017
B5: In this LSL Acadata Data Series, new weights have been adopted from April 2004 and prices on and after this date have been recalculated based on these new weights. The Index however remains based on the original weights and has not been re-cast. There is therefore discontinuity between the recalculated prices and the original Index.
H6: LSL Acadata E&W HPI clb/cms
D9: Month | E9: Average House Price | F9: Index | G9: Monthly% | H9: Annual%
D10: 2005-01-01 | E10: 193812.6714 | F10: 194.6273523 | G10: 0.3975809958 | H10: 12.16460311
D11: 2005-02-01 | E11: 194920.2681 | F11: 195.7195186 | G11: 0.5714779751 | H11: 11.29166554
D12: 2005-03-01 | E12: 194824.2126 | F12: 195.6551615 | G12: -0.04927937686 | H12: 9.791118484
D13: 2005-04-01 | E13: 194886.5297 | F13: 195.7536815 | G13: 0.03198631636 | H13: 8.562842682
D14: 2005-05-01 | E14: 194252.2826 | F14: 195.1941451 | G14: -0.3254443307 | H14: 6.904158152
D15: 2005-06-01 | E15: 194754.7329 | F15: 195.7926608 | G15: 0.2586586464 | H15: 5.984653638
D16: 2005-07-01 | E16: 194758.9958 | F16: 195.8667879 | G16: 0.002188879882 | H16: 4.867786593
D17: 2005-08-01 | E17: 195023.586 | F17: 196.1748084 | G17: 0.1358551513 | H17: 3.86748099
D18: 2005-09-01 | E18: 195595.5483 | F18: 196.7364411 | G18: 0.2932785536 | H18: 3.286631319
D19: 2005-10-01 | E19: 196735.3151 | F19: 197.9376874 | G19: 0.5827160955 | H19: 2.956577974
D20: 2005-11-01 | E20: 197690.6237 | F20: 198.8839387 | G20: 0.4855806523 | H20: 2.935999475
D21: 2005-12-01 | E21: 199374.641 | F21: 200.6449221 | G21: 0.8518448092 | H21: 3.278756356
D22: 2006-01-01 | E22: 200380.2748 | F22: 201.6606224 | G22: =+E22/E21*100-100 -> 0.5043940405 | H22: =+E22/E10*100-100 -> 3.388634685
D23: 2006-02-01 | E23: 202077.1288 | F23: 203.3743721 | G23: 0.8468168762 | H23: 3.671686238
D24: 2006-03-01 | E24: 203236.201 | F24: 204.5109404 | G24: 0.5735790998 | H24: 4.317732492
D25: 2006-04-01 | E25: 204573.0777 | F25: 205.8608886 | G25: 0.6577945894 | H25: 4.970352743
D26: 2006-05-01 | E26: 205426.8739 | F26: 206.8261824 | G26: 0.4173551217 | H26: 5.752617785
D27: 2006-06-01 | E27: 206081.003 | F27: 207.510648 | G27: 0.3184243067 | H27: 5.815658475
D28: 2006-07-01 | E28: 206962.3709 | F28: 208.3876235 | G28: 0.4276803159 | H28: 6.265885185
D29: 2006-08-01 | E29: 208136.8675 | F29: 209.5672334 | G29: 0.5674928399 | H29: 6.723946496
D30: 2006-09-01 | E30: 209880.7323 | F30: 211.3531339 | G30: 0.8378452048 | H30: 7.303430017
D31: 2006-10-01 | E31: 211961.3633 | F31: 213.4431741 | G31: 0.9913396908 | H31: =+E31/E19*100-100 -> 7.739356934
D32: 2006-11-01 | E32: 213687.0289 | F32: 215.1395739 | G32: 0.8141415622 | H32: 8.091635748
D33: 2006-12-01 | E33: 215979.4554 | F33: 217.4753687 | G33: 1.072796317 | H33: 8.328448569
D34: 2007-01-01 | E34: 217902.4075 | F34: 219.4963176 | G34: 0.8903402534 | H34: 8.744439879
D35: 2007-02-01 | E35: 220599.4872 | F35: 222.2308868 | G35: 1.237746628 | H35: 9.165984536
D36: 2007-03-01 | E36: 222081.4783 | F36: 223.6998581 | G36: 0.6718017232 | H36: 9.272598713
D37: 2007-04-01 | E37: 223953.099 | F37: 225.5798747 | G37: 0.8427630531 | H37: 9.473397715
D38: 2007-05-01 | E38: 225087.8532 | F38: 226.8685956 | G38: 0.5066927964 | H38: 9.570792222
D39: 2007-06-01 | E39: 226902.6106 | F39: 228.8121942 | G39: 0.8062440494 | H39: 10.10360358
D40: 2007-07-01 | E40: 227677.181 | F40: 229.7011053 | G40: 0.3413668741 | H40: 10.00897408
D41: 2007-08-01 | E41: 229556.5296 | F41: 231.6302491 | G41: 0.8254444473 | H41: 10.29114271
D42: 2007-09-01 | E42: 231336.8887 | F42: 233.3844212 | G42: 0.7755645419 | H42: 10.22302339
D43: 2007-10-01 | E43: 232654.5923 | F43: 234.663941 | G43: 0.5696037529 | H43: 9.762736297
D44: 2007-11-01 | E44: 232386.4572 | F44: 234.3124214 | G44: -0.1152502922 | H44: 8.750848565
D45: 2007-12-01 | E45: 232602.6854 | F45: 234.5554226 | G45: 0.09304683387 | H45: 7.696671857
D46: 2008-01-01 | E46: 233124.6319 | F46: 235.0860769 | G46: 0.2243940107 | H46: 6.985799104
D47: 2008-02-01 | E47: 234080.4511 | F47: 236.0262065 | G47: 0.4100035161 | H47: 6.111058592
D48: 2008-03-01 | E48: 233443.0188 | F48: 235.3635725 | G48: -0.272313329 | H48: 5.115933384
D49: 2008-04-01 | E49: 232956.2013 | F49: 234.9646059 | G49: -0.2085380249 | H49: 4.020083858
D50: 2008-05-01 | E50: 231559.5176 | F50: 233.5998212 | G50: -0.5995477847 | H50: 2.875172661
D51: 2008-06-01 | E51: 229767.1048 | F51: 231.7023164 | G51: -0.7740614027 | H51: 1.262433313
D52: 2008-07-01 | E52: 226463.2666 | F52: 228.2902382 | G52: -1.437907398 | H52: -0.5331735031
D53: 2008-08-01 | E53: 223301.1513 | F53: 225.1524361 | G53: -1.396303847 | H53: -2.724983847
D54: 2008-09-01 | E54: 219530.1654 | F54: 221.4854194 | G54: -1.688744465 | H54: -5.103692411
D55: 2008-10-01 | E55: 215494.5645 | F55: 217.4847387 | G55: -1.83828995 | H55: -7.375752884
D56: 2008-11-01 | E56: 210782.1231 | F56: 212.7583728 | G56: -2.186802906 | H56: -9.296726824
D57: 2008-12-01 | E57: 207481.7168 | F57: 209.3227504 | G57: -1.565790422 | H57: -10.79994781
D58: 2009-01-01 | E58: 205923.0328 | F58: 207.6515445 | G58: -0.7512391845 | H58: -11.66826468
D59: 2009-02-01 | E59: 204646.3083 | F59: 206.212217 | G59: -0.6200008173 | H59: -12.57437032
D60: 2009-03-01 | E60: 202898.3698 | F60: 204.5761324 | G60: -0.8541266056 | H60: -13.08441315
D61: 2009-04-01 | E61: 202052.3913 | F61: 203.859941 | G61: -0.4169468849 | H61: -13.26593147
D62: 2009-05-01 | E62: 202610.1135 | F62: 204.5718708 | G62: 0.2760284735 | H62: -12.50192799
D63: 2009-06-01 | E63: 204238.4717 | F63: 206.246616 | G63: 0.8036905197 | H63: -11.11065618
D64: 2009-07-01 | E64: 205926.2809 | F64: 207.9057217 | G64: 0.8263913999 | H64: -9.068572567
D65: 2009-08-01 | E65: 208273.332 | F65: 210.2088433 | G65: 1.139753077 | H65: -6.729844049
D66: 2009-09-01 | E66: 211097.8434 | F66: 213.0717725 | G66: 1.356156033 | H66: -3.841076707
D67: 2009-10-01 | E67: 213573.7975 | F67: 215.5477441 | G67: 1.172894099 | H67: -0.8913296438
D68: 2009-11-01 | E68: 214000.5281 | F68: 216.1690895 | G68: 0.1998047268 | H68: 1.526887081
D69: 2009-12-01 | E69: 218298.3316 | F69: 220.4351526 | G69: 2.00831447 | H69: 5.213285797
D70: 2010-01-01 | E70: 221651.8894 | F70: 223.8820655 | G70: 1.536226927 | H70: 7.638221118
D71: 2010-02-01 | E71: 225410.4675 | F71: 227.5437122 | G71: 1.695712177 | H71: 10.1463639
D72: 2010-03-01 | E72: 223982.0589 | F72: 226.2066132 | G72: -0.6336922176 | H72: 10.39125605
D73: 2010-04-01 | E73: 223233.7487 | F73: 225.3705733 | G73: -0.3340938071 | H73: 10.48310155
D74: 2010-05-01 | E74: 223475.8539 | F74: 225.6158466 | G74: 0.1084537022 | H74: 10.29846938
D75: 2010-06-01 | E75: 224374.3444 | F75: 226.4959378 | G75: 0.4020525985 | H75: 9.859000869
D76: 2010-07-01 | E76: 225087.982 | F76: 227.2420623 | G76: 0.3180566717 | H76: 9.305126585
D77: 2010-08-01 | E77: 225826.3742 | F77: 228.0314574 | G77: 0.3280460264 | H77: 8.427887525
D78: 2010-09-01 | E78: 225726.9349 | F78: 227.9339884 | G78: -0.04403349992 | H78: 6.930005214
D79: 2010-10-01 | E79: 224880.5397 | F79: 227.0859979 | G79: -0.3749642293 | H79: 5.294068033
D80: 2010-11-01 | E80: 223344.5213 | F80: 225.5648775 | G80: -0.6830374566 | H80: 4.366341226
D81: 2010-12-01 | E81: 223431.5115 | F81: 225.5958923 | G81: 0.03894887463 | H81: 2.351451727
D82: 2011-01-01 | E82: 224027.4599 | F82: 226.2144869 | G82: 0.2667252865 | H82: 1.071757377
D83: 2011-02-01 | E83: 225878.854 | F83: 228.0390153 | G83: 0.826413923 | H83: 0.2077927096
D84: 2011-03-01 | E84: 226236.1931 | F84: 228.5029086 | G84: =+E84/E83*100-100 -> 0.1581994719 | H84: 1.006390545
D85: 2011-04-01 | E85: 223971.6041 | F85: 226.1624434 | G85: -1.000984412 | H85: 0.3305304088
D86: 2011-05-01 | E86: 220916.1151 | F86: 223.1024502 | G86: -1.364230533 | H86: -1.145420772
D87: 2011-06-01 | E87: 219251.3711 | F87: 221.4193565 | G87: -0.7535638446 | H87: -2.283225969
D88: 2011-07-01 | E88: 220479.1792 | F88: 222.7809651 | G88: 0.5600001901 | H88: -2.047556131
D89: 2011-08-01 | E89: 222149.5813 | F89: 224.5134764 | G89: 0.757623509 | H89: -1.628150333
D90: 2011-09-01 | E90: 222157.4896 | F90: 224.4719429 | G90: 0.00355987257 | H90: -1.581311227
D91: 2011-10-01 | E91: 222484.0999 | F91: 224.8405596 | G91: 0.1470174887 | H91: -1.06565012
D92: 2011-11-01 | E92: 221201.2228 | F92: 223.5791883 | G92: -0.5766152066 | H92: -0.9596378554
D93: 2011-12-01 | E93: 221301.3646 | F93: 223.8222335 | G93: 0.04527182396 | H93: =+E93/E81*100-100 -> -0.9533780216
D94: 2012-01-01 | E94: 222024.7854 | F94: 224.583729 | G94: 0.3268939783 | H94: =+E94/E82*100-100 -> -0.8939414972
D95: 2012-02-01 | E95: 222809.4169 | F95: 225.4728947 | G95: 0.353398137 | H95: =+E95/E83*100-100 -> -1.358886429
D96: 2012-03-01 | E96: 224847.5393 | F96: 227.4658434 | G96: 0.9147380186 | H96: =+E96/E84*100-100 -> -0.6138070935
D97: 2012-04-01 | E97: 225896.647 | F97: 228.5751607 | G97: 0.4665862156 | H97: 0.8595030867
D98: 2012-05-01 | E98: 228282.3298 | F98: 231.1096648 | G98: 1.05609483 | H98: 3.334394444
D99: 2012-06-01 | E99: 228302.0513 | F99: 231.2511358 | G99: 0.008639090609 | H99: 4.1279925
D100: 2012-07-01 | E100: 228130.6412 | F100: 231.2817902 | G100: -0.07508039621 | H100: 3.470378474
D101: 2012-08-01 | E101: 227557.7694 | F101: 230.6121911 | G101: -0.2511156805 | H101: 2.434480424
D102: 2012-09-01 | E102: 227901.4697 | F102: 231.1264234 | G102: 0.1510387084 | H102: 2.585544226
D103: 2012-10-01 | E103: 228272.1033 | F103: 231.5027243 | G103: 0.1626288939 | H103: 2.601535761
D104: 2012-11-01 | E104: 228471.7053 | F104: 231.7470449 | G104: 0.08744036147 | H104: 3.286818416
D105: 2012-12-01 | E105: 229216.7912 | F105: 232.3455764 | G105: =+E105/E104*100-100 -> 0.3261173568 | H105: =+E105/E93*100-100 -> 3.576763568
D106: 2013-01-01 | E106: 230124.6028 | F106: 233.2596034 | G106: 0.3960493719 | H106: =+E106/E94*100-100 -> 3.648159099
D107: 2013-02-01 | E107: 232110.5173 | F107: 235.1989609 | G107: 0.8629735624 | H107: =+E107/E95*100-100 -> 4.174464692
D108: 2013-03-01 | E108: 233084.8038 | F108: 236.286859 | G108: 0.4197511008 | H108: =+E108/E96*100-100 -> 3.663488811
D109: 2013-04-01 | E109: 233726.1047 | F109: 236.8967075 | G109: 0.2751363259 | H109: 3.465946879
D110: 2013-05-01 | E110: 233512.2739 | F110: 236.8215354 | G110: -0.09148780381 | H110: 2.290998213
D111: 2013-06-01 | E111: 233765.3483 | F111: 237.0157063 | G111: 0.1083773771 | H111: 2.393012689
D112: 2013-07-01 | E112: 234649.6837 | F112: 237.8880934 | G112: 0.3783004586 | H112: 2.857591813
D113: 2013-08-01 | E113: 236237.0548 | F113: 239.4931005 | G113: 0.6764855059 | H113: 3.814102002
D114: 2013-09-01 | E114: 237775.8807 | F114: 240.7860848 | G114: 0.6513905671 | H114: =+E114/E102*100-100 -> 4.332754425
D115: 2013-10-01 | E115: 239310.3711 | F115: 242.1151601 | G115: 0.6453515741 | H115: 4.835574563
D116: 2013-11-01 | E116: 240515.3182 | F116: 242.8982552 | G116: 0.5035080856 | H116: 5.271380482
D117: 2013-12-01 | E117: 242810.653 | F117: 244.0571436 | G117: 0.9543404073 | H117: 5.930569829
D118: 2014-01-01 | E118: 246332.9364 | F118: 247.8155064 | G118: =+E118/E117*100-100 -> 1.450629675 | H118: 7.043285848
D119: 2014-02-01 | E119: 248753.0461 | F119: 250.1686227 | G119: 0.9824547527 | H119: 7.170088169
D120: 2014-03-01 | E120: 251406.9511 | F120: 252.7688035 | G120: 1.066883439 | H120: =+E120/E108*100-100 -> 7.860721526
D121: 2014-04-01 | E121: 252880.0156 | F121: 254.3262087 | G121: 0.5859283044 | H121: 8.195024208
D122: 2014-05-01 | E122: 255587.8196 | F122: 257.2464787 | G122: 1.070786083 | H122: 9.453698254
D123: 2014-06-01 | E123: 257885.4539 | F123: 260.069332 | G123: 0.8989607951 | H123: 10.31808424
D124: 2014-07-01 | E124: 259516.3382 | F124: 261.52957 | G124: =+E124/E123*100-100 -> 0.6324064673 | H124: 10.59735265
D125: 2014-08-01 | E125: 261463.5091 | F125: 263.4723034 | G125: 0.7503076525 | H125: 10.67844938
D126: 2014-09-01 | E126: 263004.3335 | F126: 264.9046899 | G126: 0.589307605 | H126: =+E126/E114*100-100 -> 10.61018161
D127: 2014-10-01 | E127: 264015.4831 | F127: 266.0700496 | G127: 0.3844611939 | H127: 10.32346065
D128: 2014-11-01 | E128: 263997.0974 | F128: 266.3469179 | G128: -0.006963865843 | H128: 9.763111728
D129: 2014-12-01 | E129: 264169.6851 | F129: 265.6588618 | G129: 0.06537483268 | H129: 8.796579459
D130: 2015-01-01 | E130: 265578.7657 | F130: 266.9283519 | G130: =+E130/E129*100-100 -> 0.5333998317 | H130: 7.812933819
D131: 2015-02-01 | E131: 266724.054 | F131: 267.8797863 | G131: 0.4312424015 | H131: 7.224437324
D132: 2015-03-01 | E132: 267320.6428 | F132: 268.3067829 | G132: 0.2236726689 | H132: =+E132/E120*100-100 -> 6.329853487
D133: 2015-04-01 | E133: 268109.7276 | F133: 269.154968 | G133: 0.2951828842 | H133: 6.022505149
D134: 2015-05-01 | E134: 269302.1088 | F134: 270.3396122 | G134: 0.4447362902 | H134: 5.365783558
D135: 2015-06-01 | E135: 270929.9059 | F135: 272.1630768 | G135: 0.6044501801 | H135: 5.058234883
D136: 2015-07-01 | E136: 272042.6814 | F136: 273.2768059 | G136: =+E136/E135*100-100 -> 0.4107244959 | H136: 4.826803305
D137: 2015-08-01 | E137: 274765.7707 | F137: 276.2881506 | G137: 1.000978721 | H137: 5.087616869
D138: 2015-09-01 | E138: 276827.7742 | F138: 278.1160951 | G138: 0.7504586402 | H138: =+E138/E126*100-100 -> 5.255974507
D139: 2015-10-01 | E139: 279786.032 | F139: 280.4862979 | G139: 1.068627515 | H139: 5.973342434
D140: 2015-11-01 | E140: 280434.6116 | F140: 280.2939328 | G140: 0.2318127395 | H140: 6.226399606
D141: 2015-12-01 | E141: 282603.6731 | F141: 281.1992468 | G141: 0.7734642426 | H141: 6.978086079
D142: 2016-01-01 | E142: 284973.0847 | F142: 283.6070224 | G142: =+E142/E141*100-100 -> 0.838422084 | H142: 7.30266176
D143: 2016-02-01 | E143: 290941.087 | F143: 289.6191685 | G143: 2.094233683 | H143: 9.079433477
D144: 2016-03-01 | E144: 291502.7618 | F144: 290.0568499 | G144: 0.1930544672 | H144: =+E144/E132*100-100 -> 9.046109852
D145: 2016-04-01 | E145: 291395.508 | F145: 289.886402 | G145: -0.03679339401 | H145: 8.685168074
D146: 2016-05-01 | E146: 289272.2538 | F146: 287.6805537 | G146: -0.7286503 | H146: 7.415517483
D147: 2016-06-01 | E147: 290079.8682 | F147: 288.4834382 | G147: 0.2791883598 | H147: 7.068234965
D148: 2016-07-01 | E148: 290490.8991 | F148: 288.660636 | G148: =+E148/E147*100-100 -> 0.1416957623 | H148: 6.781368878
D149: 2016-08-01 | E149: 291416.1739 | F149: 289.259014 | G149: 0.3185210871 | H149: 6.05985349
D150: 2016-09-01 | E150: 293367.862 | F150: 289.7113087 | G150: 0.66972539 | H150: 5.974865721
D151: 2016-10-01 | E151: 296141.9061 | F151: 290.7009058 | G151: 0.9455855473 | H151: =+E151/E139*100-100 -> 5.84585085
D152: 2016-11-01 | E152: 297874.6128 | F152: 290.463393 | G152: 0.5850933964 | H152: 6.218918947
D153: 2016-12-01 | E153: 300115.5783 | F153: 291.3745783 | G153: 0.7523183792 | H153: 6.196630434
D154: 2017-01-01 | E154: 302504.8159 | F154: =F153*E154/E153 -> 293.6942283 | G154: =+E154/E153*100-100 -> 0.7961058213 | H154: 6.15206563
D155: 2017-02-01 | E155: 304385.3892 | F155: =F154*E155/E154 -> 295.520029 | G155: =+E155/E154*100-100 -> 0.6216672247 | H155: 4.620970624
D156: 2017-03-01 | E156: 305358.4094 | F156: =F155*E156/E155 -> 296.4647096 | G156: =+E156/E155*100-100 -> 0.319667176 | H156: =+E156/E144*100-100 -> 4.753178835
D157: 2017-04-01 | E157: 303929.328 | F157: =F156*E157/E156 -> 295.0772509 | G157: =+E157/E156*100-100 -> -0.4680013059 | H157: =+E157/E145*100-100 -> 4.301308581
D158: 2017-05-01 | E158: 301789.564 | F158: =F157*E158/E157 -> 292.9998084 | G158: =+E158/E157*100-100 -> -0.7040334023 | H158: =+E158/E146*100-100 -> 4.327172787
D159: 2017-06-01 | E159: 299274.0874 | F159: =F158*E159/E158 -> 290.5575962 | G159: =+E159/E158*100-100 -> -0.8335200917 | H159: =+E159/E147*100-100 -> 3.169547473
D160: 2017-07-01 | E160: 298062.6996 | F160: =F159*E160/E159 -> 289.3814906 | G160: =+E160/E159*100-100 -> -0.4047753797 | H160: =+E160/E148*100-100 -> 2.606553408
D161: 2017-08-01 | E161: 297397.5867 | F161: =F160*E161/E160 -> 288.7357494 | G161: =+E161/E160*100-100 -> -0.2231452854 | H161: =+E161/E149*100-100 -> 2.052532884

Sheet REGIONS
B2: LSL ACADATA E&W HPI NATIONAL AND REGIONAL FORMATTED DATA FROM 2005
B3: A TRUE MEASURE OF HOUSE PRICE INFLATION | J3: =SERIES!$K$2 -> 20th September 2017
B4: For data prior to 2005 please see | E4: APAT LGA | J4: =SERIES!$K$3 -> AUGUST 2017
J5: © Acadata Limited
B6: In these LSL Acadata Data Series, new weights have been adopted from April 2004 and prices on and after this date have been recalculated based on these new weights. | J6: LSL Acadata E&W HPI clb/cms
A10: Region | B10: North East | E10: North West | H10: Yorks & Humber | K10: East Midlands | N10: West Midlands | Q10: East of England | T10: Greater London | W10: South East | Z10: South West | AC10: Wales | AF10: ENGLAND & WALES
A11: Month | B11: Ave HP | C11: monthly % | D11: annual % | E11: Ave HP | F11: monthly % | G11: annual % | H11: Ave HP | I11: monthly % | J11: annual % | K11: Ave HP | L11: monthly % | M11: annual % | N11: Ave HP | O11: monthly % | P11: annual % | Q11: Ave HP | R11: monthly % | S11: annual % | T11: Ave HP | U11: monthly % | V11: annual % | W11: Ave HP | X11: monthly % | Y11: annual % | Z11: Ave HP | AA11: monthly % | AB11: annual % | AC11: Ave HP | AD11: monthly % | AE11: annual % | AF11: Ave HP | AG11: monthly % | AH11: annual %
A12: 2005-01-01 | B12: 132803.7407 | C12: 1.772830195 | D12: 18.48101401 | E12: 146511.8127 | F12: 0.600356479 | G12: 17.78357144 | H12: 145958.6683 | I12: 1.237439533 | J12: 19.26776708 | K12: 160374.153 | L12: 0.8405658562 | M12: 14.9641348 | N12: 165893.8457 | O12: -0.0351818602 | P12: 12.69392321 | Q12: 201455.6353 | R12: 0.4199920291 | S12: 11.41429239 | T12: 277131.358 | U12: 0.2540949451 | V12: 7.494618036 | W12: 233348.1882 | X12: 0.3703155186 | Y12: 9.264673338 | Z12: 203615.7299 | AA12: -0.1328890637 | AB12: 12.73856163 | AC12: 144253.3579 | AD12: 0.02549256003 | AE12: 19.8264911 | AF12: 193812.6714 | AG12: 0.3975809958 | AH12: 12.16460311
A13: 2005-02-01 | B13: 134366.1028 | C13: =B13/B12*100-100 -> 1.176444369 | D13: 18.30861865 | E13: 149168.8676 | F13: =E13/E12*100-100 -> 1.81354311 | G13: 18.03404679 | H13: 146987.9717 | I13: =H13/H12*100-100 -> 0.7052019735 | J13: 17.75555438 | K13: 160677.3176 | L13: =K13/K12*100-100 -> 0.1890357773 | M13: 13.42382075 | N13: 167363.6234 | O13: =N13/N12*100-100 -> 0.8859748109 | P13: 12.31271902 | Q13: 202948.1674 | R13: =Q13/Q12*100-100 -> 0.740873877 | S13: 10.48672756 | T13: 277734.4424 | U13: =T13/T12*100-100 -> 0.2176167926 | V13: 7.104502308 | W13: 233649.5936 | X13: =W13/W12*100-100 -> 0.1291655359 | Y13: 7.818809311 | Z13: 204830.5777 | AA13: 0.591030347 | AB13: 11.70586675 | AC13: 145337.8195 | AD13: =AC13/AC12*100-100 -> 0.7517755987 | AE13: 18.69345868 | AF13: 194920.2681 | AG13: =AF13/AF12*100-100 -> 0.5714779751 | AH13: 11.29166554
A14: 2005-03-01 | B14: 135439.1112 | C14: 0.7985707997 | D14: 16.94017228 | E14: 148857.6945 | F14: -0.2086045765 | G14: 16.18683926 | H14: 147185.195 | I14: 0.1341764964 | J14: 15.13805268 | K14: 159332.087 | L14: -0.8372249569 | M14: 11.52745079 | N14: 166354.504 | O14: -0.6029502327 | P14: 10.16496906 | Q14: 202502.9802 | R14: -0.219360079 | S14: 9.241965969 | T14: 278920.8091 | U14: 0.4271586704 | V14: 5.937696953 | W14: 234168.1608 | X14: 0.2219422665 | Y14: 7.041688038 | Z14: 204160.0458 | AA14: -0.3364909269 | AB14: 9.785950689 | AC14: 144796.5849 | AD14: -0.372397575 | AE14: 15.9720644 | AF14: 194824.2126 | AG14: -0.04927937686 | AH14: 9.791118484
A15: 2005-04-01 | B15: 134782.3922 | C15: -0.4848814069 | D15: 13.45398886 | E15: 149174.2559 | F15: 0.2126603853 | G15: 14.38309332 | H15: 146823.6289 | I15: -0.2456538352 | J15: 12.30294915 | K15: 158333.4412 | L15: -0.626769998 | M15: 9.689891892 | N15: 167636.1194 | O15: 0.7704121901 | P15: 9.976861468 | Q15: 203663.6849 | R15: 0.5731790893 | S15: 8.674752231 | T15: 278372.5906 | U15: -0.1965498845 | V15: 4.647429043 | W15: 233909.6002 | X15: -0.1104166591 | Y15: 6.164903474 | Z15: 204060.8537 | AA15: -0.05655692176 | AB15: 8.415305916 | AC15: 145701.9651 | AD15: 0.6252772507 | AE15: 15.56654625 | AF15: 194886.5297 | AG15: 0.03198631636 | AH15: 8.562842682
A16: 2005-05-01 | B16: 134830.3654 | C16: 0.03559310457 | D16: 10.25338807 | E16: 149030.8696 | F16: -0.09611997064 | G16: 11.91155795 | H16: 146481.4604 | I16: -0.2330473239 | J16: 10.32093319 | K16: 158825.0996 | L16: 0.310520845 | M16: 8.320960544 | N16: 167757.2611 | O16: 0.07226466229 | P16: 8.618964473 | Q16: 203415.1359 | R16: -0.1220389525 | S16: 7.412575631 | T16: 277926.2471 | U16: -0.1603403094 | V16: 3.829199637 | W16: 232162.5667 | X16: -0.7468840174 | Y16: 4.676704196 | Z16: 201935.8713 | AA16: -1.033944516 | AB16: 5.519341668 | AC16: 145690.1146 | AD16: -0.008133330038 | AE16: 13.21573783 | AF16: 194252.2826 | AG16: -0.3254443307 | AH16: 6.904158152
A17: 2005-06-01 | B17: 135259.4447 | C17: 0.318236374 | D17: 8.707804251 | E17: 150251.8153 | F17: 0.8192568571 | G17: 9.899140976 | H17: 147307.4562 | I17: 0.5638910344 | J17: 9.725587556 | K17: 159413.4542 | L17: 0.3704418253 | M17: 6.827183596 | N17: 170129.5455 | O17: 1.414117303 | P17: 8.223123059 | Q17: 203028.4153 | R17: -0.1901139448 | S17: 5.987837797 | T17: 277720.7688 | U17: -0.07393268891 | V17: 3.641356459 | W17: 232860.8983 | X17: 0.3007942072 | Y17: 4.072396529 | Z17: 201123.5614 | AA17: -0.3836203743 | AB17: 4.186633946 | AC17: 146885.3338 | AD17: 0.8203845026 | AE17: 11.758673 | AF17: 194754.7329 | AG17: 0.2586586464 | AH17: 5.984653638
A18: 2005-07-01 | B18: 135788.7839 | C18: 0.3913509891 | D18: 8.367772094 | E18: 151458.3002 | F18: 0.8029752648 | G18: 8.549358906 | H18: 147748.914 | I18: 0.2996846408 | J18: 8.132989587 | K18: 160200.0185 | L18: 0.4934115342 | M18: 5.744979395 | N18: 168839.177 | O18: -0.7584623417 | P18: 5.370631331 | Q18: 202404.4559 | R18: -0.3073261744 | S18: 4.684546745 | T18: 278179.4201 | U18: 0.165148355 | V18: 3.424184405 | W18: 232135.118 | X18: -0.3116797776 | Y18: 3.281150279 | Z18: 200682.9788 | AA18: -0.2113758757 | AB18: 2.825158895 | AC18: 148006.1778 | AD18: 0.7630741501 | AE18: 9.583899334 | AF18: 194758.9958 | AG18: 0.002188879882 | AH18: 4.867786593
A19: 2005-08-01 | B19: 136370.624 | C19: 0.4284890928 | D19: 7.745938809 | E19: 151663.6845 | F19: 0.1356045689 | G19: 6.33969727 | H19: 148640.0827 | I19: 0.6031642955 | J19: 6.62348221 | K19: 160267.1696 | L19: 0.04191702174 | M19: 4.471823614 | N19: 168302.5443 | O19: -0.3178366033 | P19: 3.218098322 | Q19: 202563.1946 | R19: 0.0784264864 | S19: 3.966714045 | T19: 278191.0577 | U19: 0.004183513644 | V19: 2.905487355 | W19: 232869.4007 | X19: 0.3163169757 | Y19: 2.752225183 | Z19: 200312.7793 | AA19: -0.184068822 | AB19: 1.683146351 | AC19: 149578.2912 | AD19: 1.062194494 | AE19: 9.134289102 | AF19: 195023.586 | AG19: 0.1358551513 | AH19: 3.86748099
A20: 2005-09-01 | B20: 138030.9152 | C20: 1.217484533 | D20: 7.715876613 | E20: 152323.1506 | F20: 0.4348213546 | G20: 5.833978826 | H20: 150434.4804 | I20: 1.207209825 | J20: 5.99964269 | K20: 161439.2775 | L20: 0.7313462195 | M20: 3.843318532 | N20: 167665.9568 | O20: -0.3782399512 | P20: 2.06520667 | Q20: 203107.174 | R20: 0.2685480051 | S20: 3.33509064 | T20: 279082.5338 | U20: 0.3204545987 | V20: 2.586101071 | W20: 232701.9473 | X20: -0.07190873136 | Y20: 2.37960557 | Z20: 200673.1846 | AA20: 0.1709808307 | AB20: 0.755220855 | AC20: 150506.7052 | AD20: 0.6206876074 | AE20: 7.992515882 | AF20: 195595.5483 | AG20: 0.2932785536 | AH20: 3.286631319
A21: 2005-10-01 | B21: 140283.2275 | C21: 1.631744815 | D21: 8.415104452 | E21: 153076.6318 | F21: 0.4946596524 | G21: 5.664464458 | H21: 151389.2314 | I21: 0.634662337 | J21: 5.782813958 | K21: 161747.6042 | L21: 0.1909861432 | M21: 2.91332077 | N21: 169128.878 | O21: 0.8725213134 | P21: 2.02597193 | Q21: 203781.0532 | R21: 0.3317850184 | S21: 3.014014977 | T21: 281217.06 | U21: 0.7648369244 | V21: 2.646589117 | W21: 233705.0099 | X21: 0.4310503622 | Y21: 1.75706139 | Z21: 201734.4565 | AA21: 0.5251594947 | AB21: 0.1615666871 | AC21: 152164.7037 | AD21: 1.101611064 | AE21: 7.532678557 | AF21: 196735.3151 | AG21: 0.5827160955 | AH21: 2.956577974
A22: 2005-11-01 | B22: 141425.2578 | C22: 0.8140889433 | D22: 8.67943723 | E22: 153614.3882 | F22: 0.351298801 | G22: 6.420242228 | H22: 152192.3186 | I22: 0.5304784426 | J22: 5.783160216 | K22: 162077.515 | L22: 0.2039664402 | M22: 2.696374741 | N22: 170259.6428 | O22: 0.6685817441 | P22: 3.121938651 | Q22: 203539.9853 | R22: -0.118297512 | S22: 2.348011747 | T22: 283293.9305 | U22: 0.7385293231 | V22: 2.720118507 | W22: 234958.0001 | X22: 0.536141774 | Y22: 1.340700205 | Z22: 203363.6042 | AA22: 0.7998031783 | AB22: 0.4095884359 | AC22: 152356.6685 | AD22: 0.1261559757 | AE22: 6.713777122 | AF22: 197690.6237 | AG22: 0.4855806523 | AH22: 2.935999475
A23: 2005-12-01 | B23: 142681.1469 | C23: 0.8880232268 | D23: 9.342282576 | E23: 154612.9327 | F23: 0.6500332014 | G23: 6.162881029 | H23: 153122.7191 | I23: 0.6113320829 | J23: 6.20645008 | K23: 161343.418 | L23: -0.4529295804 | M23: 1.450023327 | N23: 171230.5705 | O23: 0.5702629728 | P23: 3.180638032 | Q23: 205380.0514 | R23: 0.9040317687 | S23: 2.37620356 | T23: 287378.4756 | U23: 1.441804682 | V23: 3.961057276 | W23: 237210.7529 | X23: 0.9587895746 | Y23: 2.031724775 | Z23: 205338.0822 | AA23: 0.9778553549 | AB23: 0.7118705396 | AC23: 153525.294 | AD23: 0.7670326742 | AE23: 6.454666783 | AF23: 199374.641 | AG23: 0.8518448092 | AH23: 3.278756356
A24: 2006-01-01 | B24: 143136.3911 | C24: =B24/B23*100-100 -> 0.3190640201 | D24: =B24/B12*100-100 -> 7.78039114 | E24: 155919.8034 | F24: =E24/E23*100-100 -> 0.8452531608 | G24: =E24/E12*100-100 -> 6.421318854 | H24: 154793.9053 | I24: =H24/H23*100-100 -> 1.091403151 | J24: =H24/H12*100-100 -> 6.053245833 | K24: 161497.9086 | L24: =K24/K23*100-100 -> 0.09575269361 | M24: =K24/K12*100-100 -> 0.7007086832 | N24: 172652.2158 | O24: =N24/N23*100-100 -> 0.8302520026 | P24: =N24/N12*100-100 -> 4.073912484 | Q24: 205681.4024 | R24: =Q24/Q23*100-100 -> 0.1467284577 | S24: =Q24/Q12*100-100 -> 2.097616733 | T24: 288882.1359 | U24: =T24/T23*100-100 -> 0.5232334241 | V24: =T24/T12*100-100 -> 4.24014733 | W24: 238900.4516 | X24: =W24/W23*100-100 -> 0.7123196145 | Y24: =W24/W12*100-100 -> 2.379389994 | Z24: 205731.579 | AA24: =Z24/Z23*100-100 -> 0.1916336112 | AB24: =Z24/Z12*100-100 -> 1.039138299 | AC24: 153174.3133 | AD24: =AC24/AC23*100-100 -> -0.2286142322 | AE24: =AC24/AC12*100-100 -> 6.184227186 | AF24: 200380.2748 | AG24: =AF24/AF23*100-100 -> 0.5043940405 | AH24: =AF24/AF12*100-100 -> 3.388634685
A25: 2006-02-01 | B25: 145013.8144 | C25: 1.311632412 | D25: 7.924403121 | E25: 156783.714 | F25: 0.5540736913 | G25: 5.104849625 | H25: 156210.7207 | I25: 0.9152914506 | J25: 6.274492308 | K25: 162407.719 | L25: 0.563357355 | M25: 1.076941949 | N25: 173978.6922 | O25: 0.7682938974 | P25: 3.952512923 | Q25: 207730.6782 | R25: 0.9963350313 | S25: 2.356518348 | T25: 291796.5051 | U25: 1.008843685 | V25: 5.063132455 | W25: 240740.0353 | X25: 0.7700210181 | Y25: 3.034647561 | Z25: 207246.5789 | AA25: 0.7363963879 | AB25: 1.179511941 | AC25: 155139.1647 | AD25: 1.282755142 | AE25: 6.743836702 | AF25: 202077.1288 | AG25: 0.8468168762 | AH25: 3.671686238
A26: 2006-03-01 | B26: 144747.7615 | C26: -0.1834672738 | D26: 6.872941061 | E26: 158701.5884 | F26: 1.223261208 | G26: 6.612955984 | H26: 157102.9405 | I26: 0.5711642409 | J26: 6.738276526 | K26: 164001.1178 | L26: 0.9811102802 | M26: 2.930377022 | N26: 174632.8706 | O26: 0.3760106433 | P26: 4.976340525 | Q26: 208934.5493 | R26: 0.579534555 | S26: 3.176036777 | T26: 292154.0292 | U26: 0.1225251756 | V26: 4.744436301 | W26: 242298.0215 | X26: 0.6471653771 | Y26: 3.471804458 | Z26: 208704.6049 | AA26: 0.7035223619 | AB26: 2.225978696 | AC26: 156065.0992 | AD26: 0.5968412511 | AE26: 7.782306649 | AF26: 203236.201 | AG26: 0.5735790998 | AH26: 4.317732492
A27: 2006-04-01 | B27: 145136.9771 | C27: 0.2688922933 | D27: 7.682446324 | E27: 158970.6421 | F27: 0.1695343485 | G27: 6.56707561 | H27: 157238.4647 | I27: 0.0862645938 | J27: 7.093432992 | K27: 164477.3141 | L27: 0.2903616073 | M27: 3.880338113 | N27: 175374.8143 | O27: 0.4248591318 | P27: 4.616364866 | Q27: 211618.0513 | R27: 1.284374464 | S27: 3.905638056 | T27: 295139.8254 | U27: 1.021993824 | V27: 6.023306658 | W27: 244059.5557 | X27: 0.7270113875 | Y27: 4.339264189 | Z27: 210312.9961 | AA27: 0.7706543704 | AB27: 3.063861731 | AC27: 155548.541 | AD27: -0.3309889617 | AE27: 6.758025465 | AF27: 204573.0777 | AG27: 0.6577945894 | AH27: 4.970352743
A28: 2006-05-01 | B28: 144770.8418 | C28: -0.252268813 | D28: 7.37257986 | E28: 159929.8443 | F28: 0.6033832689 | G28: 7.313232963 | H28: 157370.1508 | I28: 0.08374930926 | J28: 7.433493885 | K28: 165006.2665 | L28: 0.3215959893 | M28: 3.891807395 | N28: 175713.3364 | O28: 0.1930277835 | P28: 4.742611622 | Q28: 212277.758 | R28: 0.3117440385 | S28: 4.356913773 | T28: 297021.3397 | U28: 0.6374992966 | V28: 6.870561081 | W28: 245617.2441 | X28: 0.6382411171 | Y28: 5.795368976 | Z28: 211107.6249 | AA28: 0.3778315559 | AB28: 4.541913983 | AC28: 155272.9911 | AD28: -0.1771472104 | AE28: 6.577574907 | AF28: 205426.8739 | AG28: 0.4173551217 | AH28: 5.752617785
A29: 2006-06-01 | B29: 145446.8973 | C29: 0.4669832424 | D29: 7.531786556 | E29: 159723.6208 | F29: -0.1289462498 | G29: 6.30395414 | H29: 156939.1959 | I29: -0.273847905 | J29: 6.538528303 | K29: 165583.5445 | L29: 0.349852135 | M29: 3.870495343 | N29: 176782.333 | O29: 0.6083753103 | P29: 3.910424517 | Q29: 213292.0284 | R29: 0.4778034641 | S29: 5.05525942 | T29: 299010.8488 | U29: 0.6698202709 | V29: 7.666002133 | W29: 246163.8923 | X29: 0.2225610188 | Y29: 5.712850098 | Z29: 211578.843 | AA29: 0.2232122533 | AB29: 5.198436987 | AC29: 155721.7409 | AD29: 0.2890070128 | AE29: 6.015853936 | AF29: 206081.003 | AG29: 0.3184243067 | AH29: 5.815658475
A30: 2006-07-01 | B30: 144846.2608 | C30: -0.4129593195 | D30: 6.67026887 | E30: 160569.6374 | F30: 0.5296753555 | G30: 6.015739819 | H30: 157430.3986 | I30: 0.3129891787 | J30: 6.55266041 | K30: 166457.77 | L30: 0.527966425 | M30: 3.906211452 | N30: 176903.261 | O30: 0.06840503849 | P30: 4.776192446 | Q30: 213777.5869 | R30: 0.2276496267 | S30: 5.619012195 | T30: 300760.9459 | U30: 0.585295497 | V30: 8.117611937 | W30: 247659.0337 | X30: 0.6073764028 | Y30: 6.687448205 | Z30: 212289.7019 | AA30: 0.3359782443 | AB30: 5.783611124 | AC30: 156854.245 | AD30: 0.7272614017 | AE30: 5.978174269 | AF30: 206962.3709 | AG30: 0.4276803159 | AH30: 6.265885185
A31: 2006-08-01 | B31: 144324.9723 | C31: -0.3598908837 | D31: 5.832889907 | E31: 162074.3575 | F31: 0.937113677 | G31: 6.864314923 | H31: 158345.0223 | I31: 0.5809701925 | J31: 6.529153787 | K31: 166719.4783 | L31: 0.1572220287 | M31: 4.025970317 | N31: 178097.7213 | O31: 0.6752053807 | P31: 5.81998157 | Q31: 216267.9981 | R31: 1.164954282 | S31: 6.765692819 | T31: 302650.9554 | U31: 0.6284092237 | V31: 8.792481635 | W31: 248462.378 | X31: 0.3243751004 | Y31: 6.696018105 | Z31: 213157.0407 | AA31: 0.4085637883 | AB31: 6.412102848 | AC31: 157627.7735 | AD31: 0.493151135 | AE31: 5.381450869 | AF31: 208136.8675 | AG31: 0.5674928399 | AH31: 6.723946496
A32: 2006-09-01 | B32: 145850.3475 | C32: 1.056903118 | D32: 5.664986157 | E32: 163082.7669 | F32: 0.6221893922 | G32: 7.063677621 | H32: 160378.4739 | I32: 1.28419042 | J32: 6.610182378 | K32: 168471.5465 | L32: 1.050907949 | M32: 4.355983964 | N32: 179114.7201 | O32: 0.5710341431 | P32: 6.82831717 | Q32: 217398.0289 | R32: 0.5225140923 | S32: 7.036115258 | T32: 305957.8852 | U32: 1.092654688 | V32: 9.62989375 | W32: 250571.2369 | X32: 0.8487638693 | Y32: 7.679045992 | Z32: 214726.7128 | AA32: 0.7363923129 | AB32: 7.003191879 | AC32: 158585.047 | AD32: 0.6073000205 | AE32: 5.367429863 | AF32: 209880.7323 | AG32: 0.8378452048 | AH32: 7.303430017
A33: 2006-10-01 | B33: 147378.3922 | C33: 1.047679851 | D33: =B33/B21*100-100 -> 5.057742658 | E33: 164907.2192 | F33: 1.118727803 | G33: =E33/E21*100-100 -> 7.728539133 | H33: 162653.9483 | I33: 1.41881533 | J33: 7.440897081 | K33: 169114.4184 | L33: 0.3815907873 | M33: =K33/K21*100-100 -> 4.554512155 | N33: 180162.6156 | O33: 0.585041512 | P33: =N33/N21*100-100 -> 6.523863757 | Q33: 219456.9384 | R33: 0.9470690723 | S33: =Q33/Q21*100-100 -> 7.692513575 | T33: 308498.2983 | U33: 0.8303146139 | V33: =T33/T21*100-100 -> 9.701132015 | W33: 252793.9699 | X33: 0.8870663234 | Y33: =W33/W21*100-100 -> 8.167972111 | Z33: 217842.819 | AA33: 1.451196325 | AB33: =Z33/Z21*100-100 -> 7.984933608 | AC33: 161707.0508 | AD33: 1.968662173 | AE33: =AC33/AC21*100-100 -> 6.271064789 | AF33: 211961.3633 | AG33: 0.9913396908 | AH33: =AF33/AF21*100-100 -> 7.739356934
A34: 2006-11-01 | B34: 149310.1502 | C34: 1.310747132 | D34: 5.575307105 | E34: 165046.2512 | F34: 0.0843092206 | G34: 7.441922041 | H34: 163881.1959 | I34: 0.7545145047 | J34: 7.680333278 | K34: 170693.8161 | L34: 0.9339225402 | M34: 5.316160686 | N34: 180705.9993 | O34: 0.3016073644 | P34: 6.135544699 | Q34: 219737.1534 | R34: 0.1276856777 | S34: 7.957732803 | T34: 313188.1949 | U34: 1.520234208 | V34: 10.55238437 | W34: 254886.0811 | X34: 0.8275953524 | Y34: 8.481550313 | Z34: 220234.3851 | AA34: 1.09784023 | AB34: 8.295870318 | AC34: 163272.5556 | AD34: 0.9681116219 | AE34: 7.164692655 | AF34: 213687.0289 | AG34: 0.8141415622 | AH34: 8.091635748
A35: 2006-12-01 | B35: 150112.7162 | C35: 0.5375160443 | D35: 5.208515267 | E35: 166876.2416 | F35: 1.108774284 | G35: 7.931619083 | H35: 164966.7273 | I35: 0.6623891852 | J35: 7.734977677 | K35: 170924.0444 | L35: 0.1348779208 | M35: 5.938033625 | N35: 181956.8603 | O35: 0.6922077624 | P35: 6.264237577 | Q35: 221892.1295 | R35: 0.9807062788 | S35: 8.039767249 | T35: 318926.0055 | U35: 1.832064763 | V35: 10.97769406 | W35: 257371.7018 | X35: 0.9751889013 | Y35: 8.499171606 | Z35: 223478.2657 | AA35: 1.472921947 | AB35: 8.834300632 | AC35: 163962.0995 | AD35: 0.4223269289 | AE35: 6.798101675 | AF35: 215979.4554 | AG35: 1.072796317 | AH35: 8.328448569
A36: 2007-01-01 | B36: 152139.3184 | C36: 1.350053625 | D36: 6.289754279 | E36: 167263.7663 | F36: 0.232222804 | G36: 7.275511265 | H36: 165222.908 | I36: 0.1552923527 | J36: 6.73734709 | K36: 172827.226 | L36: 1.113466318 | M36: 7.015148061 | N36: 183687.2583 | O36: 0.9509935811 | P36: 6.391486211 | Q36: 223633.601 | R36: 0.7848279583 | S36: 8.728158398 | T36: 324693.2205 | U36: 1.808323858 | V36: 12.39643447 | W36: 259833.063 | X36: 0.9563448936 | Y36: 8.762064375 | Z36: 224046.3442 | AA36: 0.2541985452 | AB36: 8.902262502 | AC36: 164458.0187 | AD36: 0.3024596188 | AE36: 7.366578084 | AF36: 217902.4075 | AG36: 0.8903402534 | AH36: 8.744439879
A37: 2007-02-01 | B37: 153055.7939 | C37: 0.6023922961 | D37: 5.545664426 | E37: 169786.2391 | F37: 1.508080854 | G37: 8.293288093 | H37: 166208.6754 | I37: 0.5966287897 | J37: 6.400299983 | K37: 174688.7647 | L37: 1.077109603 | M37: 7.561860843 | N37: 184087.7825 | O37: 0.2180467954 | P37: 5.810533565 | Q37: 226661.3749 | R37: 1.353899375 | S37: 9.113096253 | T37: 330435.5615 | U37: 1.768543539 | V37: 13.24178179 | W37: 263514.6121 | X37: 1.416890152 | Y37: 9.460236527 | Z37: 226714.8734 | AA37: 1.19106126 | AB37: 9.393783293 | AC37: 165404.7412 | AD37: 0.5756621219 | AE37: 6.617011607 | AF37: 220599.4872 | AG37: 1.237746628 | AH37: 9.165984536
A38: 2007-03-01 | B38: 152749.5895 | C38: -0.2000606498 | D38: 5.528118646 | E38: 170515.813 | F38: 0.4297014209 | G38: 7.444301431 | H38: 166209.6346 | I38: 0.0005771123627 | J38: 5.796641448 | K38: 175398.6048 | L38: 0.4063456212 | M38: 6.949639844 | N38: 184581.7061 | O38: 0.2683087397 | P38: 5.697000503 | Q38: 228815.7389 | R38: 0.9504768953 | S38: 9.515510795 | T38: 334011.8465 | U38: 1.082294209 | V38: 14.32731129 | W38: 266043.6113 | X38: 0.9597187703 | Y38: 9.800158354 | Z38: 227753.263 | AA38: 0.4580156449 | AB38: 9.127090451 | AC38: 165980.4821 | AD38: 0.348080066 | AE38: 6.353363426 | AF38: 222081.4783 | AG38: 0.6718017232 | AH38: 9.272598713
A39: 2007-04-01 | B39: 152273.7092 | C39: -0.311542812 | D39: 4.917239008 | E39: 171370.7943 | F39: 0.5014088051 | G39: 7.80027812 | H39: 167810.4817 | I39: 0.9631493723 | J39: 6.723556493 | K39: 175844.3667 | L39: 0.2541422007 | M39: 6.911015469 | N39: 185090.3098 | O39: 0.2755439439 | P39: 5.539846511 | Q39: 230236.8715 | R39: 0.6210816599 | S39: 8.798313788 | T39: 337897.6207 | U39: 1.163364196 | V39: 14.48730115 | W39: 268733.6219 | X39: 1.01111641 | Y39: 10.10985459 | Z39: 231730.8719 | AA39: 1.746455319 | AB39: 10.18380998 | AC39: 165428.8792 | AD39: -0.3323299779 | AE39: 6.351932474 | AF39: 223953.099 | AG39: 0.8427630531 | AH39: 9.473397715
A40: 2007-05-01 | B40: 152271.3905 | C40: -0.001522697807 | D40: 5.180980246 | E40: 171248.8609 | F40: -0.07115179401 | G40: 7.077488637 | H40: 168349.0333 | I40: 0.3209284675 | J40: 6.976470712 | K40: 176823.3036 | L40: 0.55670643 | M40: 7.16156866 | N40: 185761.029 | O40: 0.3623740085 | P40: 5.718229927 | Q40: 231439.3472 | R40: 0.5222776356 | S40: 9.026658939 | T40: 341679.242 | U40: 1.119161854 | V40: 15.03525044 | W40: 269562.8081 | X40: 0.3085532191 | Y40: 9.749137969 | Z40: 233490.9713 | AA40: 0.7595446054 | AB40: 10.60281284 | AC40: 165190.7125 | AD40: -0.1439692407 | AE40: 6.387280504 | AF40: 225087.8532 | AG40: 0.5066927964 | AH40: 9.570792222
A41: 2007-06-01 | B41: 153254.6896 | C41: 0.6457543283 | D41: 5.368139424 | E41: 171391.1758 | F41: 0.08310415389 | G41: 7.304840045 | H41: 168791.4772 | I41: 0.262813436 | J41: 7.552148556 | K41: 177287.8409 | L41: 0.2627127085 | M41: 7.068514236 | N41: 186412.3213 | O41: 0.3506076034 | P41: 5.447370313 | Q41: 232338.8327 | R41: 0.3886485123 | S41: 8.929918503 | T41: 347920.5682 | U41: 1.826662382 | V41: 16.35717216 | W41: 272609.5406 | X41: 1.130249593 | Y41: 10.74310617 | Z41: 234731.0312 | AA41: 0.5310954528 | AB41: 10.94258191 | AC41: 166175.1891 | AD41: 0.5959636346 | AE41: 6.712902237 | AF41: 226902.6106 | AG41: 0.8062440494 | AH41: 10.10360358
A42: 2007-07-01 | B42: 152746.8802 | C42: -0.3313499891 | D42: 5.454486235 | E42: 171923.4035 | F42: 0.3105339157 | G42: 7.070929639 | H42: 167860.8829 | I42: -0.5513277388 | J42: 6.625457583 | K42: 177587.789 | L42: 0.1691870678 | M42: 6.686391986 | N42: 185797.9573 | O42: -0.3295726396 | P42: 5.028000188 | Q42: 233202.3412 | R42: 0.3716591263 | S42: 9.086431632 | T42: 352660.0786 | U42: 1.362239235 | V42: 17.25594147 | W42: 273085.2262 | X42: 0.1744933724 | Y42: 10.26661217 | Z42: 234766.1741 | AA42: 0.01497155859 | AB42: 10.58764133 | AC42: 167357.0172 | AD42: 0.7111940647 | AE42: 6.69588011 | AF42: 227677.181 | AG42: 0.3413668741 | AH42: 10.00897408
A43: 2007-08-01 | B43: 152399.7816 | C43: -0.2272377343 | D43: 5.594880197 | E43: 172625.2614 | F43: 0.4082387287 | G43: 6.509915654 | H43: 169310.6707 | I43: 0.8636841149 | J43: 6.925161407 | K43: 177580.1323 | L43: -0.004311475755 | M43: 6.514328241 | N43: 187544.3897 | O43: 0.9399631679 | P43: 5.304205047 | Q43: 234824.0438 | R43: 0.695405803 | S43: 8.580116294 | T43: 357525.4564 | U43: 1.379622486 | V43: 18.13128292 | W43: 276233.8298 | X43: 1.152974689 | Y43: 11.17732673 | Z43: 235491.6681 | AA43: 0.3090283519 | AB43: 10.47801533 | AC43: 169104.4305 | AD43: 1.044123134 | AE43: 7.2808597 | AF43: 229556.5296 | AG43: 0.8254444473 | AH43: 10.29114271
A44: 2007-09-01 | B44: 152212.2535 | C44: -0.1230501189 | D44: 4.361940963 | E44: 174506.3219 | F44: 1.089678548 | G44: 7.004759096 | H44: 171416.1366 | I44: 1.243551817 | J44: 6.882259457 | K44: 179589.6946 | L44: 1.131636869 | M44: 6.599421853 | N44: 188910.2158 | O44: 0.7282682072 | P44: 5.468839012 | Q44: 236245.1336 | R44: 0.6051721925 | S44: 8.669400035 | T44: 360132.9773 | U44: 0.7293245342 | V44: 17.70671541 | W44: 278329.3236 | X44: 0.7585941971 | Y44: 11.07792221 | Z44: 237034.209 | AA44: 0.6550299177 | AB44: 10.38878485 | AC44: 170123.014 | AD44: 0.6023399023 | AE44: 7.275570563 | AF44: 231336.8887 | AG44: 0.7755645419 | AH44: 10.22302339
A45: 2007-10-01 | B45: 153258.3156 | C45: 0.6872390992 | D45: 3.989678121 | E45: 174875.4512 | F45: 0.2115277602 | G45: 6.044751745 | H45: 173663.5346 | I45: 1.311077244 | J45: 6.768717508 | K45: 179898.179 | L45: 0.1717717678 | M45: 6.376606235 | N45: 189720.1714 | O45: 0.4287515856 | P45: 5.304960598 | Q45: 237774.6723 | R45: 0.6474370878 | S45: 8.346846559 | T45: 361313.7764 | U45: 0.3278786596 | V45: 17.1201846 | W45: 280374.8338 | X45: 0.7349244569 | Y45: 10.91041211 | Z45: 238575.7566 | AA45: 0.6503481614 | AB45: 9.517384035 | AC45: 171551.7979 | AD45: 0.8398533776 | AE45: 6.088013475 | AF45: 232654.5923 | AG45: 0.5696037529 | AH45: 9.762736297
A46: 2007-11-01 | B46: 154724.5861 | C46: 0.9567314441 | D46: 3.626301298 | E46: 174723.9301 | F46: -0.08664512316 | G46: 5.863616349 | H46: 173867.2893 | I46: 0.1173272708 | J46: 6.093495518 | K46: 179321.3033 | L46: -0.3206679103 | M46: 5.054364208 | N46: 189212.6676 | O46: -0.2675012267 | P46: 4.707463116 | Q46: 236456.7968 | R46: -0.5542539451 | S46: 7.608928698 | T46: 360299.1996 | U46: -0.2808021516 | V46: 15.04239476 | W46: 281203.656 | X46: 0.295612184 | Y46: 10.32523032 | Z46: 238021.1279 | AA46: -0.2324748744 | AB46: 8.076278766 | AC46: 170923.0464 | AD46: -0.3665082335 | AE46: 4.685717572 | AF46: 232386.4572 | AG46: -0.1152502922 | AH46: 8.750848565
A47: 2007-12-01 | B47: 154722.4359 | C47: -0.001389746998 | D47: 3.070838858 | E47: 174198.6141 | F47: -0.3006548861 | G47: 4.387905957 | H47: 173985.3824 | I47: 0.06792139889 | J47: 5.466954007 | K47: 178201.2066 | L47: -0.6246311292 | M47: 4.257541542 | N47: 187936.4072 | O47: -0.6745110537 | P47: 3.286244303 | Q47: 238101.2586 | R47: 0.6954597408 | S47: 7.304959004 | T47: 361225.2599 | U47: 0.2570253518 | V47: 13.26303081 | W47: 281997.1508 | X47: 0.2821779927 | Y47: 9.568048396 | Z47: 238413.3809 | AA47: 0.1647975356 | AB47: 6.683028076 | AC47: 170368.3016 | AD47: -0.3245582381 | AE47: 3.907123688 | AF47: 232602.6854 | AG47: 0.09304683387 | AH47: 7.696671857
A48: 2008-01-01 | B48: 158058.2423 | C48: 2.155994032 | D48: 3.890463031 | E48: 174356.5427 | F48: 0.09066007594 | G48: 4.240473961 | H48: 173693.0785 | I48: -0.1680048344 | J48: 5.126510993 | K48: 178066.5783 | L48: -0.07554845442 | M48: 3.031554919 | N48: 188032.3997 | O48: 0.05107709539 | P48: 2.365510483 | Q48: 238117.0167 | R48: 0.006618253941 | S48: 6.47640413 | T48: 364466.15 | U48: 0.8971936597 | V48: 12.24938709 | W48: 284104.1048 | X48: 0.7471543545 | Y48: 9.34101364 | Z48: 235822.0287 | AA48: -1.086915597 | AB48: 5.255914601 | AC48: 168583.2485 | AD48: -1.047761282 | AE48: 2.508378626 | AF48: 233124.6319 | AG48: 0.2243940107 | AH48: 6.985799104
A49: 2008-02-01 | B49: 160123.2345 | C49: 1.30647546 | D49: 4.617558324 | E49: 175027.4505 | F49: 0.3847907336 | G49: 3.086947133 | H49: 173230.8735 | I49: -0.2661044714 | J49: 4.224928716 | K49: 179111.3692 | L49: 0.58674172 | M49: 2.531705194 | N49: 188614.5973 | O49: 0.3096262382 | P49: 2.459052282 | Q49: 242027.4298 | R49: 1.642223283 | S49: 6.779300152 | T49: 367271.6418 | U49: 0.7697537375 | V49: 11.14773486 | W49: 284359.6515 | X49: 0.08994824922 | Y49: 7.910392247 | Z49: 234534.8634 | AA49: -0.5458206303 | AB49: 3.449262021 | AC49: 168121.6891 | AD49: -0.273787237 | AE49: 1.642605787 | AF49: 234080.4511 | AG49: 0.4100035161 | AH49: 6.111058592
A50: 2008-03-01 | B50: 161318.7515 | C50: 0.7466230758 | D50: 5.60994109 | E50: 173741.4673 | F50: -0.7347322836 | G50: 1.891703952 | H50: 173281.0658 | I50: 0.02897422576 | J50: 4.254525417 | K50: 177718.2283 | L50: -0.7778071035 | M50: 1.32248682 | N50: 189402.6421 | O50: 0.4178069 | P50: 2.6118168 | Q50: 240859.5625 | R50: -0.4825350904 | S50: 5.263546868 | T50: 366025.9726 | U50: -0.3391683597 | V50: 9.584727748 | W50: 283980.3686 | X50: -0.1333814026 | Y50: 6.742036492 | Z50: 233551.7458 | AA50: -0.4191775837 | AB50: 2.545949413 | AC50: 167816.6096 | AD50: -0.1814634528 | AE50: 1.106230969 | AF50: 233443.0188 | AG50: -0.272313329 | AH50: 5.115933384
A51: 2008-04-01 | B51: 159073.5926 | C51: -1.391753246 | D51: 4.46556627 | E51: 173071.2532 | F51: -0.3857537324 | G51: 0.992268773 | H51: 172835.2254 | I51: -0.2572931983 | J51: 2.994296692 | K51: 176863.9353 | L51: -0.4807008094 | M51: 0.5798130551 | N51: 189318.2266 | O51: -0.0445693826 | P51: 2.284245303 | Q51: 240830.5325 | R51: -0.01205267924 | S51: 4.601200915 | T51: 365070.9241 | U51: -0.2609236844 | V51: 8.041874752 | W51: 282901.8623 | X51: -0.3797819928 | Y51: 5.272224719 | Z51: 234790.9897 | AA51: 0.5306078437 | AB51: 1.320548161 | AC51: 167167.5131 | AD51: -0.3867891971 | AE51: 1.050985709 | AF51: 232956.2013 | AG51: -0.2085380249 | AH51: 4.020083858
A52: 2008-05-01 | B52: 157694.0589 | C52: -0.8672298162 | D52: 3.561186655 | E52: 171102.8395 | F52: -1.137342953 | G52: -0.08526855492 | H52: 171201.6686 | I52: -0.9451526726 | J52: 1.694476818 | K52: 174417.3316 | L52: -1.383325387 | M52: -1.360664556 | N52: 187590.3562 | O52: -0.912680423 | P52: 0.984774445 | Q52: 238711.1193 | R52: -0.880043416 | S52: 3.141977452 | T52: 363523.0609 | U52: -0.4239897378 | V52: 6.393077551 | W52: 282552.1568 | X52: -0.1236137135 | Y52: 4.818672425 | Z52: 234879.2158 | AA52: 0.03757644875 | AB52: 0.5945602688 | AC52: 164756.4961 | AD52: -1.442276074 | AE52: -0.2628576741 | AF52: 231559.5176 | AG52: -0.5995477847 | AH52: 2.875172661
A53: 2008-06-01 | B53: 155511.7034 | C53: -1.383917427 | D53: 1.472720858 | E53: 170432.1817 | F53: -0.3919617801 | G53: -0.5595352717 | H53: 168553.7981 | I53: -1.546638251 | J53: -0.1408122226 | K53: 174791.6461 | L53: 0.2146085242 | M53: -1.407989875 | N53: 185537.4741 | O53: -1.094343068 | P53: -0.4693076091 | Q53: 237221.1198 | R53: -0.624185185 | S53: 2.101365073 | T53: 361304.4303 | U53: -0.6103135648 | V53: 3.846815454 | W53: 279974.1874 | X53: -0.9123870871 | Y53: 2.701536692 | Z53: 232598.8653 | AA53: -0.9708609302 | AB53: -0.9083442923 | AC53: 163224.6939 | AD53: -0.9297370678 | AE53: -1.77553296 | AF53: 229767.1048 | AG53: -0.7740614027 | AH53: 1.262433313
A54: 2008-07-01 | B54: 151841.2166 | C54: -2.360263997 | D54: -0.5929178837 | E54: 168566.4573 | F54: -1.094701976 | G54: -1.952582489 | H54: 165487.6691 | I54: -1.819080363 | J54: -1.41379802 | K54: 172710.5368 | L54: -1.190622834 | M54: -2.746389392 | N54: 183001.2353 | O54: -1.366968472 | P54: -1.505249043 | Q54: 233387.4392 | R54: -1.61607898 | S54: 0.07937225286 | T54: 356525.4205 | U54: -1.32271001 | V54: 1.09605313 | W54: 275936.9013 | X54: -1.442020822 | Y54: 1.044243641 | Z54: 228963.6046 | AA54: -1.562888382 | AB54: -2.471637782 | AC54: 161522.5139 | AD54: -1.042844655 | AE54: -3.486261545 | AF54: 226463.2666 | AG54: -1.437907398 | AH54: -0.5331735031
A55: 2008-08-01 | B55: 148787.5137 | C55: -2.011115969 | D55: -2.370257972 | E55: 166731.6692 | F55: -1.08846572 | G55: -3.414096084 | H55: 163768.114 | I55: -1.039083497 | J55: -3.273601514 | K55: 170101.5405 | L55: -1.510617896 | M55: -4.211389935 | N55: 180931.9282 | O55: -1.13076127 | P55: -3.52581138 | Q55: 228731.4207 | R55: -1.994973888 | S55: -2.594548255 | T55: 351793.1727 | U55: -1.32732409 | V55: -1.603321835 | W55: 271874.6089 | X55: -1.472181649 | Y55: -1.578090872 | Z55: 225470.8275 | AA55: -1.525472626 | AB55: -4.255284567 | AC55: 161580.5481 | AD55: 0.03592949724 | AE55: -4.449252107 | AF55: 223301.1513 | AG55: -1.396303847 | AH55: -2.724983847
A56: 2008-09-01 | B56: 147337.4275 | C56: -0.9746020328 | D56: -3.202650169 | E56: 164149.5003 | F56: -1.548697318 | G56: -5.934926317 | H56: 161911.885 | I56: -1.133449624 | J56: -5.544548991 | K56: 166627.8628 | L56: -2.042120076 | M56: -7.217469693 | N56: 178207.3536 | O56: -1.5058562 | P56: -5.665581509 | Q56: 223900.9634 | R56: -2.111846853 | S56: -5.225153241 | T56: 344714.8532 | U56: -2.012068462 | V56: -4.281230831 | W56: 267898.4416 | X56: -1.462500442 | Y56: -3.74767627 | Z56: 221598.6176 | AA56: -1.717388442 | AB56: -6.511967823 | AC56: 159541.4331 | AD56: -1.261980489 | AE56: -6.219958512 | AF56: 219530.1654 | AG56: -1.688744465 | AH56: -5.103692411
A57: 2008-10-01 | B57: 145781.5164 | C57: -1.056018941 | D57: -4.878560243 | E57: 160910.0861 | F57: -1.97345355 | G57: -7.985892233 | H57: 160303.4724 | I57: -0.993387555 | J57: -7.693072803 | K57: 164505.6415 | L57: -1.273629308 | M57: -8.556249738 | N57: 175558.7929 | O57: -1.486224113 | P57: -7.464350448 | Q57: 218861.9163 | R57: -2.250569612 | S57: -7.954066652 | T57: 338128.4094 | U57: -1.910693368 | V57: -6.416961817 | W57: 261575.7633 | X57: -2.360102662 | Y57: -6.70497786 | Z57: 218218.1911 | AA57: -1.525472749 | AB57: -8.532956514 | AC57: 157414.2405 | AD57: -1.333316719 | AE57: -8.240984673 | AF57: 215494.5645 | AG57: -1.83828995 | AH57: -7.375752884
A58: 2008-11-01 | B58: 143538.9937 | C58: -1.538276446 | D58: -7.229356859 | E58: 159182.606 | F58: -1.073568578 | G58: -8.894788559 | H58: 157838.5733 | I58: -1.53764548 | J58: -9.218937041 | K58: 162463.8605 | L58: -1.241161709 | M58: -9.400691643 | N58: 172378.9448 | O58: -1.811272477 | P58: -8.896720811 | Q58: 213690.9736 | R58: -2.362650768 | S58: -9.627899672 | T58: 329161.0893 | U58: -2.652045731 | V58: -8.642292377 | W58: 253701.4594 | X58: -3.010333928 | Y58: -9.780170373 | Z58: 214078.0624 | AA58: -1.897242698 | AB58: -10.0592186 | AC58: 154681.9577 | AD58: -1.735727809 | AE58: -9.501988757 | AF58: 210782.1231 | AG58: -2.186802906 | AH58: -9.296726824
A59: 2008-12-01 | B59: 141732.5643 | C59: -1.258493845 | D59: -8.395596624 | E59: 157578.0533 | F59: -1.007994974 | G59: -9.541155576 | H59: 156419.5421 | I59: -0.8990395872 | J59: -10.09615868 | K59: 159951.7249 | L59: -1.546273501 | M59: -10.24094172 | N59: 170347.6928 | O59: -1.178364329 | P59: -9.358864879 | Q59: 211091.2731 | R59: -1.216570112 | S59: -11.34390707 | T59: 326042.6859 | U59: -0.9473791111 | V59: -9.739787843 | W59: 246276.645 | X59: -2.926595056 | Y59: -12.66697403 | Z59: 210318.8143 | AA59: -1.756017419 | AB59: -11.78397223 | AC59: 153271.7836 | AD59: -0.9116604188 | AE59: -10.0350346 | AF59: 207481.7168 | AG59: -1.565790422 | AH59: -10.79994781
A60: 2009-01-01 | B60: 141294.7427 | C60: -0.3089068081 | D60: -10.60590032 | E60: 158182.3176 | F60: 0.3834698354 | G60: -9.276523168 | H60: 155147.7676 | I60: -0.8130534306 | J60: -10.67705809 | K60: 158188.8683 | L60: -1.102117904 | M60: -11.16307745 | N60: 169175.8107 | O60: -0.6879354027 | P60: -10.02837223 | Q60: 211768.5352 | R60: 0.3208384981 | S60: -11.06535011 | T60: 322898.5723 | U60: -0.964325756 | V60: -11.40505851 | W60: 242998.7485 | X60: -1.330981472 | Y60: -14.46841339 | Z60: 206948.3834 | AA60: -1.6025342 | AB60: -12.24382873 | AC60: 154155.9174 | AD60: 0.5768405699 | AE60: -8.557986164 | AF60: 205923.0328 | AG60: -0.7512391845 | AH60: -11.66826468
A61: 2009-02-01 | B61: 141773.3756 | C61: 0.3387478567 | D61: -11.45983525 | E61: 156330.1908 | F61: -1.170881107 | G61: -10.68247279 | H61: 153983.0082 | I61: -0.7507419855 | J61: -11.11110559 | K61: 157461.3942 | L61: -0.4598769093 | M61: -12.08743763 | N61: 168211.0083 | O61: -0.5702957129 | P61: -10.81760865 | Q61: 210841.5617 | R61: -0.4377295352 | S61: -12.88526185 | T61: 320973.0471 | U61: -0.596325097 | V61: -12.60609027 | W61: 241709.8177 | X61: -0.5304269083 | Y61: -14.99855326 | Z61: 205192.6898 | AA61: -0.848372701 | AB61: -12.51079399 | AC61: 153078.0667 | AD61: -0.6991951676 | AE61: -8.948055703 | AF61: 204646.3083 | AG61: -0.6200008173 | AH61: -12.57437032
A62: 2009-03-01 | B62: 141293.9752 | C62: -0.3381456287 | D62: -12.4131734 | E62: 155943.192 | F62: -0.2475521446 | G62: -10.24411477 | H62: 152267.2586 | I62: -1.114246037 | J62: -12.12700709 | K62: 157041.6833 | L62: -0.2665484558 | M62: -11.63445371 | N62: 165824.486 | O62: -1.418767051 | P62: -12.44869443 | Q62: 208291.7845 | R62: -1.209333308 | S62: -13.5214802 | T62: 317290.0662 | U62: -1.147442417 | V62: -13.31487655 | W62: 240039.6259 | X62: -0.6909904711 | Y62: -15.47316207 | Z62: 203638.0786 | AA62: -0.757634775 | AB62: -12.80815397 | AC62: 152153.0431 | AD62: -0.6042822159 | AE62: -9.333740284 | AF62: 202898.3698 | AG62: -0.8541266056 | AH62: -13.08441315
A63: 2009-04-01 | B63: 141691.3113 | C63: 0.2812123575 | D63: -10.92719476 | E63: 154435.3121 | F63: -0.9669418142 | G63: -10.76778536 | H63: 150798.9089 | I63: -0.9643239945 | J63: -12.74989887 | K63: 155938.6553 | L63: -0.7023791232 | M63: -11.83128714 | N63: 165032.9337 | O63: -0.4773434428 | P63: -12.82776272 | Q63: 206218.8993 | R63: -0.9951833533 | S63: -14.37177953 | T63: 316045.6613 | U63: -0.3921978811 | V63: -13.42896945 | W63: 241045.7736 | X63: 0.4191589821 | Y63: -14.79526801 | Z63: 203221.9454 | AA63: -0.2043494318 | AB63: -13.44559448 | AC63: 149505.9679 | AD63: -1.739745182 | AE63: -10.56517794 | AF63: 202052.3913 | AG63: -0.4169468849 | AH63: -13.26593147
A64: 2009-05-01 | B64: 140913.9357 | C64: -0.5486402352 | D64: -10.64093556 | E64: 154365.866 | F64: -0.04496776854 | G64: -9.781820995 | H64: 150499.8405 | I64: -0.1983226394 | J64: -12.09207144 | K64: 155455.2571 | L64: -0.309992559 | M64: -10.87166875 | N64: 165041.9579 | O64: 0.005468165696 | P64: -12.02001994 | Q64: 206380.2284 | R64: 0.07823197465 | S64: -13.54394002 | T64: 319970.5091 | U64: 1.241860997 | V64: -11.98068472 | W64: 240957.4841 | X64: -0.03662769106 | Y64: -14.72106007 | Z64: 205072.97 | AA64: 0.9108389302 | AB64: -12.69003124 | AC64: 148515.9829 | AD64: -0.6621708739 | AE64: -9.857282434 | AF64: 202610.1135 | AG64: 0.2760284735 | AH64: -12.50192799
A65: 2009-06-01 | B65: 141204.0457 | C65: 0.2058774388 | D65: -9.200373553 | E65: 154262.9633 | F65: -0.06666155857 | G65: -9.487186204 | H65: 151137.0895 | I65: 0.4234216596 | J65: -10.33302652 | K65: 156179.3415 | L65: 0.4657831616 | M65: -10.6482804 | N65: 168565.5946 | O65: 2.134994462 | P65: -9.147413254 | Q65: 208219.3273 | R65: 0.8911216519 | S65: -12.22563678 | T65: 322796.9795 | U65: 0.8833534042 | V65: -10.65789612 | W65: 243630.2312 | X65: 1.109219383 | Y65: -12.98118107 | Z65: 206365.0314 | AA65: 0.6300495889 | AB65: -11.27857347 | AC65: 148468.836 | AD65: -0.03174534749 | AE65: -9.040211684 | AF65: 204238.4717 | AG65: 0.8036905197 | AH65: -11.11065618
A66: 2009-07-01 | B66: 140183.9125 | C66: -0.7224532505 | D66: -7.677298931 | E66: 156207.2117 | F66: 1.26034686 | G66: -7.331972064 | H66: 153043.7118 | I66: 1.261518497 | J66: -7.51956768 | K66: 158202.1478 | L66: 1.295181741 | M66: -8.400407582 | N66: 169272.0434 | O66: 0.4190942841 | P66: -7.50224004 | Q66: 210097.1309 | R66: 0.9018392113 | S66: -9.979246684 | T66: 327087.9563 | U66: 1.32931133 | V66: -8.256764452 | W66: 244665.4599 | X66: 0.4249180156 | Y66: -11.33282328 | Z66: 207552.9378 | AA66: 0.5756335819 | AB66: -9.351122373 | AC66: 148872.3117 | AD66: 0.2717578112 | AE66: -7.831850736 | AF66: 205926.2809 | AG66: 0.8263913999 | AH66: -9.068572567
A67: 2009-08-01 | B67: 141373.3196 | C67: 0.8484618974 | D67: -4.983075447 | E67: 157896.6011 | F67: 1.081505368 | G67: -5.298974165 | H67: 155464.3207 | I67: 1.581645418 | J67: -5.070457954 | K67: 159310.7015 | L67: 0.7007197891 | M67: -6.343763238 | N67: 171523.9156 | O67: 1.330327281 | P67: -5.199752624 | Q67: 212961.4233 | R67: 1.363318172 | S67: -6.894547938 | T67: 330412.9375 | U67: 1.016540405 | V67: -6.077501444 | W67: 248335.059 | X67: 1.499843535 | Y67: -8.658237704 | Z67: 208162.7844 | AA67: 0.2938270444 | AB67: -7.676400213 | AC67: 151364.7942 | AD67: 1.674241845 | AE67: -6.322390907 | AF67: 208273.332 | AG67: 1.139753077 | AH67: -6.729844049
A68: 2009-09-01 | B68: 144666.877 | C68: 2.329688095 | D68: -1.812540491 | E68: 159825.6205 | F68: 1.221697892 | G68: -2.634110814 | H68: 158043.4541 | I68: 1.658987341 | J68: -2.389219849 | K68: 160835.6454 | L68: 0.9572137253 | M68: -3.476139757 | N68: 171359.9721 | O68: -0.09558053377 | P68: -3.842367536 | Q68: 214427.6215 | R68: 0.6884806775 | S68: -4.231041147 | T68: 338128.9412 | U68: 2.335260744 | V68: -1.910539098 | W68: 252098.8579 | X68: 1.515613194 | Y68: -5.897601916 | Z68: 210308.2772 | AA68: 1.030680296 | AB68: -5.094950714 | AC68: 152926.9559 | AD68: 1.032050897 | AE68: -4.145930649 | AF68: 211097.8434 | AG68: 1.356156033 | AH68: -3.841076707
A69: 2009-10-01 | B69: 147625.4131 | C69: 2.045068077 | D69: 1.264835745 | E69: 161162.6574 | F69: 0.8365597895 | G69: 0.1569642291 | H69: 160047.5316 | I69: 1.268054727 | J69: -0.1596602263 | K69: 161526.4755 | L69: 0.4295254864 | M69: -1.810981055 | N69: 171746.7233 | O69: 0.2256952135 | P69: -2.171392 | Q69: 217177.4744 | R69: 1.282415425 | S69: -0.7696368475 | T69: 341270.7266 | U69: 0.9291678688 | V69: 0.9293266052 | W69: 256058.5266 | X69: 1.570680922 | Y69: -2.109230853 | Z69: 213531.6526 | AA69: 1.532690668 | AB69: -2.147638775 | AC69: 155873.4973 | AD69: 1.926763911 | AE69: -0.9787825861 | AF69: 213573.7975 | AG69: 1.172894099 | AH69: -0.8913296438
A70: 2009-11-01 | B70: 148748.4247 | C70: 0.7607169718 | D70: 3.629279332 | E70: 162445.1616 | F70: 0.7957824654 | G70: 2.049567883 | H70: 161003.5028 | I70: 0.5973045746 | J70: 2.005168554 | K70: 162255.5852 | L70: 0.4513871108 | M70: -0.1281979137 | N70: 171016.1141 | O70: -0.4253992146 | P70: -0.7906016028 | Q70: 215936.85 | R70: -0.5712491306 | S70: 1.050992619 | T70: 343120.2988 | U70: 0.5419662661 | V70: 4.240844371 | W70: 256111.6595 | X70: 0.02075028215 | Y70: 0.950014288 | Z70: 213942.491 | AA70: 0.1924016471 | AB70: -0.06332800861 | AC70: 156231.5581 | AD70: 0.2297124118 | AE70: 1.001797731 | AF70: 214000.5281 | AG70: 0.1998047268 | AH70: 1.526887081
A71: 2009-12-01 | B71: 146183.8656 | C71: -1.724091577 | D71: 3.140634189 | E71: 163293.9651 | F71: 0.5225169437 | G71: 3.627352674 | H71: 163503.5513 | I71: 1.552791392 | J71: 4.528851788 | K71: 164301.7678 | L71: 1.261086047 | M71: 2.719597362 | N71: 175301.203 | O71: 2.505663819 | P71: 2.907882173 | Q71: 222251.2414 | R71: 2.924184287 | S71: 5.286797578 | T71: 349320.02 | U71: 1.806865177 | V71: 7.139351726 | W71: 262364.7239 | X71: 2.441538356 | Y71: 6.532523163 | Z71: 220839.8599 | AA71: 3.223935966 | AB71: 5.002427215 | AC71: 157960.0428 | AD71: 1.106360806 | AE71: 3.058788215 | AF71: 218298.3316 | AG71: 2.00831447 | AH71: 5.213285797
A72: 2010-01-01 | B72: 148710.4291 | C72: 1.728346296 | D72: 5.248380934 | E72: 163694.2485 | F72: 0.2451306019 | G72: 3.48454302 | H72: 164703.0938 | I72: 0.733649196 | J72: 6.158855082 | K72: 167433.2164 | L72: 1.905912918 | M72: 5.843867653 | N72: 179654.2485 | O72: 2.483180605 | P72: 6.193815596 | Q72: 225031.8206 | R72: 1.251097246 | S72: 6.263104853 | T72: 357070.634 | U72: 2.218771764 | V72: 10.58290888 | W72: 266790.8828 | X72: 1.687025157 | Y72: 9.791052192 | Z72: 224038.0933 | AA72: 1.448213835 | AB72: 8.257957689 | AC72: 157668.9742 | AD72: -0.1842672145 | AE72: 2.278898475 | AF72: 221651.8894 | AG72: 1.536226927 | AH72: 7.638221118
A73: 2010-02-01 | B73: 150640.1952 | C73: 1.297666985 | D73: 6.254220531 | E73: 164442.4005 | F73: 0.4570423255 | G73: 5.189151078 | H73: 165828.9844 | I73: 0.6835879969 | J73: 7.693041148 | K73: 168639.4917 | L73: 0.7204516264 | M73: 7.098944837 | N73: 182426.5768 | O73: 1.543146516 | P73: 8.451033356 | Q73: 230725.9102 | R73: 2.530348668 | S73: 9.430943472 | T73: 365385.7854 | U73: 2.328713321 | V73: 13.83690585 | W73: 271930.1984 | X73: 1.926346065 | Y73: 12.50275268 | Z73: 227972.8995 | AA73: 1.756311238 | AB73: 11.10186224 | AC73: 158799.1851 | AD73: 0.7168251544 | AE73: 3.737386138 | AF73: 225410.4675 | AG73: 1.695712177 | AH73: 10.1463639
A74: 2010-03-01 | B74: 152735.4087 | C74: 1.390872807 | D74: 8.09760893 | E74: 165020.7582 | F74: 0.3517083483 | G74: 5.821072439 | H74: 163880.4641 | I74: -1.175017892 | J74: 7.62685663 | K74: 166847.5253 | L74: -1.062601892 | M74: 6.244101434 | N74: 179595.1268 | O74: -1.552103876 | P74: 8.304347053 | Q74: 228754.9444 | R74: -0.8542455405 | S74: 9.824276069 | T74: 363972.8638 | U74: -0.3866930982 | V74: 14.71297169 | W74: 270789.5619 | X74: -0.4194592947 | Y74: 12.81035825 | Z74: 225175.7358 | AA74: -1.226972025 | AB74: 10.57643902 | AC74: 157475.6516 | AD74: -0.8334636515 | AE74: 3.498193911 | AF74: 223982.0589 | AG74: -0.6336922176 | AH74: 10.39125605
A75: 2010-04-01 | B75: 150719.6968 | C75: -1.319741069 | D75: 6.371869548 | E75: 165551.3818 | F75: 0.3215496173 | G75: 7.197880826 | H75: 163045.6606 | I75: -0.5093978229 | J75: 8.121246893 | K75: 165811.158 | L75: -0.6211463101 | M75: 6.331016983 | N75: 177726.5293 | O75: -1.040450016 | P75: 7.691553024 | Q75: 228710.1052 | R75: -0.01960143559 | S75: 10.90647168 | T75: 361251.8052 | U75: -0.7475993013 | V75: 14.3036749 | W75: 270436.9224 | X75: -0.1302264333 | Y75: 12.19318155 | Z75: 225513.2424 | AA75: 0.149885858 | AB75: 10.96894187 | AC75: 156778.6526 | AD75: -0.4426074833 | AE75: 4.864477861 | AF75: 223233.7487 | AG75: -0.3340938071 | AH75: 10.48310155
A76: 2010-05-01 | B76: 148691.3934 | C76: -1.345745439 | D76: 5.51929628 | E76: 165100.449 | F76: -0.2723823775 | G76: 6.953987511 | H76: 162192.2672 | I76: -0.5234076022 | J76: 7.769062516 | K76: 166303.1359 | L76: 0.296709729 | M76: 6.978135716 | N76: 176885.0286 | O76: -0.4734806358 | P76: 7.175793824 | Q76: 229672.7196 | R76: 0.4208884339 | S76: 11.2862028 | T76: 360204.7195 | U76: -0.2898492614 | V76: 12.57434961 | W76: 272690.348 | X76: 0.8332536938 | Y76: 13.16948675 | Z76: 226439.6128 | AA76: 0.4107831479 | AB76: 10.41904394 | AC76: 156449.5686 | AD76: -0.2099035591 | AE76: 5.341907016 | AF76: 223475.8539 | AG76: 0.1084537022 | AH76: 10.29846938
A77: 2010-06-01 | B77: 148560.8886 | C77: -0.08776889002 | D77: 5.210079348 | E77: 163126.5392 | F77: -1.195581157 | G77: 5.74575756 | H77: 161688.4525 | I77: -0.3106280621 | J77: 6.981319487 | K77: 167251.6776 | L77: 0.5703691506 | M77: 7.089501136 | N77: 178479.122 | O77: 0.9012031178 | P77: 5.881109593 | Q77: 231379.8477 | R77: 0.7432873103 | S77: 11.12313669 | T77: 364955.3192 | U77: 1.318861032 | V77: 13.06032659 | W77: 273744.8281 | X77: 0.3866950757 | Y77: 12.36078003 | Z77: 225930.9415 | AA77: -0.2246388323 | AB77: 9.481213953 | AC77: 156830.0564 | AD77: 0.2432015265 | AE77: 5.631633271 | AF77: 224374.3444 | AG77: 0.4020525985 | AH77: 9.859000869
A78: 2010-07-01 | B78: 147896.0157 | C78: -0.4475423325 | D78: 5.50141813 | E78: 162304.2044 | F78: -0.5041084947 | G78: 3.903144198 | H78: 161832.8104 | I78: 0.08928146695 | J78: 5.742868138 | K78: 166390.564 | L78: -0.5148610224 | M78: 5.175919727 | N78: 178127.1828 | O78: -0.1971878542 | P78: 5.231306515 | Q78: 232878.639 | R78: 0.6477622475 | S78: 10.84332188 | T78: 368733.1249 | U78: 1.035141973 | V78: 12.7321009 | W78: 275213.034 | X78: 0.5363410549 | Y78: 12.4854461 | Z78: 226130.4841 | AA78: 0.08832017514 | AB78: 8.950750843 | AC78: 156531.2413 | AD78: -0.1905343075 | AE78: 5.144630025 | AF78: 225087.982 | AG78: 0.3180566717 | AH78: 9.305126585
A79: 2010-08-01 | B79: 147167.0572 | C79: -0.4928858482 | D79: 4.09818315 | E79: 163092.5971 | F79: 0.4857500299 | G79: 3.290758653 | H79: 162947.2974 | I79: 0.6886656761 | J79: 4.813308091 | K79: 166229.1931 | L79: -0.09698317529 | M79: 4.342766368 | N79: 180022.9216 | O79: 1.064261382 | P79: 4.954997704 | Q79: 233800.2995 | R79: 0.3957685555 | S79: 9.785282188 | T79: 370970.5233 | U79: 0.606779886 | V79: 12.27481772 | W79: 275489.9808 | X79: 0.100629955 | Y79: 10.93479185 | Z79: 225851.6516 | AA79: -0.1233060226 | AB79: 8.497612677 | AC79: 156910.2516 | AD79: 0.2421307322 | AE79: 3.66363749 | AF79: 225826.3742 | AG79: 0.3280460264 | AH79: 8.427887525
A80: 2010-09-01 | B80: 148129.9367 | C80: 0.6542765744 | D80: 2.393816621 | E80: 164995.9855 | F80: 1.167059917 | G80: 3.23500383 | H80: 163111.8235 | I80: 0.1009689114 | J80: 3.206946765 | K80: 166148.9528 | L80: -0.04827087396 | M80: 3.303563316 | N80: 179989.3068 | O80: -0.01867251823 | P80: 5.035793736 | Q80: 233620.6515 | R80: -0.07683821676 | S80: 8.950819792 | T80: 368836.6014 | U80: -0.5752268243 | V80: 9.081642088 | W80: 274709.6365 | X80: -0.2832568526 | Y80: 8.969012712 | Z80: 226445.5353 | AA80: 0.2629530196 | AB80: 7.67314454 | AC80: 156972.4881 | AD80: 0.03966378612 | AE80: 2.645401625 | AF80: 225726.9349 | AG80: -0.04403349992 | AH80: 6.930005214
A81: 2010-10-01 | B81: 148644.8909 | C81: 0.3476367853 | D81: 0.6905841995 | E81: 164326.3443 | F81: -0.4058530201 | G81: 1.963039659 | H81: 161747.0464 | I81: -0.8367125734 | J81: 1.061881302 | K81: 165866.745 | L81: -0.1698523186 | M81: 2.687032841 | N81: 179856.9331 | O81: -0.07354530338 | P81: 4.722191868 | Q81: 231794.7521 | R81: -0.781565905 | S81: 6.730568063 | T81: 368393.803 | U81: -0.1200527294 | V81: 7.947671521 | W81: 273319.3268 | X81: -0.5061015654 | Y81: 6.740958955 | Z81: 225792.8658 | AA81: -0.288223642 | AB81: 5.742105696 | AC81: 156179.2945 | AD81: -0.505307427 | AE81: 0.1961828949 | AF81: 224880.5397 | AG81: -0.3749642293 | AH81: 5.294068033
A82: 2010-11-01 | B82: 146821.927 | C82: -1.226388511 | D82: -1.295138192 | E82: 162742.6317 | F82: -0.9637606295 | G82: 0.1831203213 | H82: 160859.2074 | I82: -0.5489058408 | J82: -0.0896225229 | K82: 164753.277 | L82: -0.6713027308 | M82: 1.539356418 | N82: 177888.2447 | O82: -1.094585798 | P82: 4.018411132 | Q82: 228908.1208 | R82: -1.245339368 | S82: 6.0069742 | T82: 368998.5422 | U82: 0.1641556524 | V82: 7.542032189 | W82: 270827.0137 | X82: -0.9118686021 | Y82: 5.745679138 | Z82: 224576.077 | AA82: -0.5388960296 | AB82: 4.970301098 | AC82: 154436.8218 | AD82: -1.115687394 | AE82: -1.148766838 | AF82: 223344.5213 | AG82: -0.6830374566 | AH82: 4.366341226
A83: 2010-12-01 | B83: 145063.3776 | C83: -1.197743031 | D83: -0.7664922471 | E83: 161832.0787 | F83: -0.5595048984 | G83: -0.8952482641 | H83: 159609.2086 | I83: -0.7770763011 | J83: -2.381809251 | K83: 163784.3357 | L83: -0.5881165454 | M83: -0.3149278724 | N83: 176846.918 | O83: -0.585382533 | P83: 0.8817480613 | Q83: 229056.601 | R83: 0.06486451464 | S83: 3.06201195 | T83: 372275.4888 | U83: 0.8880649 | V83: 6.571472406 | W83: 270547.8873 | X83: -0.1030644548 | Y83: 3.119002921 | Z83: 226508.6651 | AA83: 0.8605493995 | AB83: 2.566930241 | AC83: 153181.3142 | AD83: -0.8129586992 | AE83: -3.025276866 | AF83: 223431.5115 | AG83: 0.03894887463 | AH83: 2.351451727
A84: 2011-01-01 | B84: 144797.7589 | C84: -0.1831053327 | D84: -2.631066448 | E84: 161293.458 | F84: -0.332826876 | G84: -1.466630954 | H84: 160035.9174 | I84: 0.2673459667 | J84: -2.833690802 | K84: 163792.5275 | L84: 0.005001554452 | M84: -2.174412577 | N84: 176652.185 | O84: -0.1101138406 | P84: -1.671022797 | Q84: 229290.8695 | R84: 0.1022753882 | S84: 1.892642973 | T84: 374683.6511 | U84: 0.6468764215 | V84: 4.932642295 | W84: 273098.4395 | X84: 0.9427359776 | Y84: 2.364232507 | Z84: 225187.3122 | AA84: -0.583356446 | AB84: 0.512956895 | AC84: 153457.2806 | AD84: 0.1801567348 | AE84: -2.671225349 | AF84: 224027.4599 | AG84: 0.2667252865 | AH84: 1.071757377
A85: 2011-02-01 | B85: 148132.3099 | C85: 2.302902416 | D85: -1.664818115 | E85: 161126.0843 | F85: -0.1037696612 | G85: -2.016703833 | H85: 158895.8022 | I85: -0.7124120772 | J85: -4.180923032 | K85: 163825.1372 | L85: 0.01990914943 | M85: -2.854820361 | N85: 175568.5963 | O85: -0.613402385 | P85: -3.759309943 | Q85: 231360.3306 | R85: 0.9025484064 | S85: 0.2749671033 | T85: 380620.811 | U85: 1.584579389 | V85: 4.169572604 | W85: 277110.2459 | X85: 1.468996453 | Y85: 1.904918073 | Z85: 226834.1266 | AA85: 0.7313086936 | AB85: -0.4995212036 | AC85: 154152.9919 | AD85: 0.4533582581 | AE85: -2.925829385 | AF85: 225878.854 | AG85: 0.826413923 | AH85: 0.2077927096
A86: 2011-03-01 | B86: 147239.7303 | C86: =B86/B85*100-100 -> -0.6025557015 | D86: -3.59816921 | E86: 159758.933 | F86: =E86/E85*100-100 -> -0.8484978652 | G86: -3.188583842 | H86: 159571.1189 | I86: 0.4250060083 | J86: -2.629566179 | K86: 162934.5505 | L86: =K86/K85*100-100 -> -0.5436202599 | M86: -2.34523991 | N86: 175079.8219 | O86: =N86/N85*100-100 -> -0.2783951602 | P86: -2.514157831 | Q86: 231589.797 | R86: =Q86/Q85*100-100 -> 0.09918139973 | S86: 1.239253023 | T86: 383697.4872 | U86: =T86/T85*100-100 -> 0.8083310437 | V86: 5.419256587 | W86: 279803.6987 | X86: =W86/W85*100-100 -> 0.9719787607 | Y86: 3.328834634 | Z86: 224477.0799 | AA86: =Z86/Z85*100-100 -> -1.039105832 | AB86: -0.3102714 | AC86: 153830.9931 | AD86: =AC86/AC85*100-100 -> -0.2088826205 | AE86: -2.31442671 | AF86: 226236.1931 | AG86: =AF86/AF85*100-100 -> 0.1581994719 | AH86: 1.006390545
A87: 2011-04-01 | B87: 146181.4724 | C87: -0.7187311593 | D87: -3.011036016 | E87: 158306.5477 | F87: -0.9091105296 | G87: -4.376184632 | H87: 158903.8868 | I87: -0.4181408961 | J87: -2.540253959 | K87: 161900.7267 | L87: -0.6345025239 | M87: -2.358364411 | N87: 174326.6183 | O87: -0.4302058051 | P87: -1.913001391 | Q87: 230263.6241 | R87: -0.5726387475 | S87: 0.6792524117 | T87: 378601.6525 | U87: -1.328086535 | V87: 4.802701902 | W87: 274666.083 | X87: -1.836150012 | Y87: 1.563825171 | Z87: 224205.6555 | AA87: -0.120914092 | AB87: -0.5798271093 | AC87: 151764.0242 | AD87: -1.343662186 | AE87: -3.198540316 | AF87: 223971.6041 | AG87: -1.000984412 | AH87: 0.3305304088
A88: 2011-05-01 | B88: 144623.6787 | C88: -1.065657444 | D88: -2.735675924 | E88: 156465.7515 | F88: -1.162804849 | G88: -5.229966123 | H88: 157132.9033 | I88: =H88/H87*100-100 -> -1.11449977 | J88: =H88/H76*100-100 -> -3.119361979 | K88: 160817.7338 | L88: -0.6689240367 | M88: -3.298435731 | N88: 174059.3869 | O88: -0.1532934876 | P88: -1.597445331 | Q88: 228020.5553 | R88: -0.9741307469 | S88: -0.71935589 | T88: 368900.8575 | U88: -2.562269612 | V88: 2.414220982 | W88: 270792.2138 | X88: -1.410392287 | Y88: -0.6960767938 | Z88: 221979.6565 | AA88: -0.9928380115 | AB88: -1.969600737 | AC88: 150053.2113 | AD88: -1.12728491 | AE88: -4.088446799 | AF88: 220916.1151 | AG88: -1.364230533 | AH88: -1.145420772
A89: 2011-06-01 | B89: 143121.3752 | C89: -1.038767339 | D89: -3.661470697 | E89: 156720.9926 | F89: 0.1631290611 | G89: -3.926734801 | H89: 155597.6699 | I89: -0.977028629 | J89: -3.766986804 | K89: 161709.7584 | L89: 0.5546805011 | M89: -3.31352086 | N89: 172327.8915 | O89: -0.9947727793 | P89: -3.446470576 | Q89: 226514.4671 | R89: -0.6605054768 | S89: -2.102767687 | T89: 363577.1603 | U89: -1.443124091 | V89: -0.3776240097 | W89: 268442.2008 | X89: -0.8678288538 | Y89: -1.937069416 | Z89: 220515.0539 | AA89: -0.6597913655 | AB89: -2.397142928 | AC89: 150299.4929 | AD89: 0.1641295191 | AE89: -4.164101995 | AF89: 219251.3711 | AG89: -0.7535638446 | AH89: -2.283225969
A90: 2011-07-01 | B90: 139410.2001 | C90: -2.593026419 | D90: -5.737690475 | E90: 158219.1899 | F90: 0.9559646566 | G90: -2.516887691 | H90: 155569.5952 | I90: -0.0180430947 | J90: -3.870176335 | K90: 162214.7273 | L90: 0.3122686329 | M90: -2.509659549 | N90: 171448.7343 | O90: -0.5101654016 | P90: -3.749258505 | Q90: 227508.831 | R90: 0.4389847311 | S90: -2.305839673 | T90: 369853.4979 | U90: 1.726273883 | V90: 0.3038438596 | W90: 270178.3947 | X90: 0.646766367 | Y90: -1.829360804 | Z90: 220325.9162 | AA90: -0.08577090467 | AB90: -2.566910857 | AC90: 151213.1525 | AD90: 0.607892704 | AE90: -3.397461586 | AF90: 220479.1792 | AG90: 0.5600001901 | AH90: -2.047556131
A91: 2011-08-01 | B91: 137441.6739 | C91: -1.41203888 | D91: -6.60839694 | E91: 158892.8362 | F91: 0.425767802 | G91: -2.575077577 | H91: 157129.3603 | I91: 1.002615648 | J91: -3.570440955 | K91: 162680.4012 | L91: 0.2870725446 | M91: -2.134878846 | N91: 172669.3842 | O91: 0.7119620355 | P91: -4.08477843 | Q91: 228390.0259 | R91: 0.3873233774 | S91: -2.314057595 | T91: 376577.0289 | U91: 1.817890355 | V91: 1.511307566 | W91: 272050.085 | X91: 0.6927609117 | Y91: -1.248646432 | Z91: 220471.1115 | AA91: 0.06590023643 | AB91: -2.382333759 | AC91: 153053.1285 | AD91: 1.216809477 | AE91: -2.458171487 | AF91: 222149.5813 | AG91: 0.757623509 | AH91: -1.628150333
A92: 2011-09-01 | B92: 137285.0556 | C92: -0.1139525404 | D92: -7.321194756 | E92: 158372.8127 | F92: -0.3272794158 | G92: -4.014141771 | H92: 156841.809 | I92: -0.1830029073 | J92: -3.84399752 | K92: 162500.5919 | L92: -0.1105291922 | M92: -2.19583745 | N92: 172549.6859 | O92: -0.06932224384 | P92: -4.133368299 | Q92: 227728.6066 | R92: -0.289600773 | S92: -2.522056526 | T92: 378633.3934 | U92: 0.5460674297 | V92: 2.65613337 | W92: 270720.5909 | X92: -0.4886946126 | Y92: -1.452095284 | Z92: 221941.1015 | AA92: 0.6667494918 | AB92: -1.989190848 | AC92: 153352.0976 | AD92: 0.1953368375 | AE92: -2.30638535 | AF92: 222157.4896 | AG92: 0.00355987257 | AH92: -1.581311227
A93: 2011-10-01 | B93: 139226.4561 | C93: 1.414138267 | D93: -6.336198136 | E93: 157595.3761 | F93: -0.4908901559 | G93: -4.096098017 | H93: 156219.2662 | I93: -0.3969240473 | J93: -3.417546283 | K93: 162197.1008 | L93: -0.1867630589 | M93: -2.212404999 | N93: 173721.4115 | O93: 0.6790656245 | P93: -3.411334531 | Q93: 227954.7547 | R93: 0.09930598323 | S93: -1.6566369 | T93: 380932.5945 | U93: 0.6072367286 | V93: 3.403638006 | W93: 269821.7795 | X93: -0.3320070396 | Y93: -1.279656059 | Z93: 222157.8021 | AA93: 0.09763881561 | AB93: -1.609910756 | AC93: 156248.6151 | AD93: 1.888801988 | AE93: 0.0443852948 | AF93: 222484.0999 | AG93: 0.1470174887 | AH93: -1.06565012
A94: 2011-11-01 | B94: 138366.2272 | C94: -0.6178630867 | D94: -5.759153276 | E94: 156776.8491 | F94: -0.5193852159 | G94: -3.665777396 | H94: 155644.9489 | I94: -0.367635364 | J94: -3.241504505 | K94: 162618.1694 | L94: 0.2596030361 | M94: -1.295942399 | N94: 172118.2432 | O94: -0.9228386106 | P94: -3.243610329 | Q94: 225996.7375 | R94: -0.858949944 | S94: -1.271856727 | T94: 379622.7239 | U94: -0.3438588734 | V94: 2.87919341 | W94: 267444.0489 | X94: -0.8812226052 | Y94: -1.249123811 | Z94: 220834.9827 | AA94: -0.5954413736 | AB94: -1.66584721 | AC94: 155732.6954 | AD94: -0.3301915458 | AE94: 0.8390962775 | AF94: 221201.2228 | AG94: -0.5766152066 | AH94: -0.9596378554
A95: 2011-12-01 | B95: 138078.9953 | C95: -0.2075881527 | D95: -4.814710943 | E95: 155419.8791 | F95: -0.8655423215 | G95: -3.962254975 | H95: 156987.595 | I95: 0.8626339037 | J95: -1.642520253 | K95: 162133.8939 | L95: -0.2977991136 | M95: -1.007692066 | N95: 173489.9799 | O95: 0.7969734558 | P95: -1.898216884 | Q95: 226120.6639 | R95: 0.05483546371 | S95: -1.281751804 | T95: 381448.5531 | U95: 0.4809588578 | V95: 2.464052716 | W95: 266182.3453 | X95: -0.4717635758 | Y95: -1.613593062 | Z95: 221648.8353 | AA95: 0.3685343002 | AB95: -2.145538112 | AC95: 154822.8304 | AD95: -0.58424789 | AE95: 1.071616484 | AF95: 221301.3646 | AG95: 0.04527182396 | AH95: -0.9533780216
A96: 2012-01-01 | B96: 139409.7432 | C96: 0.9637583488 | D96: -3.721062905 | E96: 155781.24 | F96: 0.232506258 | G96: -3.417508719 | H96: 157240.1717 | I96: 0.1608895542 | J96: -1.746948911 | K96: 162730.89 | L96: 0.3682117626 | M96: -0.6481598804 | N96: 173814.7622 | O96: 0.1872052258 | P96: -1.606220049 | Q96: 227305.2688 | R96: 0.5238817763 | S96: -0.865974601 | T96: 382608.1405 | U96: 0.3039957695 | V96: 2.114981365 | W96: 267883.651 | X96: 0.6391504533 | Y96: -1.90949042 | Z96: 221748.8003 | AA96: 0.04510060886 | AB96: -1.526956306 | AC96: 153232.9318 | AD96: -1.026914838 | AE96: -0.146196295 | AF96: 222024.7854 | AG96: 0.3268939783 | AH96: -0.8939414972
A97: 2012-02-01 | B97: 142091.091 | C97: 1.923357568 | D97: =B97/B85*100-100 -> -4.078258778 | E97: 157589.6695 | F97: 1.160877594 | G97: =E97/E85*100-100 -> -2.194812106 | H97: 157813.1891 | I97: 0.3644217528 | J97: -0.681335258 | K97: 163653.1272 | L97: 0.5667253452 | M97: =K97/K85*100-100 -> -0.1049960671 | N97: 174078.0898 | O97: 0.1514989897 | P97: =N97/N85*100-100 -> -0.8489596204 | Q97: 228374.0809 | R97: 0.4702099929 | S97: =Q97/Q85*100-100 -> -1.290735402 | T97: 382717.1684 | U97: 0.02849595499 | V97: =T97/T85*100-100 -> 0.5507731764 | W97: 269039.423 | X97: 0.4314455156 | Y97: =W97/W85*100-100 -> -2.912495316 | Z97: 221452.3124 | AA97: -0.1337043921 | AB97: =Z97/Z85*100-100 -> -2.372576923 | AC97: 153406.2909 | AD97: 0.1131343631 | AE97: =AC97/AC85*100-100 -> -0.4843895682 | AF97: 222809.4169 | AG97: 0.353398137 | AH97: =AF97/AF85*100-100 -> -1.358886429
A98: 2012-03-01 | B98: 143973.3735 | C98: 1.32470126 | D98: -2.218393619 | E98: 158135.6055 | F98: 0.3464287722 | G98: -1.016110606 | H98: 156458.787 | I98: -0.8582312185 | J98: -1.950435585 | K98: 163951.2796 | L98: 0.1821855634 | M98: 0.6240107171 | N98: 173254.9679 | O98: -0.4728463692 | P98: -1.042298263 | Q98: 231098.5038 | R98: 1.192965038 | S98: -0.212139383 | T98: 388109.9558 | U98: 1.409079048 | V98: 1.149986314 | W98: 274450.6029 | X98: 2.011296276 | Y98: -1.91316119 | Z98: 221847.7303 | AA98: 0.1785566837 | AB98: -1.171322078 | AC98: 154490.6501 | AD98: 0.7068544656 | AE98: 0.4288193176 | AF98: 224847.5393 | AG98: 0.9147380186 | AH98: -0.6138070935
A99: 2012-04-01 | B99: 142863.2785 | C99: -0.7710418932 | D99: -2.269914189 | E99: 156972.7453 | F99: -0.7353563587 | G99: -0.8425440578 | H99: 157435.4589 | I99: 0.6242358935 | J99: -0.9240981462 | K99: 163822.3256 | L99: -0.07865384622 | M99: 1.186899494 | N99: 171960.2161 | O99: -0.7473100388 | P99: -1.357453139 | Q99: 230587.338 | R99: -0.2211896011 | S99: 0.1405840323 | T99: 395221.206 | U99: 1.832277188 | V99: 4.389720257 | W99: 276269.0181 | X99: 0.6625655685 | Y99: 0.5835941067 | Z99: 222672.9962 | AA99: 0.371996533 | AB99: -0.6835952936 | AC99: 154801.9329 | AD99: 0.2014897075 | AE99: 2.001731751 | AF99: 225896.647 | AG99: 0.4665862156 | AH99: 0.8595030867
A100: 2012-05-01 | B100: 141702.5797 | C100: -0.8124542132 | D100: -2.01979302 | E100: 155955.2162 | F100: -0.6482201868 | G100: -0.3262919936 | H100: 157608.2023 | I100: 0.1097233157 | J100: 0.3024821508 | K100: 163246.7907 | L100: -0.3513164988 | M100: 1.51044096 | N100: 172523.6257 | O100: 0.3276394672 | P100: -0.8823202759 | Q100: 233357.5431 | R100: 1.201369127 | S100: 2.340573081 | T100: 406051.4598 | U100: 2.740301798 | V100: 10.07061968 | W100: 279409.6768 | X100: 1.136811755 | Y100: 3.18231565 | Z100: 225239.2364 | AA100: 1.152470311 | AB100: 1.468413767 | AC100: 154433.0036 | AD100: -0.2383234446 | AE100: 2.918826106 | AF100: 228282.3298 | AG100: 1.05609483 | AH100: 3.334394444
A101: 2012-06-01 | B101: 141309.7221 | C101: -0.2772409892 | D101: -1.265815858 | E101: 156565.1225 | F101: 0.3910778137 | G101: -0.09945705322 | H101: 158488.2434 | I101: 0.5583726269 | J101: 1.857722868 | K101: 163538.4684 | L101: 0.178672838 | M101: 1.130859389 | N101: 172861.5257 | O101: 0.1958572601 | P101: 0.3096621096 | Q101: 232784.9852 | R101: -0.2453564665 | S101: 2.768263879 | T101: 407430.824 | U101: 0.3397018087 | V101: 12.06172126 | W101: 278540.7949 | X101: -0.3109705793 | Y101: 3.761924929 | Z101: 224498.2405 | AA101: -0.3289817131 | AB101: 1.806310487 | AC101: 153810.4078 | AD101: -0.4031494123 | AE101: 2.335945968 | AF101: 228302.0513 | AG101: 0.008639090609 | AH101: 4.1279925
A102: 2012-07-01 | B102: 140715.209 | C102: -0.4207163106 | D102: 0.9360928795 | E102: 155965.2384 | F102: -0.3831530992 | G102: -1.4245753 | H102: 156893.8417 | I102: -1.006006255 | J102: 0.8512244875 | K102: 162854.0659 | L102: -0.4184963246 | M102: 0.3941310784 | N102: 172757.1664 | O102: -0.06037165457 | P102: 0.7631622984 | Q102: 233453.944 | R102: 0.2873719491 | S102: 2.613135047 | T102: 408147.8918 | U102: 0.1759974587 | V102: 10.35393587 | W102: 279189.4454 | X102: 0.2328745087 | Y102: 3.335222537 | Z102: 223369.1073 | AA102: -0.5029585602 | AB102: 1.381222525 | AC102: 153166.8077 | AD102: -0.4184373082 | AE102: 1.291987588 | AF102: 228130.6412 | AG102: -0.07508039621 | AH102: 3.470378474
A103: 2012-08-01 | B103: 140431.3026 | C103: -0.2017596242 | D103: 2.175198121 | E103: 157357.3514 | F103: 0.8925790072 | G103: -0.9663650835 | H103: 156926.1421 | I103: 0.02058739596 | J103: -0.1293318189 | K103: 161932.1895 | L103: -0.5660751812 | M103: -0.4599274004 | N103: 172436.4253 | O103: -0.1856600552 | P103: -0.1349161282 | Q103: 232959.3816 | R103: -0.2118458059 | S103: 2.000680941 | T103: 405989.0585 | U103: -0.5289340876 | V103: 7.81036211 | W103: 277991.5229 | X103: -0.4290715477 | Y103: 2.183950035 | Z103: 223044.7177 | AA103: -0.145225834 | AB103: 1.167321295 | AC103: 152453.0619 | AD103: -0.4659924428 | AE103: -0.3920642223 | AF103: 227557.7694 | AG103: -0.2511156805 | AH103: 2.434480424
A104: 2012-09-01 | B104: 139828.8428 | C104: -0.4290067315 | D104: 1.852923637 | E104: 156645.8314 | F104: -0.4521682096 | G104: -1.09045311 | H104: 157102.3762 | I104: 0.1123038739 | J104: 0.1661337472 | K104: 162404.6214 | L104: 0.2917467486 | M104: -0.05905855975 | N104: 172337.941 | O104: -0.05711337665 | P104: -0.1227152748 | Q104: 233655.3431 | R104: 0.2987480044 | S104: 2.6025437 | T104: 411338.7545 | U104: 1.317694609 | V104: 8.637738135 | W104: 277137.6551 | X104: -0.3071560627 | Y104: 2.370364292 | Z104: 220994.8709 | AA104: -0.9190295343 | AB104: -0.4263431177 | AC104: 153183.1295 | AD104: 0.4788802305 | AE104: -0.1101831191 | AF104: 227901.4697 | AG104: 0.1510387084 | AH104: 2.585544226
A105: 2012-10-01 | B105: 141372.5565 | C105: 1.10400234 | D105: 1.541445855 | E105: 157623.1404 | F105: 0.6238972085 | G105: 0.01761742998 | H105: 156954.7987 | I105: -0.09393719374 | J105: 0.4708333903 | K105: 163144.7351 | L105: 0.4557221038 | M105: 0.5842486207 | N105: 172912.0898 | O105: 0.3331528525 | P105: -0.4658732909 | Q105: 234085.5743 | R105: 0.1841306776 | S105: 2.689489652 | T105: 412008.4499 | U105: 0.162808736 | V105: 8.15783576 | W105: 276363.5659 | X105: -0.2793157631 | Y105: 2.424484226 | Z105: 221607.5257 | AA105: 0.2772258123 | AB105: -0.2476962065 | AC105: 153824.4369 | AD105: 0.4186540312 | AE105: -1.551487829 | AF105: 228272.1033 | AG105: 0.1626288939 | AH105: 2.601535761
A106: 2012-11-01 | B106: 140956.1926 | C106: -0.2945153521 | D106: 1.871819074 | E106: 155753.9246 | F106: -1.185876492 | G106: -0.6524716085 | H106: 156936.2808 | I106: -0.01179821364 | J106: 0.8296651331 | K106: 163695.6226 | L106: 0.3376679653 | M106: 0.662566328 | N106: 172799.5193 | O106: -0.0651027194 | P106: 0.3958186639 | Q106: 232511.6751 | R106: -0.6723605849 | S106: 2.882757385 | T106: 416936.0542 | U106: 1.195995937 | V106: 9.829056036 | W106: 276942.0506 | X106: 0.2093201793 | Y106: 3.551397664 | Z106: 220383.4396 | AA106: -0.5523666767 | AB106: -0.2044708222 | AC106: 153845.0468 | AD106: 0.01339834836 | AE106: -1.212108087 | AF106: 228471.7053 | AG106: 0.08744036147 | AH106: 3.286818416
A107: 2012-12-01 | B107: 140351.0276 | C107: =B107/B106*100-100 -> -0.4293284292 | D107: =B107/B95*100-100 -> 1.645458323 | E107: 155769.2239 | F107: =E107/E106*100-100 -> 0.00982270707 | G107: =E107/E95*100-100 -> 0.2247748511 | H107: 156172.3953 | I107: -0.4867488484 | J107: -0.5192765489 | K107: 163236.351 | L107: =K107/K106*100-100 -> -0.2805644246 | M107: =K107/K95*100-100 -> 0.6799670273 | N107: 173626.332 | O107: =N107/N106*100-100 -> 0.4784808723 | P107: =N107/N95*100-100 -> 0.07859362664 | Q107: 233284.3878 | R107: =Q107/Q106*100-100 -> 0.332332834 | S107: =Q107/Q95*100-100 -> 3.168097864 | T107: 416950.852 | U107: =T107/T106*100-100 -> 0.003549174997 | V107: =T107/T95*100-100 -> 9.307231251 | W107: 279390.161 | X107: =W107/W106*100-100 -> 0.8839792978 | Y107: =W107/W95*100-100 -> 4.961942797 | Z107: 222817.3342 | AA107: =Z107/Z106*100-100 -> 1.10439088 | AB107: =Z107/Z95*100-100 -> 0.5271847439 | AC107: 153573.0405 | AD107: =AC107/AC106*100-100 -> -0.176805386 | AE107: =AC107/AC95*100-100 -> -0.8072387864 | AF107: 229216.7912 | AG107: =AF107/AF106*100-100 -> 0.3261173568 | AH107: =AF107/AF95*100-100 -> 3.576763568
A108: 2013-01-01 | B108: 139867.8306 | C108: -0.3442775279 | D108: 0.3285906826 | E108: 156264.8442 | F108: 0.3181760126 | G108: 0.3104379976 | H108: 156537.5949 | I108: 0.2338439259 | J108: -0.4468175911 | K108: 163500.5214 | L108: 0.1618331062 | M108: 0.472947335 | N108: 174670.6979 | O108: 0.6015020251 | P108: 0.4924412924 | Q108: 232970.2888 | R108: -0.1346420704 | S108: 2.49225197 | T108: 422486.579 | U108: 1.327668955 | V108: 10.42278882 | W108: 279871.8479 | X108: 0.1724065278 | Y108: 4.475150639 | Z108: 222953.3109 | AA108: 0.06102609265 | AB108: 0.5431869673 | AC108: 152831.3713 | AD108: -0.482942267 | AE108: -0.2620588394 | AF108: 230124.6028 | AG108: 0.3960493719 | AH108: 3.648159099
A109: 2013-02-01 | B109: 142207.4983 | C109: 1.672770452 | D109: 0.08192443382 | E109: 158409.6936 | F109: 1.372573224 | G109: 0.5203539445 | H109: 156339.784 | I109: -0.1263663825 | J109: -0.9336387165 | K109: 165475.1109 | L109: 1.207696168 | M109: 1.113320456 | N109: 176359.315 | O109: 0.9667431996 | P109: 1.31046081 | Q109: 237104.0006 | R109: 1.774351457 | S109: 3.822640307 | T109: 424931.1264 | U109: 0.5786094781 | V109: 11.03006646 | W109: 281506.4939 | X109: 0.5840694728 | Y109: 4.633919746 | Z109: 224332.2716 | AA109: 0.6184975499 | AB109: 1.300487316 | AC109: 154850.2824 | AD109: 1.321005632 | AE109: 0.9412857 | AF109: 232110.5173 | AG109: 0.8629735624 | AH109: 4.174464692
A110: 2013-03-01 | B110: 142431.316 | C110: 0.1573880847 | D110: -1.071071307 | E110: 158334.232 | F110: -0.04763699501 | G110: 0.1256051638 | H110: 156887.4325 | I110: 0.3502937224 | J110: 0.273967017 | K110: 164606.1858 | L110: -0.5251092743 | M110: 0.3994517259 | N110: 175571.204 | O110: -0.4468779906 | P110: 1.336894485 | Q110: 237244.3512 | R110: 0.0591936887 | S110: 2.659405936 | T110: 431483.3419 | U110: 1.541947634 | V110: 11.1755407 | W110: 283391.8059 | X110: 0.6697223653 | Y110: 3.257855113 | Z110: 223654.9303 | AA110: -0.3019366623 | AB110: 0.8146127765 | AC110: 154279.771 | AD110: -0.368427716 | AE110: -0.1364995855 | AF110: 233084.8038 | AG110: 0.4197511008 | AH110: 3.663488811
A111: 2013-04-01 | B111: 142280.1316 | C111: -0.1061454381 | D111: -0.4081852377 | E111: 158141.4043 | F111: -0.121785245 | G111: 0.7444980225 | H111: 157670.3594 | I111: 0.4990373902 | J111: 0.1492043246 | K111: 164500.8686 | L111: -0.06398129973 | M111: 0.4141944778 | N111: 174997.6492 | O111: -0.3266793001 | P111: 1.766358037 | Q111: 239075.1592 | R111: 0.7716971885 | S111: 3.680957181 | T111: 433770.3986 | U111: 0.5300451948 | V111: 9.753826972 | W111: 284058.3494 | X111: 0.235202109 | Y111: 2.819473338 | Z111: 224066.4053 | AA111: 0.183977637 | AB111: 0.6257647626 | AC111: 154010.0481 | AD111: -0.1748271356 | AE111: -0.5115470756 | AF111: 233726.1047 | AG111: 0.2751363259 | AH111: 3.465946879
A112: 2013-05-01 | B112: 140426.9692 | C112: -1.302474541 | D112: -0.900202792 | E112: 157064.0915 | F112: -0.6812338356 | G112: 0.7110215867 | H112: 157917.3072 | I112: 0.1566228018 | J112: 0.1961223069 | K112: 163452.971 | L112: -0.6370164689 | M112: 0.1262997325 | N112: 173756.3444 | O112: -0.7093265642 | P112: 0.7145217035 | Q112: 237920.8081 | R112: -0.4828402211 | S112: 1.955482133 | T112: 435266.1018 | U112: 0.3448144989 | V112: 7.194812701 | W112: 285127.2646 | X112: 0.376301263 | Y112: 2.046309868 | Z112: 223849.985 | AA112: -0.09658760645 | AB112: -0.6167892535 | AC112: 152818.7767 | AD112: -0.7735023889 | AE112: -1.045260291 | AF112: 233512.2739 | AG112: -0.09148780381 | AH112: 2.290998213
A113: 2013-06-01 | B113: 141689.4286 | C113: 0.8990149161 | D113: 0.2687051166 | E113: 158552.142 | F113: 0.9474161331 | G113: 1.269132942 | H113: 158236.2881 | I113: 0.2019923897 | J113: -0.1589741103 | K113: 164895.2939 | L113: 0.8824084865 | M113: 0.8296674701 | N113: 175449.6029 | O113: 0.9745016849 | P113: 1.497196786 | Q113: 238963.7376 | R113: 0.438351506 | S113: 2.654274425 | T113: 435171.4453 | U113: -0.02174680604 | V113: 6.808670268 | W113: 283448.7458 | X113: -0.5886910829 | Y113: 1.762022292 | Z113: 223504.3225 | AA113: -0.154417028 | AB113: -0.442728637 | AC113: 151962.785 | AD113: -0.5601351865 | AE113: -1.201233963 | AF113: 233765.3483 | AG113: 0.1083773771 | AH113: 2.393012689
A114: 2013-07-01 | B114: 141725.6036 | C114: 0.02553121275 | D114: 0.7180421641 | E114: 159364.1227 | F114: 0.5121221877 | G114: 2.179257634 | H114: 157799.1343 | I114: -0.2762664309 | J114: 0.5770096589 | K114: 165125.2752 | L114: 0.139471139 | M114: 1.39462855 | N114: 176078.5133 | O114: 0.3584564283 | P114: 1.922552343 | Q114: 239660.0362 | R114: 0.2913825693 | S114: 2.6583797 | T114: 437410.0785 | U114: 0.5144255609 | V114: 7.169505762 | W114: 284607.6072 | X114: 0.4088433644 | Y114: 1.94067572 | Z114: 224860.1631 | AA114: 0.6066283573 | AB114: 0.6675299621 | AC114: 152506.6162 | AD114: 0.3578713288 | AE114: -0.4310277786 | AF114: 234649.6837 | AG114: 0.3783004586 | AH114: 2.857591813
A115: 2013-08-01 | B115: 142049.2906 | C115: 0.2283899465 | D115: 1.152156257 | E115: 160328.1198 | F115: 0.6049021633 | G115: 1.88791206 | H115: 159507.0661 | I115: 1.082345459 | J115: 1.644674364 | K115: 165480.4786 | L115: 0.2151114528 | M115: 2.191219137 | N115: 177499.3001 | O115: 0.8069052875 | P115: 2.936081994 | Q115: 240728.9434 | R115: 0.4460097662 | S115: 3.335157296 | T115: 443333.2475 | U115: 1.354145539 | V115: 9.198324003 | W115: 284404.8631 | X115: -0.0712363629 | Y115: 2.307027236 | Z115: 227248.0213 | AA115: 1.061930298 | AB115: 1.884511595 | AC115: 153588.4822 | AD115: 0.70938957 | AE115: 0.7447671266 | AF115: 236237.0548 | AG115: 0.6764855059 | AH115: 3.814102002
A116: 2013-09-01 | B116: 141989.1734 | C116: -0.04232140871 | D116: 1.544982048 | E116: 160950.9329 | F116: 0.3884615827 | G116: 2.748302616 | H116: 159868.2212 | I116: 0.2264194853 | J116: 1.760536688 | K116: 167447.5666 | L116: 1.188712997 | M116: 3.105173449 | N116: 178141.6947 | O116: 0.3619138246 | P116: 3.367658665 | Q116: 241678.1243 | R116: 0.3942944715 | S116: 3.433596304 | T116: 449709.1739 | U116: 1.438179161 | V116: 9.328180009 | W116: 284651.2345 | X116: 0.08662701159 | Y116: 2.711136238 | Z116: 228593.6525 | AA116: 0.5921421079 | AB116: 3.438442526 | AC116: 155722.6367 | AD116: 1.389527703 | AE116: 1.657824351 | AF116: 237775.8807 | AG116: 0.6513905671 | AH116: 4.332754425
A117: 2013-10-01 | B117: 142921.3499 | C117: 0.6565123794 | D117: 1.095540295 | E117: 160876.6807 | F117: -0.04613345734 | G117: 2.064126038 | H117: 161297.8309 | I117: 0.8942425557 | J117: 2.767059204 | K117: 167779.3916 | L117: 0.1981665232 | M117: 2.840825015 | N117: 179201.0653 | O117: 0.5946786644 | P117: 3.637094142 | Q117: 241783.2016 | R117: 0.04347820324 | S117: 3.288381776 | T117: 455576.4142 | U117: 1.304674367 | V117: 10.57453175 | W117: 286898.7597 | X117: 0.7895715743 | Y117: 3.81207767 | Z117: 228915.1533 | AA117: 0.1406429407 | AB117: 3.29755391 | AC117: 157282.4253 | AD117: 1.001645357 | AE117: 2.248009814 | AF117: 239310.3711 | AG117: 0.6453515741 | AH117: 4.835574563
A118: 2013-11-01 | B118: 142834.0643 | C118: -0.06107241934 | D118: 1.3322378 | E118: 160445.1336 | F118: -0.2682471429 | G118: 3.011936273 | H118: 160612.952 | I118: -0.4246051282 | J118: 2.34277962 | K118: 168879.9023 | L118: 0.6559272264 | M118: 3.167023996 | N118: 179827.4008 | O118: 0.3495154777 | P118: 4.067072321 | Q118: 242966.0626 | R118: 0.4892237973 | S118: 4.496284952 | T118: 462194.9844 | U118: 1.452790343 | V118: 10.85512508 | W118: 288438.5666 | X118: 0.5367073922 | Y118: 4.151235213 | Z118: 228328.5836 | AA118: -0.25623893 | AB118: 3.605145663 | AC118: 156996.0455 | AD118: -0.1820799547 | AE118: 2.048163915 | AF118: 240515.3182 | AG118: 0.5035080856 | AH118: 5.271380482
A119: 2013-12-01 | B119: 143254.2719 | C119: =B119/B118*100-100 -> 0.2941928148 | D119: =B119/B107*100-100 -> 2.068559305 | E119: 160639.1209 | F119: =E119/E118*100-100 -> 0.1209056768 | G119: =E119/E107*100-100 -> 3.126353752 | H119: 161709.0851 | I119: 0.6824686777 | J119: 3.545242309 | K119: 168576.7935 | L119: =K119/K118*100-100 -> -0.1794818517 | M119: =K119/K107*100-100 -> 3.271601285 | N119: 181142.5294 | O119: =N119/N118*100-100 -> 0.731328285 | P119: =N119/N107*100-100 -> 4.328950185 | Q119: 243993.4767 | R119: =Q119/Q118*100-100 -> 0.4228632112 | S119: =Q119/Q107*100-100 -> 4.590572485 | T119: 469161.4316 | U119: =T119/T118*100-100 -> 1.507252888 | V119: =T119/T107*100-100 -> 12.52199855 | W119: 293003.5785 | X119: =W119/W118*100-100 -> 1.582663493 | Y119: =W119/W107*100-100 -> 4.872547183 | Z119: 230260.4011 | AA119: =Z119/Z118*100-100 -> 0.8460690506 | AB119: =Z119/Z107*100-100 -> 3.340434403 | AC119: 157766.6469 | AD119: =AC119/AC118*100-100 -> 0.4908412823 | AE119: =AC119/AC107*100-100 -> 2.730691828 | AF119: 242810.653 | AG119: 0.9543404073 | AH119: 5.930569829
A120: 2014-01-01 | B120: 145582.206 | C120: 1.62503643 | D120: 4.085553749 | E120: 162353.6614 | F120: 1.067324411 | G120: 3.896472844 | H120: 162643.1007 | I120: 0.57759006 | J120: 3.900344691 | K120: 172163.6868 | L120: 2.127750352 | M120: 5.298555222 | N120: 182263.5923 | O120: 0.6188844369 | P120: 4.346976643 | Q120: 247026.3769 | R120: 1.243025136 | S120: 6.033425189 | T120: 482073.5813 | U120: 2.752176282 | V120: 14.10388051 | W120: 296315.7901 | X120: 1.130433859 | Y120: 5.875525648 | Z120: 231416.2668 | AA120: 0.5019819861 | AB120: 3.795842221 | AC120: 158598.9056 | AD120: 0.5275250778 | AE120: 3.773789481 | AF120: 246332.9364 | AG120: =AF120/AF119*100-100 -> 1.450629675 | AH120: =AF120/AF108*100-100 -> 7.043285848
A121: 2014-02-01 | B121: 147193.5924 | C121: 1.106856711 | D121: 3.506210383 | E121: 163331.164 | F121: 0.6020822546 | G121: 3.106798759 | H121: 162950.4396 | I121: 0.1889652525 | J121: 4.228389886 | K121: 173548.2904 | L121: 0.8042367351 | M121: 4.878787783 | N121: 183794.2287 | O121: 0.8397927314 | P121: 4.215776041 | Q121: 250092.6541 | R121: 1.241275193 | S121: 5.478040642 | T121: 486401.3224 | U121: 0.8977345544 | V121: 14.46591981 | W121: 300288.4423 | X121: 1.340681888 | Y121: 6.671941398 | Z121: 233762.3181 | AA121: 1.013779761 | AB121: 4.203606708 | AC121: 160172.9414 | AD121: 0.9924632352 | AE121: 3.437293714 | AF121: 248753.0461 | AG121: 0.9824547527 | AH121: 7.170088169
A122: 2014-03-01 | B122: 149782.0557 | C122: 1.758543441 | D122: 5.160901328 | E122: 164380.1975 | F122: 0.6422739616 | G122: 3.818482885 | H122: 164020.8202 | I122: 0.6568748875 | J122: 4.546819061 | K122: 174953.729 | L122: 0.8098256479 | M122: 6.28624202 | N122: 184422.7043 | O122: 0.3419452028 | P122: 5.041544431 | Q122: 253009.5509 | R122: 1.166326464 | S122: 6.645131756 | T122: 493643.4819 | U122: 1.488926759 | V122: 14.40615059 | W122: 303719.95 | X122: 1.142737216 | Y122: 7.173158757 | Z122: 236333.832 | AA122: 1.100054947 | AB122: 5.668956961 | AC122: 160099.3695 | AD122: -0.04593279355 | AE122: 3.77210728 | AF122: 251406.9511 | AG122: 1.066883439 | AH122: 7.860721526
A123: 2014-04-01 | B123: 148787.8453 | C123: -0.6637713419 | D123: 4.573873799 | E123: 163791.6316 | F123: -0.3580515864 | G123: 3.572895665 | H123: 164157.2633 | I123: 0.0831864533 | J123: 4.11421897 | K123: 174355.3432 | L123: -0.3420252099 | M123: 5.990530396 | N123: 184648.5416 | O123: 0.1224563526 | P123: 5.514869713 | Q123: 255356.5909 | R123: 0.9276487802 | S123: 6.810172919 | T123: 499392.4648 | U123: 1.164602229 | V123: 15.12829517 | W123: 305687.3593 | X123: 0.6477708286 | Y123: 7.61428415 | Z123: 238579.1491 | AA123: 0.9500616535 | AB123: 6.476983362 | AC123: 159774.392 | AD123: -0.2029848426 | AE123: 3.742836261 | AF123: 252880.0156 | AG123: 0.5859283044 | AH123: 8.195024208
A124: 2014-05-01 | B124: 149980.4889 | C124: 0.8015732879 | D124: 6.803194454 | E124: 164989.1528 | F124: 0.7311247367 | G124: 5.045749917 | H124: 164600.8808 | I124: 0.2702393554 | J124: 4.232324977 | K124: 174677.2653 | L124: 0.1846356465 | M124: 6.866987004 | N124: 184925.3622 | O124: 0.1499175664 | P124: 6.42797695 | Q124: 257244.718 | R124: 0.7394080076 | S124: 8.121992357 | T124: 512883.7594 | U124: 2.70154147 | V124: 17.83223119 | W124: 308605.1179 | X124: 0.9544910814 | Y124: 8.23416636 | Z124: 238947.4241 | AA124: 0.1543617468 | AB124: 6.744444998 | AC124: 158740.2361 | AD124: -0.6472600898 | AE124: 3.874824535 | AF124: 255587.8196 | AG124: 1.070786083 | AH124: 9.453698254
A125: 2014-06-01 | B125: 148638.3384 | C125: -0.8948834193 | D125: 4.904324847 | E125: 164894.1739 | F125: -0.05756670482 | G125: 3.999966083 | H125: 164500.6973 | I125: -0.06086450441 | J125: 3.958895432 | K125: 175196.5607 | L125: 0.2972885037 | M125: 6.247156347 | N125: 185552.1886 | O125: 0.3389618478 | P125: 5.758112598 | Q125: 260001.0009 | R125: 1.071463378 | S125: 8.803537961 | T125: 524519.9963 | U125: 2.268786398 | V125: 20.53180464 | W125: 311316.8899 | X125: 0.8787190666 | Y125: 9.831810692 | Z125: 238321.2373 | AA125: -0.2620604981 | AB125: 6.629363869 | AC125: 160130.1507 | AD125: 0.875590551 | AE125: 5.374582799 | AF125: 257885.4539 | AG125: 0.8989607951 | AH125: 10.31808424
A126: 2014-07-01 | B126: 147940.2801 | C126: =B126/B125*100-100 -> -0.4696354157 | D126: =B126/B114*100-100 -> 4.385006227 | E126: 165743.8989 | F126: =E126/E125*100-100 -> 0.5153153108 | G126: =E126/E114*100-100 -> 4.00327001 | H126: 164834.8274 | I126: 0.2031177372 | J126: 4.45863854 | K126: 176814.1122 | L126: =K126/K125*100-100 -> 0.9232781091 | M126: =K126/K114*100-100 -> 7.078769104 | N126: 187529.6659 | O126: =N126/N125*100-100 -> 1.065725634 | P126: =N126/N114*100-100 -> 6.503435503 | Q126: 261247.192 | R126: =Q126/Q125*100-100 -> 0.4793024217 | S126: =Q126/Q114*100-100 -> 9.007407369 | T126: 526994.6962 | U126: =T126/T125*100-100 -> 0.4718027643 | V126: =T126/T114*100-100 -> 20.48069355 | W126: 314788.2781 | X126: =W126/W125*100-100 -> 1.115065835 | Y126: =W126/W114*100-100 -> 10.60430931 | Z126: 239509.6113 | AA126: =Z126/Z125*100-100 -> 0.4986437963 | AB126: =Z126/Z114*100-100 -> 6.514914898 | AC126: 160157.0826 | AD126: =AC126/AC125*100-100 -> 0.01681878248 | AE126: =AC126/AC114*100-100 -> 5.016481643 | AF126: 259516.3382 | AG126: =AF126/AF125*100-100 -> 0.6324064673 | AH126: =AF126/AF114*100-100 -> 10.59735265
A127: 2014-08-01 | B127: 147626.101 | C127: -0.2123689057 | D127: 3.925968468 | E127: 166948.9479 | F127: 0.7270548057 | G127: 4.129548888 | H127: 165864.0224 | I127: 0.6243796066 | J127: 3.985375981 | K127: 177893.3233 | L127: 0.6103648028 | M127: 7.501093059 | N127: 189053.1477 | O127: 0.8123951027 | P127: 6.509235544 | Q127: 264136.0632 | R127: 1.105799909 | S127: 9.723433949 | T127: 529886.4898 | U127: 0.5487329652 | V127: 19.52329151 | W127: 316738.1293 | X127: 0.6194167016 | Y127: 11.36874592 | Z127: 242500.1704 | AA127: 1.248617574 | AB127: 6.711675234 | AC127: 162348.6119 | AD127: 1.368362393 | AE127: 5.703637107 | AF127: 261463.5091 | AG127: 0.7503076525 | AH127: 10.67844938
A128: 2014-09-01 | B128: 147026.6336 | C128: -0.4060713685 | D128: 3.547777744 | E128: 167957.8463 | F128: 0.6043155358 | G128: 4.353446878 | H128: 166992.4216 | I128: 0.6803157972 | J128: 4.456295514 | K128: 179402.4483 | L128: 0.8483314578 | M128: 7.139477752 | N128: 189358.8175 | O128: 0.1616846044 | P128: 6.296741976 | Q128: 265769.0301 | R128: 0.6182294347 | S128: 9.968178068 | T128: 534810.4557 | U128: 0.9292491771 | V128: 18.92362591 | W128: 317734.6739 | X128: 0.3146272982 | Y128: 11.6224472 | Z128: 244027.8535 | AA128: 0.6299719451 | AB128: 6.751806454 | AC128: 162920.0213 | AD128: 0.3519644431 | AE128: 4.621925684 | AF128: 263004.3335 | AG128: 0.589307605 | AH128: 10.61018161
A129: 2014-10-01 | B129: 148522.5274 | C129: 1.017430443 | D129: 3.919062846 | E129: 168691.6257 | F129: 0.4368831071 | G129: 4.857723953 | H129: 168552.6356 | I129: 0.934302273 | J129: 4.497769532 | K129: 179004.8529 | L129: -0.2216220887 | M129: 6.690607935 | N129: 190768.8845 | O129: 0.7446534429 | P129: 6.455217857 | Q129: 267543.7535 | R129: 0.6677690818 | S129: 10.65440102 | T129: 536506.6074 | U129: 0.3171500647 | V129: 17.76435096 | W129: 317938.663 | X129: 0.06420107281 | Y129: 10.81911379 | Z129: 244879.678 | AA129: 0.3490685687 | AB129: 6.973992088 | AC129: 164690.4685 | AD129: 1.086697153 | AE129: 4.710026058 | AF129: 264015.4831 | AG129: 0.3844611939 | AH129: 10.32346065
A130: 2014-11-01 | B130: 147571.0321 | C130: -0.6406403788 | D130: 3.316413201 | E130: 167877.8436 | F130: -0.4824081477 | G130: 4.63255559 | H130: 169388.2586 | I130: 0.4957638771 | J130: 5.463635732 | K130: 179214.8463 | L130: 0.1173115911 | M130: 6.119700378 | N130: 191022.7497 | O130: 0.1330747516 | P130: 6.225607932 | Q130: 266983.1021 | R130: -0.2095550557 | S130: 9.884935868 | T130: 536418.0657 | U130: -0.01650336988 | V130: 16.05882448 | W130: 319119.2039 | X130: 0.3713109052 | Y130: 10.63680135 | Z130: 243934.9623 | AA130: -0.3857876907 | AB130: 6.83505259 | AC130: 164145.0539 | AD130: -0.3311755595 | AE130: 4.553623233 | AF130: 263997.0974 | AG130: -0.006963865843 | AH130: 9.763111728
A131: 2014-12-01 | B131: 149201.1166 | C131: 1.104610067 | D131: 4.151251204 | E131: 168401.3499 | F131: 0.3118376612 | G131: 4.832091355 | H131: 169452.9216 | I131: 0.03817443013 | J131: 4.788745508 | K131: 179164.0962 | L131: -0.02831803739 | M131: 6.280403397 | N131: 191509.3719 | O131: 0.2547456623 | P131: 5.723030634 | Q131: 269082.7172 | R131: 0.7864224829 | S131: 10.28275053 | T131: 531678.4319 | U131: -0.8835708709 | V131: 13.3252642 | W131: 319966.4668 | X131: 0.2655004364 | Y131: 9.202238582 | Z131: 245516.2681 | AA131: 0.6482489028 | AB131: 6.625484422 | AC131: 164448.7846 | AD131: 0.185037973 | AE131: 4.235456487 | AF131: 264169.6851 | AG131: 0.06537483268 | AH131: 8.796579459
A132: 2015-01-01 | B132: 150206.6857 | C132: =B132/B131*100-100 -> 0.6739688997 | D132: =B132/B120*100-100 -> 3.176541853 | E132: 169851.539 | F132: =E132/E131*100-100 -> 0.8611505149 | G132: =E132/E120*100-100 -> 4.618237463 | H132: 169677.0129 | I132: 0.1322439574 | J132: 4.324752889 | K132: 180770.7451 | L132: =K132/K131*100-100 -> 0.8967471206 | M132: =K132/K120*100-100 -> 4.999345902 | N132: 192645.6097 | O132: =N132/N131*100-100 -> 0.5933066504 | P132: =N132/N120*100-100 -> 5.69615535 | Q132: 272404.4917 | R132: =Q132/Q131*100-100 -> 1.234480801 | S132: =Q132/Q120*100-100 -> 10.27344329 | T132: 533597.6882 | U132: =T132/T131*100-100 -> 0.3609806457 | V132: =T132/T120*100-100 -> 10.68801711 | W132: 322338.8225 | X132: =W132/W131*100-100 -> 0.7414388651 | Y132: =W132/W120*100-100 -> 8.782195648 | Z132: 244353.7772 | AA132: =Z132/Z131*100-100 -> -0.4734883045 | AB132: =Z132/Z120*100-100 -> 5.590579536 | AC132: 164806.1936 | AD132: =AC132/AC131*100-100 -> 0.2173375959 | AE132: =AC132/AC120*100-100 -> 3.913827821 | AF132: 265578.7657 | AG132: =AF132/AF131*100-100 -> 0.5333998317 | AH132: =AF132/AF120*100-100 -> 7.812933819
A133: 2015-02-01 | B133: 153378.2977 | C133: 2.111498557 | D133: 4.201748993 | E133: 170663.9337 | F133: 0.4782969405 | G133: 4.489510491 | H133: 169345.721 | I133: -0.1952485087 | J133: 3.924678833 | K133: 182817.9824 | L133: 1.132504815 | M133: 5.341275317 | N133: 193015.785 | O133: 0.1921535124 | P133: 5.017326352 | Q133: 276111.8695 | R133: 1.360982637 | S133: 10.40383035 | T133: 531496.0599 | U133: -0.3938600746 | V133: 9.271096813 | W133: 323543.3469 | X133: 0.3736826957 | Y133: 7.744189061 | Z133: 246869.7535 | AA133: 1.029644935 | AB133: 5.607163539 | AC133: 166143.8397 | AD133: 0.8116479246 | AE133: 3.727782145 | AF133: 266724.054 | AG133: 0.4312424015 | AH133: 7.224437324
A134: 2015-03-01 | B134: 154022.8551 | C134: 0.4202402838 | D134: 2.831313402 | E134: 171126.6617 | F134: 0.271134008 | G134: 4.104183028 | H134: 169416.8338 | I134: 0.04199262571 | J134: 3.28983455 | K134: 183725.7199 | L134: 0.4965252536 | M134: 5.013891921 | N134: 193271.2891 | O134: 0.1323747356 | P134: 4.797991057 | Q134: 277075.3064 | R134: 0.3489298865 | S134: 9.511797238 | T134: 529503.4207 | U134: -0.3749113805 | V134: 7.26433958 | W134: 325738.7956 | X134: 0.6785640007 | Y134: 7.249719878 | Z134: 248180.5352 | AA134: 0.5309608332 | AB134: 5.012698826 | AC134: 166211.9614 | AD134: 0.04100163287 | AE134: 3.817998737 | AF134: 267320.6428 | AG134: 0.2236726689 | AH134: 6.329853487
A135: 2015-04-01 | B135: 153402.9422 | C135: -0.4024810847 | D135: 3.101796998 | E135: 170852.3228 | F135: -0.1603133527 | G135: 4.310776512 | H135: 169091.079 | I135: -0.1922800734 | J135: 3.005542123 | K135: 184044.4712 | L135: 0.1734930422 | M135: 5.557115663 | N135: 192673.9534 | O135: -0.3090659626 | P135: 4.346317443 | Q135: 278166.2402 | R135: 0.3937318852 | S135: 8.932469378 | T135: 533254.7682 | U135: 0.708465213 | V135: 6.780699704 | W135: 326565.9507 | X135: 0.2539320145 | Y135: 6.830047369 | Z135: 250078.4367 | AA135: 0.7647261454 | AB135: 4.81990467 | AC135: 164721.0403 | AD135: -0.8969998585 | AE135: 3.09602073 | AF135: 268109.7276 | AG135: 0.2951828842 | AH135: 6.022505149
A136: 2015-05-01 | B136: 150875.9149 | C136: -1.647313457 | D136: 0.5970283143 | E136: 170459.043 | F136: -0.2301869658 | G136: 3.315302964 | H136: 170512.2018 | I136: 0.8404481366 | J136: 3.591305805 | K136: 184973.0221 | L136: 0.5045252824 | M136: 5.894159633 | N136: 194004.6084 | O136: 0.6906252808 | P136: 4.909681449 | Q136: 278399.6639 | R136: 0.08391518804 | S136: 8.223665814 | T136: 537398.8145 | U136: 0.7771231549 | V136: 4.779846247 | W136: 328887.739 | X136: 0.7109707159 | Y136: 6.572354107 | Z136: 250771.3942 | AA136: 0.2770960696 | AB136: 4.94835639 | AC136: 164123.9364 | AD136: -0.3624940073 | AE136: 3.391515852 | AF136: 269302.1088 | AG136: 0.4447362902 | AH136: 5.365783558
A137: 2015-06-01 | B137: 150212.42 | C137: -0.4397619974 | D137: 1.059001057 | E137: 170960.6265 | F137: 0.2942545329 | G137: 3.678997509 | H137: 171693.8265 | I137: 0.6929854591 | J137: 4.372704421 | K137: 186481.042 | L137: 0.8152647903 | M137: 6.441040455 | N137: 195518.7963 | O137: 0.7804906697 | P137: 5.37132314 | Q137: 279993.4865 | R137: 0.5724944415 | S137: 7.689387932 | T137: 544608.7297 | U137: 1.341632133 | V137: 3.829927071 | W137: 329922.6433 | X137: 0.3146679659 | Y137: 5.976467738 | Z137: 250517.9111 | AA137: -0.1010813436 | AB137: 5.117745268 | AC137: 163669.0136 | AD137: -0.2771825122 | AE137: 2.209991622 | AF137: 270929.9059 | AG137: 0.6044501801 | AH137: 5.058234883
A138: 2015-07-01 | B138: 149577.2419 | C138: =B138/B137*100-100 -> -0.4228532473 | D138: =B138/B126*100-100 -> 1.106501729 | E138: 171546.0384 | F138: =E138/E137*100-100 -> 0.3424250017 | G138: =E138/E126*100-100 -> 3.500665542 | H138: 172617.4558 | I138: 0.5379513368 | J138: 4.721470898 | K138: 186437.6868 | L138: =K138/K137*100-100 -> -0.02324912594 | M138: =K138/K126*100-100 -> 5.442763887 | N138: 195994.9055 | O138: =N138/N137*100-100 -> 0.243510716 | P138: =N138/N126*100-100 -> 4.514080259 | Q138: 281399.4064 | R138: =Q138/Q137*100-100 -> 0.5021259142 | S138: =Q138/Q126*100-100 -> 7.713849168 | T138: 546098.6716 | U138: =T138/T137*100-100 -> 0.2735802579 | V138: =T138/T126*100-100 -> 3.625079265 | W138: 331722.2303 | X138: =W138/W137*100-100 -> 0.5454572292 | Y138: =W138/W126*100-100 -> 5.379473536 | Z138: 252485.9439 | AA138: =Z138/Z137*100-100 -> 0.7855856566 | AB138: =Z138/Z126*100-100 -> 5.417875501 | AC138: 164699.6818 | AD138: =AC138/AC137*100-100 -> 0.6297271316 | AE138: =AC138/AC126*100-100 -> 2.83633985 | AF138: 272042.6814 | AG138: =AF138/AF137*100-100 -> 0.4107244959 | AH138: =AF138/AF126*100-100 -> 4.826803305
A139: 2015-08-01 | B139: 150874.6763 | C139: 0.8674009337 | D139: 2.200542644 | E139: 173810.671 | F139: 1.320131083 | G139: 4.110072712 | H139: 174063.0972 | I139: 0.8374827853 | J139: 4.943250931 | K139: 186977.9505 | L139: 0.2897824177 | M139: 5.106783664 | N139: 196902.7639 | O139: 0.4632051032 | P139: 4.152068509 | Q139: 286023.2552 | R139: 1.643162262 | S139: 8.286332325 | T139: 555763.8634 | U139: 1.769861788 | V139: 4.883569227 | W139: 333523.2386 | X139: 0.5429266302 | Y139: 5.299364907 | Z139: 252937.4183 | AA139: 0.1788117102 | AB139: 4.304016724 | AC139: 165142.7381 | AD139: 0.2690086022 | AE139: 1.721065643 | AF139: 274765.7707 | AG139: 1.000978721 | AH139: 5.087616869
A140: 2015-09-01 | B140: 150760.3389 | C140: -0.07578299714 | D140: 2.539475461 | E140: 174102.5816 | F140: 0.1679474809 | G140: 3.658498545 | H140: 174942.9763 | I140: 0.5054942883 | J140: 4.761027253 | K140: 188759.3156 | L140: 0.9527139996 | M140: 5.215573895 | N140: 196964.4714 | O140: 0.03133909006 | P140: 4.016530104 | Q140: 288292.3251 | R140: 0.7933165863 | S140: 8.474762846 | T140: 561296.397 | U140: 0.9954827981 | V140: 4.952397823 | W140: 337258.1685 | X140: 1.119840995 | Y140: 6.144590506 | Z140: 253752.7469 | AA140: 0.3223439946 | AB140: 3.985157141 | AC140: 166636.3187 | AD140: 0.9044180094 | AE140: 2.281056329 | AF140: 276827.7742 | AG140: 0.7504586402 | AH140: 5.255974507
A141: 2015-10-01 | B141: 151595.0267 | C141: 0.55365212 | D141: 2.068709319 | E141: 174977.9395 | F141: 0.502782819 | G141: 3.726512058 | H141: 176375.2619 | I141: 0.8187156886 | J141: 4.641058431 | K141: 191064.7696 | L141: 1.221372294 | M141: 6.737200978 | N141: 198639.3544 | O141: 0.8503477647 | P141: 4.125657052 | Q141: 290905.7501 | R141: 0.9065191005 | S141: 8.732028423 | T141: 569369.029 | U141: 1.438211979 | V141: 6.125259452 | W141: 341481.2418 | X141: 1.252178207 | Y141: 7.404754931 | Z141: 255665.3301 | AA141: 0.7537192152 | AB141: 4.404470062 | AC141: 167789.5019 | AD141: 0.6920359232 | AE141: 1.8817321 | AF141: 279786.032 | AG141: 1.068627515 | AH141: 5.973342434
A142: 2015-11-01 | B142: 152040.3298 | C142: 0.293745183 | D142: 3.028573882 | E142: 173520.2608 | F142: -0.8330642737 | G142: 3.361025552 | H142: 176315.2223 | I142: -0.03404079356 | J142: 4.089400139 | K142: 191200.2492 | L142: 0.07090770924 | M142: 6.68772881 | N142: 198499.8362 | O142: -0.07023696258 | P142: 3.914238739 | Q142: 289814.1896 | R142: -0.3752282359 | S142: 8.551510329 | T142: 572642.9943 | U142: 0.5750163856 | V142: 6.753114945 | W142: 343100.6743 | X142: 0.4742376008 | Y142: 7.514894137 | Z142: 257453.9703 | AA142: 0.6996021834 | AB142: 5.542054268 | AC142: 168390.0285 | AD142: 0.3579047546 | AE142: 2.586111793 | AF142: 280434.6116 | AG142: 0.2318127395 | AH142: 6.226399606
A143: 2015-12-01 | B143: 153495.136 | C143: 0.9568554694 | D143: 2.878007597 | E143: 174051.922 | F143: 0.3063971706 | G143: 3.355419687 | H143: 176743.7798 | I143: 0.243063254 | J143: 4.302586304 | K143: 190319.3148 | L143: -0.4607391702 | M143: 6.226257845 | N143: 200682.526 | O143: 1.099592785 | P143: 4.789924423 | Q143: 292772.4594 | R143: 1.020747056 | S143: 8.803888434 | T143: 578039.2826 | U143: 0.9423477497 | V143: 8.719716265 | W143: 346052.4911 | X143: 0.8603354684 | Y143: 8.152736917 | Z143: 260116.4701 | AA143: 1.034165356 | AB143: 5.946735081 | AC143: 169053.543 | AD143: 0.3940343221 | AE143: 2.80011703 | AF143: 282603.6731 | AG143: 0.7734642426 | AH143: 6.978086079
A144: 2016-01-01 | B144: 155244.8004 | C144: =B144/B143*100-100 -> 1.139882637 | D144: =B144/B132*100-100 -> 3.354121507 | E144: 174410.9278 | F144: =E144/E143*100-100 -> 0.2062636532 | G144: =E144/E132*100-100 -> 2.684337649 | H144: 177998.7744 | I144: =H144/H143*100-100 -> 0.7100643517 | J144: =H144/H132*100-100 -> 4.904471962 | K144: 191139.2036 | L144: =K144/K143*100-100 -> 0.4307964183 | M144: =K144/K132*100-100 -> 5.735694959 | N144: 200570.1664 | O144: =N144/N143*100-100 -> -0.05598873557 | P144: =N144/N132*100-100 -> 4.113541305 | Q144: 296887.5153 | R144: =Q144/Q143*100-100 -> 1.405547466 | S144: =Q144/Q132*100-100 -> 8.987745932 | T144: 585433.8121 | U144: =T144/T143*100-100 -> 1.27924341 | V144: =T144/T132*100-100 -> 9.714458112 | W144: 348947.4734 | X144: =W144/W143*100-100 -> 0.8365731946 | Y144: =W144/W132*100-100 -> 8.254870043 | Z144: 260869.7136 | AA144: =Z144/Z143*100-100 -> 0.2895793106 | AB144: =Z144/Z132*100-100 -> 6.75902641 | AC144: 170429.5937 | AD144: =AC144/AC143*100-100 -> 0.813973297 | AE144: =AC144/AC132*100-100 -> 3.412129097 | AF144: 284973.0847 | AG144: =AF144/AF143*100-100 -> 0.838422084 | AH144: =AF144/AF132*100-100 -> 7.30266176
A145: 2016-02-01 | B145: 157240.0054 | C145: 1.285199189 | D145: 2.517766675 | E145: 177545.0436 | F145: 1.796972146 | G145: 4.031964889 | H145: 178783.7266 | I145: 0.4409874407 | J145: 5.573217641 | K145: 193772.3762 | L145: 1.377620393 | M145: 5.991967322 | N145: 202908.8697 | O145: 1.16602748 | P145: 5.125531406 | Q145: 304726.1163 | R145: 2.640259556 | S145: 10.36328023 | T145: 598413.2337 | U145: 2.217060471 | V145: 12.5903424 | W145: 358374.1627 | X145: 2.701463686 | Y145: 10.76542482 | Z145: 266539.2745 | AA145: 2.17333044 | AB145: 7.96757021 | AC145: 173096.9919 | AD145: 1.565102706 | AE145: 4.185019578 | AF145: 290941.087 | AG145: 2.094233683 | AH145: 9.079433477
A146: 2016-03-01 | B146: 156785.0826 | C146: -0.2893174526 | D146: 1.793388061 | E146: 178943.3432 | F146: 0.7875745267 | G146: 4.567775344 | H146: 179012.5966 | I146: 0.1280149875 | J146: 5.663996096 | K146: 194223.1613 | L146: 0.2326363961 | M146: 5.713648255 | N146: 201862.3011 | O146: -0.5157825734 | P146: 4.445053371 | Q146: 306257.3003 | R146: 0.5024787592 | S146: 10.53215255 | T146: 601709.2502 | U146: 0.5507927157 | V146: 13.63651804 | W146: 358515.4948 | X146: 0.03943700586 | Y146: 10.06226448 | Z146: 265524.6304 | AA146: -0.3806733937 | AB146: 6.988499369 | AC146: 171993.6491 | AD146: -0.6374130505 | AE146: 3.478502791 | AF146: 291502.7618 | AG146: 0.1930544672 | AH146: 9.046109852
A147: 2016-04-01 | B147: 155774.4569 | C147: -0.6445929913 | D147: 1.54593821 | E147: 179570.9247 | F147: 0.3507152164 | G147: 5.103004594 | H147: 177640.0503 | I147: -0.7667317023 | J147: 5.055838183 | K147: 193800.3197 | L147: -0.2177091441 | M147: 5.300810397 | N147: 202404.5303 | O147: 0.2686133858 | P147: 5.050281429 | Q147: 307863.3109 | R147: 0.5243991133 | S147: 10.67601542 | T147: 599621.7554 | U147: -0.346927488 | V147: 12.44564346 | W147: 358370.949 | X147: -0.04031786537 | Y147: 9.739226697 | Z147: 266504.3184 | AA147: 0.368963162 | AB147: 6.568291928 | AC147: 170928.3383 | AD147: -0.6193895844 | AE147: 3.768369853 | AF147: 291395.508 | AG147: -0.03679339401 | AH147: 8.685168074
A148: 2016-05-01 | B148: 153741.9832 | C148: -1.304754157 | D148: 1.899619505 | E148: 178109.3073 | F148: -0.8139499352 | G148: 4.488036597 | H148: 178057.2681 | I148: 0.234867005 | J148: 4.424942203 | K148: 193573.5899 | L148: -0.1169914248 | M148: 4.649633619 | N148: 203038.5002 | O148: 0.3132192275 | P148: 4.656534623 | Q148: 306539.9396 | R148: -0.4298567573 | S148: 10.10786986 | T148: 593173.5632 | U148: -1.075376634 | V148: 10.37865123 | W148: 355340.6078 | X148: -0.8455878529 | Y148: 8.043130111 | Z148: 263292.4909 | AA148: -1.205169045 | AB148: 4.993032296 | AC148: 169399.7326 | AD148: -0.8942962438 | AE148: 3.214519668 | AF148: 289272.2538 | AG148: -0.7286503 | AH148: 7.415517483
A149: 2016-06-01 | B149: 154477.3447 | C149: 0.4783088399 | D149: 2.839262387 | E149: 178559.209 | F149: 0.2525986893 | G149: 4.444638924 | H149: 178699.1329 | I149: 0.3604822159 | J149: 4.080115482 | K149: 194598.9196 | L149: 0.5296847013 | M149: 4.353191887 | N149: 204883.7945 | O149: 0.9088396025 | P149: 4.789819889 | Q149: 308437.1737 | R149: 0.6189190578 | S149: 10.15869604 | T149: 588593.873 | U149: -0.7720657969 | V149: 8.076466806 | W149: 358127.2364 | X149: 0.7842134031 | Y149: 8.548850359 | Z149: 265274.9308 | AA149: 0.7529420646 | AB149: 5.890604647 | AC149: 170279.8946 | AD149: 0.519576977 | AE149: 4.039176953 | AF149: 290079.8682 | AG149: 0.2791883598 | AH149: 7.068234965
A150: 2016-07-01 | B150: 153774.4571 | C150: =B150/B149*100-100 -> -0.455010165 | D150: =B150/B138*100-100 -> 2.806052019 | E150: 177867.4086 | F150: =E150/E149*100-100 -> -0.387434739 | G150: =E150/E138*100-100 -> 3.684940949 | H150: 178572.1102 | I150: =H150/H149*100-100 -> -0.07108187186 | J150: =H150/H138*100-100 -> 3.449624749 | K150: 196346.9877 | L150: =K150/K149*100-100 -> 0.8982927697 | M150: =K150/K138*100-100 -> 5.315073899 | N150: 205953.11 | O150: =N150/N149*100-100 -> 0.5219131854 | P150: =N150/N138*100-100 -> 5.080848649 | Q150: 308695.8012 | R150: =Q150/Q149*100-100 -> 0.08385093714 | S150: =Q150/Q138*100-100 -> 9.700231849 | T150: 587324.6515 | U150: =T150/T149*100-100 -> -0.2156361932 | V150: =T150/T138*100-100 -> 7.549181499 | W150: 360141.0311 | X150: =W150/W149*100-100 -> 0.562312613 | Y150: =W150/W138*100-100 -> 8.567047427 | Z150: 265886.9627 | AA150: =Z150/Z149*100-100 -> 0.2307160642 | AB150: =Z150/Z138*100-100 -> 5.307629649 | AC150: 169876.523 | AD150: =AC150/AC149*100-100 -> -0.2368873934 | AE150: =AC150/AC138*100-100 -> 3.143200541 | AF150: 290490.8991 | AG150: =AF150/AF149*100-100 -> 0.1416957623 | AH150: =AF150/AF138*100-100 -> 6.781368878
A151: 2016-08-01 | B151: 153181.5249 | C151: =B151/B150*100-100 -> -0.3855856443 | D151: =B151/B139*100-100 -> 1.528983292 | E151: 178865.0643 | F151: =E151/E150*100-100 -> 0.5608985106 | G151: =E151/E139*100-100 -> 2.907987903 | H151: 178181.3698 | I151: =H151/H150*100-100 -> -0.2188137896 | J151: =H151/H139*100-100 -> 2.365965366 | K151: 197244.4829 | L151: =K151/K150*100-100 -> 0.4570965353 | M151: =K151/K139*100-100 -> 5.490771744 | N151: 206285.6405 | O151: =N151/N150*100-100 -> 0.1614593456 | P151: =N151/N139*100-100 -> 4.765233591 | Q151: 310344.2916 | R151: =Q151/Q150*100-100 -> 0.5340177469 | S151: =Q151/Q139*100-100 -> 8.503167455 | T151: 588786.7764 | U151: =T151/T150*100-100 -> 0.2489466274 | V151: =T151/T139*100-100 -> 5.941896417 | W151: 361787.6936 | X151: =W151/W150*100-100 -> 0.4572271557 | Y151: =W151/W139*100-100 -> 8.474508456 | Z151: 266874.6949 | AA151: =Z151/Z150*100-100 -> 0.3714857456 | AB151: =Z151/Z139*100-100 -> 5.510167946 | AC151: 169295.168 | AD151: =AC151/AC150*100-100 -> -0.3422220943 | AE151: =AC151/AC139*100-100 -> 2.514449033 | AF151: 291416.1739 | AG151: 0.3185210871 | AH151: 6.05985349
A152: 2016-09-01 | B152: 153287.0316 | C152: =B152/B151*100-100 -> 0.06887695323 | D152: =B152/B140*100-100 -> 1.675966457 | E152: 178808.6517 | F152: =E152/E151*100-100 -> -0.03153919109 | G152: =E152/E140*100-100 -> 2.70304438 | H152: 178818.9233 | I152: =H152/H151*100-100 -> 0.3578114882 | J152: =H152/H140*100-100 -> 2.21554879 | K152: 198693.7996 | L152: =K152/K151*100-100 -> 0.7347818625 | M152: =K152/K140*100-100 -> 5.263043054 | N152: 206581.3205 | O152: =N152/N151*100-100 -> 0.1433351941 | P152: =N152/N140*100-100 -> 4.882529812 | Q152: 312703.8701 | R152: =Q152/Q151*100-100 -> 0.7603099605 | S152: =Q152/Q140*100-100 -> 8.467636097 | T152: 597658.7619 | U152: =T152/T151*100-100 -> 1.506824852 | V152: =T152/T140*100-100 -> 6.478282258 | W152: 363057.7549 | X152: =W152/W151*100-100 -> 0.3510515448 | Y152: =W152/W140*100-100 -> 7.649803266 | Z152: 267322.4882 | AA152: =Z152/Z151*100-100 -> 0.1677915914 | AB152: =Z152/Z140*100-100 -> 5.347623399 | AC152: 170841.4148 | AD152: =AC152/AC151*100-100 -> 0.91334371 | AE152: =AC152/AC140*100-100 -> 2.523517152 | AF152: 293367.862 | AG152: 0.66972539 | AH152: 5.974865721
A153: 2016-10-01 | B153: 155136.5401 | C153: =B153/B152*100-100 -> 1.206565532 | D153: =B153/B141*100-100 -> 2.336167263 | E153: 181795.1246 | F153: =E153/E152*100-100 -> 1.670206034 | G153: =E153/E141*100-100 -> 3.896025458 | H153: 181137.0537 | I153: =H153/H152*100-100 -> 1.296356359 | J153: =H153/H141*100-100 -> 2.699807123 | K153: 199868.5742 | L153: =K153/K152*100-100 -> 0.5912487304 | M153: =K153/K141*100-100 -> 4.60775927 | N153: 208792.0392 | O153: =N153/N152*100-100 -> 1.070144557 | P153: =N153/N141*100-100 -> 5.111114483 | Q153: 315241.6709 | R153: =Q153/Q152*100-100 -> 0.8115667996 | S153: =Q153/Q141*100-100 -> 8.36556884 | T153: 605257.3985 | U153: =T153/T152*100-100 -> 1.271400519 | V153: =T153/T141*100-100 -> 6.303182584 | W153: 364558.5129 | X153: =W153/W152*100-100 -> 0.4133661779 | Y153: =W153/W141*100-100 -> 6.757990848 | Z153: 269329.8851 | AA153: =Z153/Z152*100-100 -> 0.75092706 | AB153: =Z153/Z141*100-100 -> 5.344703934 | AC153: 173135.0828 | AD153: =AC153/AC152*100-100 -> 1.342571419 | AE153: =AC153/AC141*100-100 -> 3.185885198 | AF153: 296141.9061 | AG153: 0.9455855473 | AH153: 5.84585085
A154: 2016-11-01 | B154: 156151.6644 | C154: =B154/B153*100-100 -> 0.6543424522 | D154: =B154/B142*100-100 -> 2.70410788 | E154: 182343.818 | F154: =E154/E153*100-100 -> 0.3018196784 | G154: =E154/E142*100-100 -> 5.08502995 | H154: 182670.9055 | I154: =H154/H153*100-100 -> 0.8467907443 | J154: =H154/H142*100-100 -> 3.604727456 | K154: 200847.1171 | L154: =K154/K153*100-100 -> 0.4895931894 | M154: =K154/K142*100-100 -> 5.04542643 | N154: 209585.319 | O154: =N154/N153*100-100 -> 0.3799377625 | P154: =N154/N142*100-100 -> 5.584630737 | Q154: 316541.305 | R154: =Q154/Q153*100-100 -> 0.4122659516 | S154: =Q154/Q142*100-100 -> 9.222155551 | T154: 611538.4019 | U154: =T154/T153*100-100 -> 1.037740863 | V154: =T154/T142*100-100 -> 6.792261148 | W154: 365947.3576 | X154: =W154/W153*100-100 -> 0.3809661942 | Y154: =W154/W142*100-100 -> 6.65888616 | Z154: 270089.5414 | AA154: =Z154/Z153*100-100 -> 0.2820542263 | AB154: =Z154/Z142*100-100 -> 4.907895198 | AC154: 174492.8905 | AD154: =AC154/AC153*100-100 -> 0.7842475746 | AE154: =AC154/AC142*100-100 -> 3.624241911 | AF154: 297874.6128 | AG154: 0.5850933964 | AH154: 6.218918947
A155: 2016-12-01 | B155: 156923.0536 | C155: =B155/B154*100-100 -> 0.4939999904 | D155: =B155/B143*100-100 -> 2.233241797 | E155: 183652.4482 | F155: =E155/E154*100-100 -> 0.7176717883 | G155: =E155/E143*100-100 -> 5.515897838 | H155: 183107.4665 | I155: =H155/H154*100-100 -> 0.23898769 | J155: =H155/H143*100-100 -> 3.600515217 | K155: 201516.1414 | L155: =K155/K154*100-100 -> 0.333101274 | M155: =K155/K143*100-100 -> 5.883179365 | N155: 211583.0035 | O155: =N155/N154*100-100 -> 0.9531605233 | P155: =N155/N143*100-100 -> 5.431702364 | Q155: 317014.3948 | R155: =Q155/Q154*100-100 -> 0.1494559501 | S155: =Q155/Q143*100-100 -> 8.280128339 | T155: 615363.4262 | U155: =T155/T154*100-100 -> 0.6254757395 | V155: =T155/T143*100-100 -> 6.45702545 | W155: 369710.4664 | X155: =W155/W154*100-100 -> 1.0283197 | Y155: =W155/W143*100-100 -> 6.836527955 | Z155: 274694.8239 | AA155: =Z155/Z154*100-100 -> 1.705094736 | AB155: =Z155/Z143*100-100 -> 5.604548542 | AC155: 175585.3298 | AD155: =AC155/AC154*100-100 -> 0.626065222 | AE155: =AC155/AC143*100-100 -> 3.863738474 | AF155: 300115.5783 | AG155: 0.7523183792 | AH155: 6.196630434
A156: 2017-01-01 | B156: 157582.4136 | C156: 0.4201804604 | D156: 1.505759377 | E156: 183177.8604 | F156: -0.2584162563 | G156: 5.026595911 | H156: 183334.9677 | I156: 0.1242446106 | J156: 2.99788203 | K156: 203256.4564 | L156: 0.8636106909 | M156: 6.339491103 | N156: 213780.6959 | O156: 1.038690421 | P156: 6.586487783 | Q156: 319833.8528 | R156: 0.8893785401 | S156: 7.7289668 | T156: 620463.1539 | U156: 0.8287342919 | V156: 5.983484583 | W156: 374176.532 | X156: 1.207990055 | Y156: 7.230044777 | Z156: 276944.0264 | AA156: 0.8188004515 | AB156: 6.161816407 | AC156: 175973.8416 | AD156: 0.2212666315 | AE156: 3.253101594 | AF156: 302504.8159 | AG156: =AF156/AF155*100-100 -> 0.7961058213 | AH156: =AF156/AF144*100-100 -> 6.15206563
A157: 2017-02-01 | B157: 157984.5315 | C157: 0.2551794397 | D157: 0.4734966408 | E157: 184960.2479 | F157: 0.9730365274 | G157: 4.176520006 | H157: 183207.0947 | I157: -0.06974828398 | J157: 2.474144667 | K157: 204472.7319 | L157: 0.5983945297 | M157: 5.522126467 | N157: 215250.171 | O157: 0.687375019 | P157: 6.082189197 | Q157: 322156.2013 | R157: 0.7261109033 | S157: 5.719918327 | T157: 622899.7948 | U157: 0.3927132273 | V157: 4.091915044 | W157: 376942.2968 | X157: 0.7391603937 | Y157: 5.181214484 | Z157: 279424.5063 | AA157: 0.8956611115 | AB157: 4.83427138 | AC157: 177558.5266 | AD157: 0.9005230721 | AE157: 2.577476733 | AF157: 304385.3892 | AG157: =AF157/AF156*100-100 -> 0.6216672247 | AH157: =AF157/AF145*100-100 -> 4.620970624
A158: 2017-03-01 | B158: 157513.4926 | C158: -0.2981550975 | D158: 0.4645913856 | E158: 185481.7787 | F158: 0.2819691325 | G158: 3.653913815 | H158: 184511.5329 | I158: 0.7120020302 | J158: 3.071815286 | K158: 205438.8868 | L158: 0.4725104175 | M158: 5.774659153 | N158: 216050.3917 | O158: 0.3717630781 | P158: 7.028598468 | Q158: 324996.0705 | R158: 0.8815193545 | S158: 6.118636262 | T158: 625245.4352 | U158: 0.3765678553 | V158: 3.911554463 | W158: 377439.7648 | X158: 0.1319745892 | Y158: 5.278508269 | Z158: 279110.836 | AA158: -0.1122558542 | AB158: 5.116740235 | AC158: 177057.4557 | AD158: -0.2822003983 | AE158: 2.944182338 | AF158: 305358.4094 | AG158: =AF158/AF157*100-100 -> 0.319667176 | AH158: =AF158/AF146*100-100 -> 4.753178835
A159: 2017-04-01 | B159: 156514.9019 | C159: -0.6339715099 | D159: 0.4753314431 | E159: 185351.5663 | F159: -0.07020228098 | G159: 3.219141168 | H159: 184016.3056 | I159: -0.268399095 | J159: 3.589424424 | K159: 204689.251 | L159: -0.3648948035 | M159: 5.618634343 | N159: 213748.9169 | O159: -1.065249053 | P159: 5.604808684 | Q159: 324317.2516 | R159: -0.2088698991 | S159: 5.344560433 | T159: 621970.0405 | U159: -0.5238574338 | V159: 3.727063757 | W159: 375375.3934 | X159: -0.5469406157 | Y159: 4.744928267 | Z159: 278255.2353 | AA159: -0.3065451258 | AB159: 4.409278217 | AC159: 174826.4211 | AD159: -1.26006251 | AE159: 2.280536279 | AF159: 303929.328 | AG159: =AF159/AF158*100-100 -> -0.4680013059 | AH159: =AF159/AF147*100-100 -> 4.301308581
A160: 2017-05-01 | B160: 156670.985 | C160: 0.09972409871 | D160: 1.905141127 | E160: 184822.2524 | F160: -0.2855729277 | G160: 3.769002978 | H160: 183298.5308 | I160: -0.3900604704 | J160: 2.943582519 | K160: 203286.3435 | L160: -0.6853840857 | M160: 5.017602621 | N160: 212488.9626 | O160: -0.5894553183 | P160: 4.654517452 | Q160: 324768.9963 | R160: 0.1392909808 | S160: 5.946715018 | T160: 611838.6203 | U160: -1.628924163 | V160: 3.146643454 | W160: 373320.5739 | X160: -0.5474039033 | Y160: 5.0599244 | Z160: 277346.3061 | AA160: -0.3266530444 | AB160: 5.337719722 | AC160: 172633.5737 | AD160: -1.254299784 | AE160: 1.909000093 | AF160: 301789.564 | AG160: =AF160/AF159*100-100 -> -0.7040334023 | AH160: =AF160/AF148*100-100 -> 4.327172787
A161: 2017-06-01 | B161: 155996.6722 | C161: -0.4304005668 | D161: 0.983527682 | E161: 184421.8579 | F161: -0.2166375955 | G161: 3.283308022 | H161: 181255.1542 | I161: -1.114780672 | J161: 1.430348989 | K161: 203372.2627 | L161: 0.04226512753 | M161: 4.508423315 | N161: 211788.4007 | O161: -0.3296932996 | P161: 3.370010924 | Q161: 324783.3631 | R161: 0.004423712066 | S161: 5.299681996 | T161: 599707.8272 | U161: -1.982678541 | V161: 1.888221196 | W161: 370299.0538 | X161: -0.809363384 | Y161: 3.398741054 | Z161: 276422.7863 | AA161: -0.3329843664 | AB161: 4.202378047 | AC161: 171659.9019 | AD161: -0.5640106979 | AE161: 0.8104346217 | AF161: 299274.0874 | AG161: =AF161/AF160*100-100 -> -0.8335200917 | AH161: =AF161/AF149*100-100 -> 3.169547473
A162: 2017-07-01 | B162: 155567.2851 | C162: -0.2752539715 | D162: 1.165881556 | E162: 184729.541 | F162: 0.1668365559 | G162: 3.858004324 | H162: 180301.395 | I162: -0.5261969706 | J162: 0.9683957906 | K162: 203279.7298 | L162: -0.04549929411 | M162: 3.530862468 | N162: 211394.5715 | O162: -0.1859540995 | P162: 2.642087562 | Q162: 325615.6295 | R162: 0.256252784 | S162: 5.481068498 | T162: 591459.0393 | U162: -1.375467779 | V162: 0.7039356757 | W162: 369094.8341 | X162: -0.325201945 | Y162: 2.486193545 | Z162: 276324.3634 | AA162: -0.03560590168 | AB162: 3.92550302 | AC162: 172873.9732 | AD162: 0.7072538652 | AE162: 1.764487559 | AF162: 298062.6996 | AG162: =AF162/AF161*100-100 -> -0.4047753797 | AH162: =AF162/AF150*100-100 -> 2.606553408
A163: 2017-08-01 | AF163: 297397.5867 | AG163: =AF163/AF162*100-100 -> -0.2231452854 | AH163: =AF163/AF151*100-100 -> 2.052532884

Sheet INTERACTIVE REGIONS CHARTS
C2: LSL ACADATA E&W HPI NATIONAL AND REGIONAL FORMATTED DATA FROM 2005 | O2: =SERIES!$K$2 -> 20th September 2017
C3: A TRUE MEASURE OF HOUSE PRICE INFLATION
C4: For data prior to 2005 please see | F4: APAT LGA | O4: =SERIES!$K$3 -> AUGUST 2017
O5: © Acadata Limited
O6: LSL Acadata E&W HPI clb/cms
Q8: Select Region(s)
Q11: North East
Q12: North West
Q13: East Midlands
Q14: West Midlands
Q15: Wales
Q16: Yorks & Humber
Q17: South West
Q18: East of England
Q19: South East
Q20: Greater London
D29: To change the date range, click on the start and end dates below and select from the drop down lists, then click Reset Dates.
D31: Start Date | E31: 2005-01-01 | G31: End Date | H31: 2017-07-01
E32: =MATCH(E31,dates)+ROW(dates)-1 -> 12 | H32: =MATCH(H31,dates)+ROW(dates)-1 -> 162
Q38: Select Region(s)
Q41: North East
Q42: North West
Q43: East Midlands
Q44: West Midlands
Q45: Wales
Q46: Yorks & Humber
Q47: South West
Q48: East of England
Q49: South East
Q50: Greater London
D58: To change the date range, click on the start and end dates below and select from the drop down lists, then click Reset Dates.
D60: Start Date | E60: 2005-01-01 | G60: End Date | H60: 2017-07-01
E61: =MATCH(E60,dates)+ROW(dates)-1 -> 12 | H61: =MATCH(H60,dates)+ROW(dates)-1 -> 162
Q65: Select Region(s)
Q68: North East
Q69: North West
Q70: East Midlands
Q71: West Midlands
Q72: Wales
Q73: Yorks & Humber
Q74: South West
Q75: East of England
Q76: South East
Q77: Greater London
D85: To change the date range, click on the start and end dates below and select from the drop down lists, then click Reset Dates.
D87: Start Date | E87: 2005-01-01 | G87: End Date | H87: 2017-07-01
E88: =MATCH(E87,dates)+ROW(dates)-1 -> 12 | H88: =MATCH(H87,dates)+ROW(dates)-1 -> 162
